Workbook

Sheet Summary New
B2: Ref | C2: Title | D2: Owner | E2: VfM Driver | F2: Benefit Type | G2: Confidence Factor | H2: Partners (1=SFT, 2 =SFT/LA or SFT/SG, 3=SFT/LA/SG | I2: Scenario 2 Total Partner Value | J2: SCENARIO 1 (11-12 ) | K2: SCENARIO 2 (11-12 ) | L2: SCENARIO 3 (11-12 ) | M2: SCENARIO 1 (11-12 Cumulative - Net) | N2: SCENARIO 2 (11-12 Cumulative - Net) | O2: SCENARIO 3 (11-12 Cumulative - Net)
B3: A1 | C3: SFT Consolidated Avoided Costs | D3: SFT | E3: ='201112 CALCS'!C16 -> Centre of Expertise | F3: ='201112 CALCS'!C23 -> Avoided Cost | G3: ='201112 CALCS'!C35 -> A - High | H3: 1 | I3: =N3*H3 -> 3611154.071 | J3: ='201112 CALCS'!F43 -> 2217600 | K3: ='201112 CALCS'!F44 -> 2217600 | L3: ='201112 CALCS'!F45 -> 1774080 | M3: 3611154 | N3: ='Cumulative Net Scen2'!G3 -> 3611154.071 | O3: 2903030
B4: A2 | C4: Waste - Avoided Future Contract Variation | D4: AY/PM | E4: ='201112 CALCS'!C624 -> Centre of Expertise | F4: ='201112 CALCS'!C631 -> Avoided Cost | G4: ='201112 CALCS'!C643 -> D - Moderate | H4: 2 | I4: =N4*H4 -> -161184.2651 | J4: ='201112 CALCS'!F651 -> 360957.1382 | K4: ='201112 CALCS'!F652 -> 48247.16795 | L4: ='201112 CALCS'!F653 -> 30702.74324 | M4: -129944.8683 | N4: ='Cumulative Net Scen2'!G4 -> -80592.13257 | O4: -51285.41622
B5: B1 | C5: TIF - Development of Model | D5: NR | E5: ='201112 CALCS'!C852 -> Funding & Finance | F5: ='201112 CALCS'!C859 -> Additional Investment | G5: ='201112 CALCS'!C871 -> C - Good | H5: 3 | I5: 92903409.48 | J5: ='201112 CALCS'!F879 -> 13872072.3 | K5: ='201112 CALCS'!F880 -> 13733833.13 | L5: ='201112 CALCS'!F881 -> 10071477.63 | M5: 31705078.73 | N5: ='Cumulative Net Scen2'!G5 -> 30967803.16 | O5: 22709722.32
B6: B2 | C6: NHT - Phase 1 - Development of Model | D6: NR/MR | E6: ='201112 CALCS'!C890 -> Funding & Finance | F6: ='201112 CALCS'!C897 -> Additional Investment | G6: ='201112 CALCS'!C909 -> A - High | H6: 3 | I6: 20852778.83 | J6: ='201112 CALCS'!F917 -> 6579066.023 | K6: ='201112 CALCS'!F918 -> 6579066.023 | L6: ='201112 CALCS'!F919 -> 5263252.818 | M6: 6950926.276 | N6: ='Cumulative Net Scen2'!G6 -> 6950926.276 | O6: 6064182.595
B7: B3 | C7: NHT - Phase 2 - Development of Model | D7: NR | E7: ='201112 CALCS'!C927 -> Funding & Finance | F7: ='201112 CALCS'!C934 -> Additional Investment | G7: ='201112 CALCS'!C960 -> C - Good | H7: 2 | I7: =N7*H7 -> 20648850.82 | J7: ='201112 CALCS'!F968 -> 10324425.41 | K7: ='201112 CALCS'!F969 -> 10324425.41 | L7: ='201112 CALCS'!F970 -> 7571245.3 | M7: 10324425.41 | N7: ='Cumulative Net Scen2'!G7 -> 10324425.41 | O7: 7571245.3
B8: C1 | C8: Western Isles and Orkney Schools Projects - Finance Structure | D8: MR | E8: ='201112 CALCS'!C979 -> Funding & Finance | F8: ='201112 CALCS'!C986 -> Efficiency Gain: Funding and Finance | G8: ='201112 CALCS'!C998 -> A - High | H8: 2 | I8: 4154589.372 | J8: ='201112 CALCS'!F1006 -> 0 | K8: ='201112 CALCS'!F1007 -> 0 | L8: ='201112 CALCS'!F1008 -> 0 | M8: 1337199.437 | N8: ='Cumulative Net Scen2'!G8 -> 2077294.686 | O8: 1661835.749
B9: C2 | C9: Borders Rail Lower Finacing Costs | D9: TR | E9: n/a | F9: n/a | G9: n/a | H9: 0 | I9: 0 | J9: 0 | K9: 0 | L9: 0 | M9: 0 | N9: ='Cumulative Net Scen2'!G9 -> 0 | O9: 0
B10: C3 | C10: Borders Rail Competition | D10: TR | E10: n/a | F10: n/a | G10: n/a | H10: 0 | I10: 0 | J10: 0 | K10: 0 | L10: 0 | M10: -8086928.461 | N10: ='Cumulative Net Scen2'!G10 -> -2342949.145 | O10: -1718162.706
B11: C4 | C11: Orkney Schools Projects - Business Case Diligence | D11: MR | E11: ='201112 CALCS'!C1093 -> Funding & Finance | F11: ='201112 CALCS'!C1100 -> Efficiency Gain: Funding and Finance | G11: ='201112 CALCS'!C1112 -> A - High | H11: 2 | I11: 115755.3268 | J11: ='201112 CALCS'!F1120 -> 0 | K11: ='201112 CALCS'!F1121 -> 0 | L11: ='201112 CALCS'!F1122 -> 0 | M11: 35788.40197 | N11: ='Cumulative Net Scen2'!G11 -> 57877.66342 | O11: 46302.13074
B12: C5 | C12: RHSC/DCN Procurement Strategy and Increased Competition | D12: AB | E12: ='201112 CALCS'!C1131 -> Funding & Finance | F12: ='201112 CALCS'!C1138 -> Efficiency Gain: Funding and Finance | G12: ='201112 CALCS'!C1150 -> C - Good | H12: 2 | I12: 1690616.211 | J12: ='201112 CALCS'!F1158 -> 2419243.528 | K12: ='201112 CALCS'!F1159 -> 804291.7807 | L12: ='201112 CALCS'!F1160 -> 589813.9725 | M12: 2623831.155 | N12: ='Cumulative Net Scen2'!G12 -> 845308.1057 | O12: 678756.2807
B13: C6 | C13: NPD Contract - Saved Procurement Time | D13: JK | E13: ='201112 CALCS'!C1169 -> Funding & Finance | F13: ='201112 CALCS'!C1176 -> Efficiency Gain: Funding and Finance | G13: ='201112 CALCS'!C1188 -> D - Moderate | H13: 1 | I13: 871722.7581 | J13: ='201112 CALCS'!F1196 -> 1390452.7 | K13: ='201112 CALCS'!F1197 -> 660775.2275 | L13: ='201112 CALCS'!F1198 -> 420493.3266 | M13: 1173972.718 | N13: ='Cumulative Net Scen2'!G13 -> 871722.7581 | O13: 220951.0921
B14: C7 | C14: NPD Contract - Optimal Risk Transfer | D14: JK | E14: ='201112 CALCS'!C1207 -> Funding & Finance | F14: ='201112 CALCS'!C1214 -> Efficiency Gain: Funding and Finance | G14: ='201112 CALCS'!C1226 -> C - Good | H14: 1 | I14: 3709429.242 | J14: ='201112 CALCS'!F1234 -> 8495080.565 | K14: ='201112 CALCS'!F1235 -> 3054294.401 | L14: ='201112 CALCS'!F1236 -> 2239815.894 | M14: 9885084.336 | N14: ='Cumulative Net Scen2'!G14 -> 3709429.242 | O14: 2720248.111
B15: C8 | C15: NPD Programme - Reduced Cost of Capital | D15: JK | E15: ='201112 CALCS'!C1245 -> Funding & Finance | F15: ='201112 CALCS'!C1252 -> Efficiency Gain: Funding and Finance | G15: ='201112 CALCS'!C1264 -> D - Moderate | H15: 2 | I15: 2423026.409 | J15: ='201112 CALCS'!F1272 -> 7210984.093 | K15: ='201112 CALCS'!F1273 -> 1177138.518 | L15: ='201112 CALCS'!F1274 -> 749088.1481 | M15: 8383248.47 | N15: ='Cumulative Net Scen2'!G15 -> 1211513.205 | O15: 770962.9484
B16: C9 | C16: hub - Return on Working capital investment | D16: NG | E16: ='201112 CALCS'!C1283 -> Funding & Finance | F16: ='201112 CALCS'!C1290 -> Efficiency Gain: Funding and Finance | G16: ='201112 CALCS'!C1302 -> B - Very Good | H16: 2 | I16: 261854.4532 | J16: ='201112 CALCS'!F1310 -> 48881.70862 | K16: ='201112 CALCS'!F1311 -> 48881.70862 | L16: ='201112 CALCS'!F1312 -> 38019.1067 | M16: 130927.2266 | N16: ='Cumulative Net Scen2'!G16 -> 130927.2266 | O16: 101832.2873
B17: D1 | C17: Hub Programme - Reduced Procurement Time | D17: NG | E17: ='201112 CALCS'!C1321 -> Delivery | F17: ='201112 CALCS'!C1328 -> Efficiency Gain: Delivery | G17: ='201112 CALCS'!C1340 -> B - Very Good | H17: 2 | I17: 9593963.031 | J17: ='201112 CALCS'!F1348 -> 4301198.028 | K17: ='201112 CALCS'!F1349 -> 1932853.678 | L17: ='201112 CALCS'!F1350 -> 1503330.638 | M17: 10427408.63 | N17: ='Cumulative Net Scen2'!G17 -> 4796981.516 | O17: 3730985.623
B18: D2 | C18: Hub Programme - Capital Costs Continuous Improvement | D18: NG | E18: ='201112 CALCS'!C1359 -> Delivery | F18: ='201112 CALCS'!C1366 -> Efficiency Gain: Delivery | G18: ='201112 CALCS'!C1378 -> C - Good | H18: 2 | I18: -2089797.279 | J18: ='201112 CALCS'!F1386 -> 3054447.441 | K18: ='201112 CALCS'!F1387 -> 1038860.251 | L18: ='201112 CALCS'!F1388 -> 761830.851 | M18: 15542955.72 | N18: ='Cumulative Net Scen2'!G18 -> -1044898.64 | O18: 3804726.103
B19: D3 | C19: Hub Programme - Bid Costs Savings | D19: NG | E19: ='201112 CALCS'!C1397 -> Delivery | F19: ='201112 CALCS'!C1404 -> Efficiency Gain: Delivery | G19: ='201112 CALCS'!C1416 -> B - Very Good | H19: 2 | I19: 7396475.62 | J19: ='201112 CALCS'!F1424 -> 5916478.647 | K19: ='201112 CALCS'!F1425 -> 1218043.179 | L19: ='201112 CALCS'!F1426 -> 947366.9167 | M19: 16400048.56 | N19: ='Cumulative Net Scen2'!G19 -> 3698237.81 | O19: 2876407.186
B20: D4 | C20: Hub Programme - Public Sector Investment Returns | D20: NG | E20: ='201112 CALCS'!C1435 -> Delivery | F20: ='201112 CALCS'!C1442 -> Efficiency Gain: Delivery | G20: ='201112 CALCS'!C1454 -> C - Good | H20: 2 | I20: 2582868.664 | J20: ='201112 CALCS'!F1462 -> 2278961.81 | K20: ='201112 CALCS'!F1463 -> 481812.0782 | L20: ='201112 CALCS'!F1464 -> 353328.8574 | M20: 5629404.366 | N20: ='Cumulative Net Scen2'!G20 -> 1291434.332 | O20: 947051.8433
B21: D5 | C21: Hub Programme - Reduced Rates of Return | D21: NG | E21: ='201112 CALCS'!C1473 -> Funding & Finance | F21: ='201112 CALCS'!C1480 -> Efficiency Gain: Delivery | G21: ='201112 CALCS'!C1492 -> B - Very Good | H21: 2 | I21: 5945221.988 | J21: ='201112 CALCS'!F1500 -> 5245692.147 | K21: ='201112 CALCS'!F1501 -> 1109030.359 | L21: ='201112 CALCS'!F1502 -> 862579.1682 | M21: 12957708.26 | N21: ='Cumulative Net Scen2'!G21 -> 2972610.994 | O21: 2312030.773
B22: D6 | C22: Hub Programme - Dialogue Stage Public Sector Savings | D22: NG | E22: ='201112 CALCS'!C1511 -> Delivery | F22: ='201112 CALCS'!C1518 -> Efficiency Gain: Delivery | G22: ='201112 CALCS'!C1530 -> A - High | H22: 2 | I22: 44774.26939 | J22: ='201112 CALCS'!F1538 -> 0 | K22: ='201112 CALCS'!F1539 -> 0 | L22: ='201112 CALCS'!F1540 -> 0 | M22: 22387.1347 | N22: ='Cumulative Net Scen2'!G22 -> 22387.1347 | O22: 17909.70776
B23: D7 | C23: Schools Programme - Pilot Project Savings | D23: GG/GR | E23: ='201112 CALCS'!C1549 -> Aggregation & Collaboration | F23: ='201112 CALCS'!C1556 -> Efficiency Gain: Delivery | G23: ='201112 CALCS'!C1568 -> B - Very Good | H23: 2 | I23: 525587.4686 | J23: ='201112 CALCS'!F1576 -> 0 | K23: ='201112 CALCS'!F1577 -> 0 | L23: ='201112 CALCS'!F1578 -> 0 | M23: 262793.7343 | N23: ='Cumulative Net Scen2'!G23 -> 262793.7343 | O23: 204395.1267
B24: D8 | C24: Schools Programme - Needs Identification | D24: GG/GR | E24: ='201112 CALCS'!C1587 -> Delivery | F24: ='201112 CALCS'!C1594 -> Efficiency Gain: Delivery | G24: ='201112 CALCS'!C1606 -> C - Good | H24: 1 | I24: 2453170.893 | J24: ='201112 CALCS'!F1614 -> 0 | K24: ='201112 CALCS'!F1615 -> 0 | L24: ='201112 CALCS'!F1616 -> 0 | M24: 2453170.893 | N24: ='Cumulative Net Scen2'!G24 -> 2453170.893 | O24: 1798991.988
B25: D8a | C25: Schools Programme - Needs Identification - Addition Benefit Secondary Schools | D25: GG/GR | E25: ='201112 CALCS'!C1625 -> Delivery | F25: ='201112 CALCS'!C1632 -> Efficiency Gain: Delivery | G25: ='201112 CALCS'!C1644 -> C - Good | H25: 1 | I25: =N25*H25 -> 26050115.12 | J25: ='201112 CALCS'!F1652 -> 26050115.12 | K25: ='201112 CALCS'!F1653 -> 26050115.12 | L25: ='201112 CALCS'!F1654 -> 19103417.75 | M25: 26050115.12 | N25: ='Cumulative Net Scen2'!G25 -> 26050115.12 | O25: 19103417.75
B26: D9 | C26: Schools Programme - Continuous Improvement Savings | D26: GG/GR | E26: ='201112 CALCS'!C1663 -> Delivery | F26: ='201112 CALCS'!C1670 -> Efficiency Gain: Delivery | G26: ='201112 CALCS'!C1682 -> C - Good | H26: 2 | I26: 2571025.744 | J26: ='201112 CALCS'!F1690 -> 2881574.433 | K26: ='201112 CALCS'!F1691 -> 2065020.352 | L26: ='201112 CALCS'!F1692 -> 1514348.258 | M26: 2037619.062 | N26: ='Cumulative Net Scen2'!G26 -> 1285512.872 | O26: 942709.4394
B27: E1 | C27: Validation - Non-Standard Civils Projects (FRC) | D27: TR | E27: ='201112 CALCS'!C1701 -> Validation | F27: ='201112 CALCS'!C1708 -> Efficiency Gain: Validation | G27: ='201112 CALCS'!C1720 -> A - High | H27: 2 | I27: 3533519.25 | J27: ='201112 CALCS'!F1728 -> 0 | K27: ='201112 CALCS'!F1729 -> 0 | L27: ='201112 CALCS'!F1730 -> 0 | M27: 1766759.625 | N27: ='Cumulative Net Scen2'!G27 -> 1766759.625 | O27: 1675149.867
B28: E2 | C28: Validation - Standard Accommodation Projects | D28: MR | E28: ='201112 CALCS'!C1739 -> Validation | F28: ='201112 CALCS'!C1746 -> Efficiency Gain: Validation | G28: ='201112 CALCS'!C1758 -> B - Very Good | H28: 2 | I28: -1410613.118 | J28: ='201112 CALCS'!F1766 -> 307331.1666 | K28: ='201112 CALCS'!F1767 -> 183652.3991 | L28: ='201112 CALCS'!F1768 -> 142840.7549 | M28: -529020.5685 | N28: ='Cumulative Net Scen2'!G28 -> -705306.559 | O28: -492737.8234
B29: E3 | C29: Validation - CMAL | D29: TR | E29: ='201112 CALCS'!C1777 -> Validation | F29: ='201112 CALCS'!C1784 -> Efficiency Gain: Validation | G29: ='201112 CALCS'!C1796 -> D - Moderate | H29: 3 | I29: 4805759.279 | J29: ='201112 CALCS'!F1804 -> 0 | K29: ='201112 CALCS'!F1805 -> 0 | L29: ='201112 CALCS'!F1806 -> 0 | M29: 1104096.663 | N29: ='Cumulative Net Scen2'!G29 -> 1601919.76 | O29: 1019403.484
B30: E4 | C30: Validation - Non-Standard Civils Projects (Borders Railway) | D30: TR | E30: ='201112 CALCS'!C1815 -> Validation | F30: ='201112 CALCS'!C1822 -> Efficiency Gain: Validation | G30: ='201112 CALCS'!C1834 -> C - Good | H30: 0 | I30: 0 | J30: ='201112 CALCS'!F1842 -> 0 | K30: ='201112 CALCS'!F1843 -> 0 | L30: ='201112 CALCS'!F1844 -> 0 | M30: -1293896.533 | N30: ='Cumulative Net Scen2'!G30 -> -317637.8964 | O30: -232934.4574
B31: F1 | C31: Operational Projects Support | D31: DS | E31: ='201112 CALCS'!C1853 -> Aggregation & Collaboration | F31: ='201112 CALCS'!C1860 -> Efficiency Gain: Centre of Expertise | G31: ='201112 CALCS'!C1872 -> D - Moderate | H31: 2 | I31: 3172869.047 | J31: ='201112 CALCS'!F1880 -> 3454832.163 | K31: ='201112 CALCS'!F1881 -> 1537583.89 | L31: ='201112 CALCS'!F1882 -> 978462.4754 | M31: 3343680.341 | N31: ='Cumulative Net Scen2'!G31 -> 1586434.523 | O31: 1009549.242
B32: G1 | C32: Waste - Procurement Timetable Benefits - Avoided Disposal Costs - Projects other than Clyde Valley | D32: AY/PM | E32: ='201112 CALCS'!C1891 -> Delivery | F32: ='201112 CALCS'!C1898 -> Efficiency Gain: Centre of Expertise | G32: ='201112 CALCS'!C1910 -> C - Good | H32: 2 | I32: -128156.5912 | J32: ='201112 CALCS'!F1918 -> 55881.78725 | K32: ='201112 CALCS'!F1919 -> 55881.78725 | L32: ='201112 CALCS'!F1920 -> 40979.97732 | M32: -64078.29561 | N32: ='Cumulative Net Scen2'!G32 -> -64078.29561 | O32: -46990.75011
B33: G2 | C33: Waste - Service Cost Benefits (Reduced Gate Fees) - Projects other than Clyde Valley | D33: AY/PM | E33: ='201112 CALCS'!C1929 -> Delivery | F33: ='201112 CALCS'!C1936 -> Efficiency Gain: Centre of Expertise | G33: ='201112 CALCS'!C1948 -> C - Good | H33: 2 | I33: 911809.8167 | J33: ='201112 CALCS'!F1956 -> 2288133.676 | K33: ='201112 CALCS'!F1957 -> 668951.9758 | L33: ='201112 CALCS'!F1958 -> 490564.7822 | M33: 757187.1127 | N33: ='Cumulative Net Scen2'!G33 -> 455904.9083 | O33: 334330.2661
B34: G3 | C34: Waste - Reduced Gate Fees - Clyde Valley | D34: AY/PM | E34: ='201112 CALCS'!C1967 -> Delivery | F34: ='201112 CALCS'!C1974 -> Efficiency Gain: Centre of Expertise | G34: ='201112 CALCS'!C1986 -> C - Good | H34: 2 | I34: -4467540.671 | J34: ='201112 CALCS'!F1994 -> 1357531.927 | K34: ='201112 CALCS'!F1995 -> 230762.2658 | L34: ='201112 CALCS'!F1996 -> 169225.6616 | M34: -2330356.728 | N34: ='Cumulative Net Scen2'!G34 -> -2233770.335 | O34: -1387924.793
B35: G4 | C35: Budget Recast - Initial Benefit Identification | D35: CP | E35: ='201112 CALCS'!C2005 -> Centre of Expertise | F35: ='201112 CALCS'!C2012 -> Efficiency Gain: Centre of Expertise | G35: ='201112 CALCS'!C2024 -> C - Good | H35: 2 | I35: 10823351.2 | J35: ='201112 CALCS'!F2032 -> 4656620.341 | K35: ='201112 CALCS'!F2033 -> 3583428.147 | L35: ='201112 CALCS'!F2034 -> 2627847.308 | M35: 6073852.619 | N35: ='Cumulative Net Scen2'!G35 -> 5411675.601 | O35: 3968562.107
B36: G5 | C36: Asset Management | D36: CP | E36: ='201112 CALCS'!C2043 -> Centre of Expertise | F36: ='201112 CALCS'!C2050 -> Efficiency Gain: Centre of Expertise | G36: ='201112 CALCS'!C2062 -> D - Moderate | H36: 2 | I36: 46627450.4 | J36: ='201112 CALCS'!F2070 -> 37097853 | K36: ='201112 CALCS'!F2071 -> 22783967.35 | L36: ='201112 CALCS'!F2072 -> 14498888.31 | M36: 37516025.25 | N36: ='Cumulative Net Scen2'!G36 -> 23313725.2 | O36: 14836006.95
B37: G6 | C37: NPD Programme - Needs not Wants - Scrutiny & Challenge | D37: PR | E37: ='201112 CALCS'!C2081 -> Centre of Expertise | F37: ='201112 CALCS'!C2088 -> Efficiency Gain: Centre of Expertise | G37: ='201112 CALCS'!C2100 -> C - Good | H37: 2 | I37: 8484023.774 | J37: ='201112 CALCS'!F2108 -> 14718256.75 | K37: ='201112 CALCS'!F2109 -> 4020547.213 | L37: ='201112 CALCS'!F2110 -> 2948401.29 | M37: 15406538.52 | N37: ='Cumulative Net Scen2'!G37 -> 4242011.887 | O37: 3154311.896
B38: G7 | C38: ='201112 CALCS'!D2117 -> Energy Efficient Streetlighting Model for Local Authorities | D38: TR | E38: ='201112 CALCS'!C2119 -> Centre of Expertise | F38: ='201112 CALCS'!C2126 -> Efficiency Gain: Centre of Expertise | G38: ='201112 CALCS'!C2138 -> D - Moderate | H38: 2 | I38: =N38*H38 -> 2118551.602 | J38: ='201112 CALCS'!F2146 -> 2654760.632 | K38: ='201112 CALCS'!F2147 -> 1059275.801 | L38: ='201112 CALCS'!F2148 -> 674084.6007 | M38: 2654760.632 | N38: ='Cumulative Net Scen2'!G38 -> 1059275.801 | O38: 674084.6007
B39: TOTAL | I39: =SUM(I3:I38) -> 280626432.2 | J39: =SUM(J3:J38) -> 169238432.5 | K39: =SUM(K3:K38) -> 106668339.2 | L39: =SUM(L3:L38) -> 76365486.54 | M39: 224133922.9 | N39: =SUM(N3:N38) -> 136240100.5 | O39: 103929056.8
M40: REPORTED | N40: REPORTED | O40: REPORTED
J41: NET OF | K41: SFT Ops Costs | L41: 4785230 | M41: =M39-L41 -> 219348692.9 | N41: =N39-L41 -> 131454870.5 | O41: =O39-L41 -> 99143826.82

Sheet Reported Benefit
B2: REPORTED BENEFIT (NET OF £4,785,230 SFT OPERATING COSTS)
C4: Scenario 1 | D4: Scenario 2 | E4: Scenario 3
B5: 2011-12* | C5: ='Cumulative Net Scen1'!G41 -> 201159145.2 | D5: ='Cumulative Net Scen2'!G40 -> 131454870.5 | E5: ='Cumulative Net Scen3'!G40 -> 94847759.61
B6: 2010-11 | C6: 199800000 | D6: 129170000 | E6: 96240000
B7: 2009-10 | C7: =155000000-3000000 -> 152000000 | D7: =114000000-3000000 -> 111000000 | E7: =82000000-3000000 -> 79000000
B9: *Gross benefit calculated in 2011-12 model less benefits reported in 10-11 and 09-10 (and less operating costs)

Sheet Top 10
B3: Ref | C3: Title | E3: SCENARIO 2 (11-12 Cumulative - Net)
B4: TOTAL
B5: B1 | C5: TIF - Development of Model | D5: ='Cumulative Net Scen2'!D5 -> Additional Investment | E5: ='Summary New'!N5 -> 30967803.16 | F5: 1
B6: D8a | C6: Schools Programme - Needs Identification - Addition Benefit Secondary Schools | D6: ='Cumulative Net Scen2'!D25 -> Efficiency Gain: Delivery | E6: ='Summary New'!N25 -> 26050115.12 | F6: 2
B7: G5 | C7: Asset Management | D7: ='Cumulative Net Scen2'!D36 -> Efficiency Gain: Centre of Expertise | E7: ='Summary New'!N36 -> 23313725.2 | F7: 3
B8: B3 | C8: NHT - Phase 2 - Development of Model | D8: ='Cumulative Net Scen2'!D7 -> Additional Investment | E8: ='Summary New'!N7 -> 10324425.41 | F8: 4
B9: B2 | C9: NHT - Phase 1 - Development of Model | D9: ='Cumulative Net Scen2'!D6 -> Additional Investment | E9: ='Summary New'!N6 -> 6950926.276 | F9: 5
B10: G4 | C10: Budget Recast - Initial Benefit Identification | D10: ='Cumulative Net Scen2'!D35 -> Efficiency Gain: Centre of Expertise | E10: ='Summary New'!N35 -> 5411675.601 | F10: 6
B11: D1 | C11: Hub Programme - Reduced Procurement Time | D11: ='Cumulative Net Scen2'!D17 -> Efficiency Gain: Delivery | E11: ='Summary New'!N17 -> 4796981.516 | F11: 7
B12: G6 | C12: NPD Programme - Needs not Wants - Scrutiny & Challenge | D12: ='Cumulative Net Scen2'!D37 -> Efficiency Gain: Centre of Expertise | E12: ='Summary New'!N37 -> 4242011.887 | F12: 8
B13: C7 | C13: NPD Contract - Optimal Risk Transfer | D13: ='Cumulative Net Scen2'!D14 -> Efficiency Gain: Funding and Finance | E13: ='Summary New'!N14 -> 3709429.242 | F13: 9
B14: D3 | C14: Hub Programme - Bid Costs Savings | D14: ='Cumulative Net Scen2'!D19 -> Efficiency Gain: Delivery | E14: ='Summary New'!N19 -> 3698237.81 | F14: 10
B15: A1 | C15: SFT Consolidated Avoided Cost Benefit | D15: ='Cumulative Net Scen2'!D3 -> Avoided Cost | E15: ='Summary New'!N3 -> 3611154.071
B16: D5 | C16: Hub Programme - Reduced Rates of Return | D16: ='Cumulative Net Scen2'!D21 -> Efficiency Gain: Delivery | E16: ='Summary New'!N21 -> 2972610.994
B17: D8 | C17: Schools Programme - Needs Identification | D17: ='Cumulative Net Scen2'!D24 -> Efficiency Gain: Delivery | E17: ='Summary New'!N24 -> 2453170.893
B18: C1 | C18: Western Isles and Orkney Schools Projects - Finance Structure | D18: ='Cumulative Net Scen2'!D8 -> Efficiency Gain: Funding and Finance | E18: ='Summary New'!N8 -> 2077294.686
B19: E1 | C19: Validation - Non-Standard Civils Projects (FRC) | D19: ='Cumulative Net Scen2'!D27 -> Efficiency Gain: Validation | E19: ='Summary New'!N27 -> 1766759.625
B20: E3 | C20: Validation - CMAL | D20: ='Cumulative Net Scen2'!D29 -> Efficiency Gain: Validation | E20: ='Summary New'!N29 -> 1601919.76
B21: F1 | C21: Operational Projects Support | D21: ='Cumulative Net Scen2'!D31 -> Efficiency Gain: Centre of Expertise | E21: ='Summary New'!N31 -> 1586434.523
B22: D4 | C22: Hub Programme - Public Sector Investment Returns | D22: ='Cumulative Net Scen2'!D20 -> Efficiency Gain: Delivery | E22: ='Summary New'!N20 -> 1291434.332
B23: D9 | C23: Schools Programme - Continuous Improvement Savings | D23: ='Cumulative Net Scen2'!D26 -> Efficiency Gain: Delivery | E23: ='Summary New'!N26 -> 1285512.872
B24: C8 | C24: NPD Programme - Reduced Cost of Capital | D24: ='Cumulative Net Scen2'!D15 -> Efficiency Gain: Funding and Finance | E24: ='Summary New'!N15 -> 1211513.205
B25: G7 | C25: Energy Efficient Streetlighting Model for Local Authorities | D25: ='Cumulative Net Scen2'!D38 -> Efficiency Gain: Centre of Expertise | E25: ='Summary New'!N38 -> 1059275.801
B26: C6 | C26: NPD Contract - Saved Procurement Time | D26: ='Cumulative Net Scen2'!D13 -> Efficiency Gain: Funding and Finance | E26: ='Summary New'!N13 -> 871722.7581
B27: C5 | C27: RHSC/DCN Procurement Strategy and Increased Competition | D27: ='Cumulative Net Scen2'!D12 -> Efficiency Gain: Funding and Finance | E27: ='Summary New'!N12 -> 845308.1057
B28: G2 | C28: Waste - Service Cost Benefits (Reduced Gate Fees) - Projects other than Clyde Valley | D28: ='Cumulative Net Scen2'!D33 -> Efficiency Gain: Centre of Expertise | E28: ='Summary New'!N33 -> 455904.9083
B29: D7 | C29: Schools Programme - Pilot Project Savings | D29: ='Cumulative Net Scen2'!D23 -> Efficiency Gain: Delivery | E29: ='Summary New'!N23 -> 262793.7343
B30: C9 | C30: hub - Return on Working capital investment | D30: ='Cumulative Net Scen2'!D16 -> Efficiency Gain: Funding and Finance | E30: ='Summary New'!N16 -> 130927.2266
B31: C4 | C31: Orkney Schools Projects - Business Case Diligence | D31: ='Cumulative Net Scen2'!D11 -> Efficiency Gain: Funding and Finance | E31: ='Summary New'!N11 -> 57877.66342
B32: D6 | C32: Hub Programme - Dialogue Stage Public Sector Savings | D32: ='Cumulative Net Scen2'!D22 -> Efficiency Gain: Delivery | E32: ='Summary New'!N22 -> 22387.1347
B33: C2 | C33: Borders Rail Lower Finacing Costs | D33: ='Cumulative Net Scen2'!D9 -> n/a | E33: ='Summary New'!N9 -> 0
B34: G1 | C34: Waste - Procurement Timetable Benefits - Avoided Disposal Costs - Projects other than Clyde Valley | D34: ='Cumulative Net Scen2'!D32 -> Efficiency Gain: Centre of Expertise | E34: ='Summary New'!N32 -> -64078.29561
B35: A2 | C35: Waste - Avoided Future Contract Variation | D35: ='Cumulative Net Scen2'!D4 -> Avoided Cost | E35: ='Summary New'!N4 -> -80592.13257
B36: E4 | C36: Validation - Non-Standard Civils Projects (Borders Railway) | D36: ='Cumulative Net Scen2'!D30 -> Efficiency Gain: Validation | E36: ='Summary New'!N30 -> -317637.8964
B37: E2 | C37: Validation - Standard Accommodation Projects | D37: ='Cumulative Net Scen2'!D28 -> Efficiency Gain: Validation | E37: ='Summary New'!N28 -> -705306.559
B38: D2 | C38: Hub Programme - Capital Costs Continuous Improvement | D38: ='Cumulative Net Scen2'!D18 -> Efficiency Gain: Delivery | E38: ='Summary New'!N18 -> -1044898.64
B39: G3 | C39: Waste - Reduced Gate Fees - Clyde Valley | D39: ='Cumulative Net Scen2'!D34 -> Efficiency Gain: Centre of Expertise | E39: ='Summary New'!N34 -> -2233770.335
B40: C3 | C40: Borders Rail Competition | D40: ='Cumulative Net Scen2'!D10 -> n/a | E40: ='Summary New'!N10 -> -2342949.145
E41: =SUM(E5:E40) -> 136240100.5
C43: SFT Ops Costs | E43: ='Summary New'!L41 -> 4785230
C44: Total | E44: =E41-E43 -> 131454870.5
E46: =SUM(E5:E14) -> 119465331.2

Sheet Sharing% (Partners)
A1: Scenario 2 sharing
B3: TOTAL BENEFIT | C3: SFT BENEFIT | D3: OTHER PARTNERS
A4: SCEN. 2 VALUE | B4: ='Summary New'!I39 -> 280626432.2 | C4: ='Summary New'!N39 -> 136240100.5 | D4: =B4-C4 -> 144386331.7
A5: SCEN 2 % | B5: =B4/B4 -> 1 | C5: =C4/B4 -> 0.485485631 | D5: =D4/B4 -> 0.514514369

Sheet Split by Type (By Value)
B1: SUMMARY
C3: Scenario 1 | D3: Scenario 2 | E3: Scenario 3
B4: Avoided Cost | C4: =C41 -> 3481209.132 | D4: =C15 -> 3530561.938 | E4: =C66 -> 2851744.584
B5: Additional Investment | C5: =D41 -> 48980430.41 | D5: =D15 -> 48243154.85 | E5: =D66 -> 36345150.21
B6: Efficiency: Funding & Fin | C6: =E41 -> 15483123.28 | D6: =E15 -> 6561123.742 | E6: =E66 -> 4482725.893
B7: Efficiency: Delivery | C7: =F41 -> 91783611.48 | D7: =F15 -> 41788345.76 | E7: =F66 -> 35738625.54
B8: Efficiency: Validation | C8: =G41 -> 1047939.186 | D8: =G15 -> 2345734.93 | E8: =G66 -> 1968881.07
B9: Efficiency: Centre of Exp | C9: =H41 -> 63357609.45 | D9: =H15 -> 33771179.29 | E9: =H66 -> 22541929.51
C10: =SUM(C4:C9) -> 224133922.9 | D10: =SUM(D4:D9) -> 136240100.5 | E10: =SUM(E4:E9) -> 103929056.8
B12: SCENARIO 2
B14: TOTAL (GROSS) | C14: Avoided Cost | D14: Additional Investment | E14: Efficiency Gain Funding & Finance | F14: Efficiency Gain: Delivery | G14: Efficiency Gain: Validation | H14: Efficiency Gain: Centre of Expertise
B15: =SUM(C15:H15) -> 136240100.5 | C15: ='Summary New'!N3+'Summary New'!N4 -> 3530561.938 | D15: ='Summary New'!N5+'Summary New'!N6+'Summary New'!N7 -> 48243154.85 | E15: ='Summary New'!N8+'Summary New'!N9+'Summary New'!N10+'Summary New'!N11+'Summary New'!N12+'Summary New'!N13+'Summary New'!N14+'Summary New'!N15+'Summary New'!N16 -> 6561123.742 | F15: ='Summary New'!N17+'Summary New'!N18+'Summary New'!N19+'Summary New'!N20+'Summary New'!N21+'Summary New'!N22+'Summary New'!N23+'Summary New'!N24+'Summary New'!N25+'Summary New'!N26 -> 41788345.76 | G15: ='Summary New'!N27+'Summary New'!N28+'Summary New'!N29+'Summary New'!N30 -> 2345734.93 | H15: ='Summary New'!N31+'Summary New'!N32+'Summary New'!N33+'Summary New'!N34+'Summary New'!N35+'Summary New'!N36+'Summary New'!N37+'Summary New'!N38 -> 33771179.29
B16: =SUM(C16:H16) -> 1 | C16: =C15/B15 -> 0.02591426405 | D16: =D15/B15 -> 0.3541039288 | E16: =E15/B15 -> 0.04815853569 | F16: =F15/B15 -> 0.3067257409 | G16: =G15/B15 -> 0.01721765413 | H16: =H15/B15 -> 0.2478798765
B38: SCENARIO 1
B40: TOTAL (GROSS) | C40: Avoided Cost | D40: Additional Investment | E40: Efficiency Gain Funding & Finance | F40: Efficiency Gain: Delivery | G40: Efficiency Gain: Validation | H40: Efficiency Gain: Centre of Expertise
B41: =SUM(C41:H41) -> 224133922.9 | C41: ='Summary New'!M3+'Summary New'!M4 -> 3481209.132 | D41: ='Summary New'!M5+'Summary New'!M6+'Summary New'!M7 -> 48980430.41 | E41: ='Summary New'!M8+'Summary New'!M9+'Summary New'!M10+'Summary New'!M11+'Summary New'!M12+'Summary New'!M13+'Summary New'!M14+'Summary New'!M15+'Summary New'!M16 -> 15483123.28 | F41: ='Summary New'!M17+'Summary New'!M18+'Summary New'!M19+'Summary New'!M20+'Summary New'!M21+'Summary New'!M22+'Summary New'!M23+'Summary New'!M24+'Summary New'!M25+'Summary New'!M26 -> 91783611.48 | G41: ='Summary New'!M27+'Summary New'!M28+'Summary New'!M29+'Summary New'!M30 -> 1047939.186 | H41: ='Summary New'!M31+'Summary New'!M32+'Summary New'!M33+'Summary New'!M34+'Summary New'!M35+'Summary New'!M36+'Summary New'!M37+'Summary New'!M38 -> 63357609.45
B42: =SUM(C42:H42) -> 1 | C42: =C41/B41 -> 0.01553182618 | D42: =D41/B41 -> 0.218531982 | E42: =E41/B41 -> 0.06907978534 | F42: =F41/B41 -> 0.4095034356 | G42: =G41/B41 -> 0.004675504593 | H42: =H41/B41 -> 0.2826774663
B63: SCENARIO 3
B65: TOTAL | C65: Avoided Cost | D65: Additional Investment | E65: Efficiency Gain Funding & Finance | F65: Efficiency Gain: Delivery | G65: Efficiency Gain: Validation | H65: Efficiency Gain: Centre of Expertise
B66: =SUM(C66:H66) -> 103929056.8 | C66: ='Summary New'!O3+'Summary New'!O4 -> 2851744.584 | D66: ='Summary New'!O5+'Summary New'!O6+'Summary New'!O7 -> 36345150.21 | E66: ='Summary New'!O8+'Summary New'!O9+'Summary New'!O10+'Summary New'!O11+'Summary New'!O12+'Summary New'!O13+'Summary New'!O14+'Summary New'!O15+'Summary New'!O16 -> 4482725.893 | F66: ='Summary New'!O17+'Summary New'!O18+'Summary New'!O19+'Summary New'!O20+'Summary New'!O21+'Summary New'!O22+'Summary New'!O23+'Summary New'!O24+'Summary New'!O25+'Summary New'!O26 -> 35738625.54 | G66: ='Summary New'!O27+'Summary New'!O28+'Summary New'!O29+'Summary New'!O30 -> 1968881.07 | H66: ='Summary New'!O31+'Summary New'!O32+'Summary New'!O33+'Summary New'!O34+'Summary New'!O35+'Summary New'!O36+'Summary New'!O37+'Summary New'!O38 -> 22541929.51
B67: =SUM(C67:H67) -> 1 | C67: =C66/B66 -> 0.02743933863 | D67: =D66/B66 -> 0.3497111523 | E67: =E66/B66 -> 0.04313255629 | F67: =F66/B66 -> 0.3438752033 | G67: =G66/B66 -> 0.01894447164 | H67: =H66/B66 -> 0.2168972779

Sheet Split by Work Stream
A1: Sector | B1: 11/12 Benefit
A2: Hub | B2: ='Summary New'!N16+'Summary New'!N17+'Summary New'!N18+'Summary New'!N19+'Summary New'!N20+'Summary New'!N21+'Summary New'!N22 -> 11867680.37 | C2: =B2/B14 -> 0.0871085703
A3: Schools | B3: ='Summary New'!N8+'Summary New'!N11+'Summary New'!N23+'Summary New'!N24+'Summary New'!N25+'Summary New'!N26 -> 32186764.96 | C3: =B3/B14 -> 0.2362503026
A4: Environment | B4: ='Summary New'!N32+'Summary New'!N33+'Summary New'!N34+'Summary New'!N38+'Summary New'!N4 -> -863260.0542 | C4: =B4/B14 -> -0.006336313985
A5: Transport | B5: ='Summary New'!N10 -> -2342949.145 | C5: =B5/B14 -> -0.01719720652
A6: TIF | B6: ='Summary New'!N5 -> 30967803.16 | C6: =B6/B14 -> 0.2273031438
A7: Funding and Finance | B7: ='Summary New'!N12+'Summary New'!N13+'Summary New'!N14+'Summary New'!N15+'Summary New'!N37 -> 10879985.2 | C7: =B7/B14 -> 0.07985890467
A8: Operational Projects | B8: ='Summary New'!N31 -> 1586434.523 | C8: =B8/B14 -> 0.01164440218
A9: NHT/Housing | B9: ='Summary New'!N6+'Summary New'!N7 -> 17275351.68 | C9: =B9/B14 -> 0.1268007849
A10: Validation | B10: ='Summary New'!N27+'Summary New'!N28+'Summary New'!N29+'Summary New'!N30 -> 2345734.93 | C10: =B10/B14 -> 0.01721765413
A11: Asset Management | B11: ='Summary New'!N36 -> 23313725.2 | C11: =B11/B14 -> 0.1711223429
A12: Budget recast | B12: ='Summary New'!N35 -> 5411675.601 | C12: =B12/B14 -> 0.03972160605
A13: Avoided Costs - SFT wide | B13: ='Summary New'!N3 -> 3611154.071 | C13: =B13/B14 -> 0.02650580892
A14: TOTAL | B14: =SUM(B2:B13) -> 136240100.5 | C14: =SUM(C2:C13) -> 1

Sheet Variance Analysis
B2: Ref | C2: Title | E2: Scenario 2 (2010) in Year | F2: Scenario 2 (2011) in Year | G2: Variance (+/-) | I2: Scenario 2 (2010) Rolling | J2: Scenario 2 (2011) Rolling | K2: Variance (+/-) | M2: Comment | Q2: Scenario 2 (2010) data source
B3: A1 | C3: ='201112 CALCS'!D14 -> SFT Consolidated Avoided Cost Benefit | E3: =121000+30000+13200+100000+432000+24094+127125+472800+16200+100000+149000+77000+104268+8193+12596+12000+74000+121096+47824+134000+49155 -> 2225551 | F3: ='201112 CALCS'!F44 -> 2217600 | G3: =F3-E3 -> -7951 | I3: =SUM(Q3:Q18,Q20:Q24) -> 2225549.929 | J3: ='Summary New'!N3 -> 3611154.071 | K3: =J3-I3 -> 1385604.141 | M3: Moved to consolidated approach (Based on a generic assumption) | P3: A1 | Q3: 121000
B4: A2 | C4: Waste - Avoided Future Contract Variation | E4: 196385 | F4: ='201112 CALCS'!G652 -> 48247.16795 | G4: -148137.8321 | I4: =Q19 -> 196385.3356 | J4: ='Summary New'!N4 -> -80592.13257 | K4: =J4-I4 -> -276977.4682 | P4: A2 | Q4: 30000
B5: B1 | C5: TIF - Development of Model | E5: 22285114 | F5: ='201112 CALCS'!F880 -> 13733833.13 | G5: -8551280.87 | I5: =Q25 -> 22285113.58 | J5: ='Summary New'!N5 -> 30967803.16 | K5: 8682689.585 | M5: New Pilots added, Profile Moved out. Last year phasing: 10/11: 30: This year 11/12: 15% | P5: A3 | Q5: 13200
B6: B2 | C6: NHT - Phase 1 - Development of Model | E6: 15774897 | F6: ='201112 CALCS'!F918 -> 6579066.023 | G6: -9195830.977 | I6: =Q26 -> 15774896.96 | J6: ='Summary New'!N6 -> 6950926.276 | K6: -8823970.688 | M6: Last year phasing: 10/11: 60%, this year: 11/12: 20% | P6: A4 | Q6: 100000
B7: B3 | C7: NHT - Phase 2 - Development of Model | E7: 0 | F7: ='201112 CALCS'!F969 -> 10324425.41 | G7: 10324425.41 | J7: ='Summary New'!N7 -> 10324425.41 | K7: 10324425.41 | M7: New Benefit | P7: A5 | Q7: 432000
B8: C1 | C8: Western Isles and Orkney Schools Projects - Finance Structure | E8: 11824795 | F8: ='201112 CALCS'!F1007 -> 0 | G8: -11824795 | I8: =Q27 -> 11824794.65 | J8: ='Summary New'!N8 -> 2077294.686 | K8: -9747499.962 | M8: Last year phasing: 10/11:80%, this year: 11/12: 0% | P8: A6 | Q8: 24093.52475
B9: C2 | C9: Borders Rail Lower Finacing Costs | E9: -255142 | F9: ='201112 CALCS'!F1045 -> 0 | G9: 255142 | I9: -255142.316 | J9: ='Summary New'!N9 -> 0 | K9: 255142.316 | M9: Removed Benefit | P9: A7 | Q9: 127125.25
B10: C3 | C10: Borders Rail Competition | E10: 424828 | F10: ='201112 CALCS'!F1083 -> 0 | G10: -424828 | I10: 424828.086 | J10: ='Summary New'!N10 -> -2342949.145 | K10: -2767777.231 | M10: Removed Benefit | P10: A8 | Q10: 472800
B11: C4 | C11: Orkney Schools Projects - Business Case Diligence | E11: 353896 | F11: ='201112 CALCS'!F1121 -> 0 | G11: -353896 | I11: 353895.5185 | J11: ='Summary New'!N11 -> 57877.66342 | K11: -296017.8551 | M11: Last year phasing 10/11: 100%, this year 11/12: 0% | P11: A9 | Q11: 16200
B12: C5 | C12: RHSC/DCN Procurement Strategy and Increased Competition | E12: 361130 | F12: ='201112 CALCS'!F1159 -> 804291.7807 | G12: 443161.7807 | I12: 361129.5653 | J12: ='Summary New'!N12 -> 845308.1057 | K12: 484178.5404 | M12: Last year Phasing 10/11: 25%, this year 11/12: 50% | P12: A10 | Q12: 100000
B13: C6 | C13: NPD Contract - Saved Procurement Time | E13: 780215 | F13: ='201112 CALCS'!F1197 -> 660775.2275 | G13: -119439.7725 | I13: 780215.3107 | J13: ='Summary New'!N13 -> 871722.7581 | K13: 91507.44742 | M13: Last year phasing 10/11: 60%, this year 11/12: 40% | P13: A11 | Q13: 149000
B14: C7 | C14: NPD Contract - Optimal Risk Transfer | E14: 849219 | F14: ='201112 CALCS'!F1235 -> 3054294.401 | G14: 2205075.401 | I14: 849219.1179 | J14: ='Summary New'!N14 -> 3709429.242 | K14: 2860210.125 | M14: Last year Phasing, 10/11: 33%, this year 11/12: 67% | P14: A12 | Q14: 77000
B15: C8 | C15: NPD Programme - Reduced Cost of Capital | E15: 554195 | F15: ='201112 CALCS'!F1273 -> 1177138.518 | G15: 622943.5185 | I15: 554194.573 | J15: ='Summary New'!N15 -> 1211513.205 | K15: 657318.6317 | M15: Last year phasing: 10/11: 20%, this year 11/12: 40% | P15: A13 | Q15: 104267.935
B16: C9 | C16: hub - Return on Working capital investment | E16: 15718 | F16: ='201112 CALCS'!F1311 -> 48881.70862 | G16: 33163.70862 | I16: 15717.89927 | J16: ='Summary New'!N16 -> 130927.2266 | K16: 115209.3273 | M16: Last year phasing 10/11: 50%, this year 11/12: 33% | P16: A14 | Q16: 8193.038392
B17: D1 | C17: Hub Programme - Reduced Procurement Time | E17: 3005297 | F17: ='201112 CALCS'!F1349 -> 1932853.678 | G17: -1072443.322 | I17: 3005296.792 | J17: ='Summary New'!N17 -> 4796981.516 | K17: 1791684.723 | M17: 30% / 20% | P17: A15 | Q17: 12595.99639
B18: D2 | C18: Hub Programme - Capital Costs Continuous Improvement | E18: 3235532 | F18: ='201112 CALCS'!F1387 -> 1038860.251 | G18: -2196671.749 | I18: 3235532.494 | J18: ='Summary New'!N18 -> -1044898.64 | K18: -4280431.134 | M18: 30%/20% | P18: A16 | Q18: 12000
B19: D3 | C19: Hub Programme - Bid Costs Savings | E19: 1460486 | F19: ='201112 CALCS'!F1425 -> 1218043.179 | G19: -242442.8214 | I19: 1460486.351 | J19: ='Summary New'!N19 -> 3698237.81 | K19: 2237751.459 | M19: 30%/20% | P19: A17 | Q19: 196385.3356
B20: D4 | C20: Hub Programme - Public Sector Investment Returns | E20: 715330 | F20: ='201112 CALCS'!F1463 -> 481812.0782 | G20: -233517.9218 | I20: 715330.1635 | J20: ='Summary New'!N20 -> 1291434.332 | K20: 576104.1683 | M20: 30%/20% | P20: A18 | Q20: 74000
B21: D5 | C21: Hub Programme - Reduced Rates of Return | E21: 1089312 | F21: ='201112 CALCS'!F1501 -> 1109030.359 | G21: 19718.35909 | I21: 1089311.613 | J21: ='Summary New'!N21 -> 2972610.994 | K21: 1883299.381 | M21: 30%/20% | P21: A19 | Q21: 121095.6522
B22: D6 | C22: Hub Programme - Dialogue Stage Public Sector Savings | E22: 374944 | F22: ='201112 CALCS'!F1539 -> 0 | G22: -374944 | I22: 374944.3727 | J22: ='Summary New'!N22 -> 22387.1347 | K22: -352557.238 | M22: 41%/0% | P22: A20 | Q22: 47823.94326
B23: D7 | C23: Schools Programme - Pilot Project Savings | E23: 629130 | F23: ='201112 CALCS'!F1577 -> 0 | G23: -629130 | I23: 629129.5982 | J23: ='Summary New'!N23 -> 262793.7343 | K23: -366335.8639 | M23: B to a / 50%/0% | P23: A21 | Q23: 134000
B24: D8 | C24: Schools Programme - Needs Identification | E24: 2405261 | F24: ='201112 CALCS'!F1615 -> 0 | G24: -2405261 | I24: 2405260.915 | J24: ='Summary New'!N24 -> 2453170.893 | K24: 47909.97775 | M24: 0% this year | P24: A22 | Q24: 49154.58937
B25: D8a | C25: Schools Programme - Needs Identification - Addition Benefit Secondary Schools | E25: 0 | F25: ='201112 CALCS'!F1653 -> 26050115.12 | G25: 26050115.12 | I25: 0 | J25: ='Summary New'!N25 -> 26050115.12 | K25: 26050115.12 | M25: New Benefit | P25: B1 | Q25: 22285113.58
B26: D9 | C26: Schools Programme - Continuous Improvement Savings | E26: 3816436 | F26: ='201112 CALCS'!F1691 -> 2065020.352 | G26: -1751415.648 | I26: =Q44 -> 3816435.526 | J26: ='Summary New'!N26 -> 1285512.872 | K26: -2530922.654 | M26: 20/20% | P26: B2 | Q26: 15774896.96
B27: E1 | C27: Validation - Non-Standard Civils Projects (FRC) | E27: 6748396 | F27: ='201112 CALCS'!F1729 -> 0 | G27: -6748396 | I27: =Q46 -> 6748395.863 | J27: ='Summary New'!N27 -> 1766759.625 | K27: -4981636.238 | M27: B to A, 50% / 0% | P27: C1 | Q27: 11824794.65
B28: E2 | C28: Validation - Standard Accommodation Projects | E28: 1060483 | F28: ='201112 CALCS'!F1767 -> 183652.3991 | G28: -876830.6009 | I28: 1060483.465 | J28: ='Summary New'!N28 -> -705306.559 | K28: -1765790.024 | M28: C to B33%/33% ? Took projects out. | P28: C2 | Q28: -255142.316
B29: E3 | C29: Validation - CMAL | E29: 11212056 | F29: ='201112 CALCS'!F1805 -> 0 | G29: -11212056 | I29: 11212056.22 | J29: ='Summary New'!N29 -> 1601919.76 | K29: -9610136.463 | M29: Removed Benefit | P29: C3 | Q29: 424828.086
B30: E4 | C30: Validation - Non-Standard Civils Projects (Borders Railway) | E30: 317638 | F30: ='201112 CALCS'!F1843 -> 0 | G30: -317638 | I30: 317637.8964 | J30: ='Summary New'!N30 -> -317637.8964 | K30: -635275.7928 | M30: Removed Benefit | P30: C4 | Q30: 353895.5185
B31: F1 | C31: Operational Projects Support | E31: 2201958 | F31: ='201112 CALCS'!F1881 -> 1537583.89 | G31: -664374.1101 | I31: 2201958.219 | J31: ='Summary New'!N31 -> 1586434.523 | K31: -615523.696 | M31: D-D 15/15% - look into | P31: C5 | Q31: 361129.5653
B32: G1 | C32: Waste - Procurement Timetable Benefits - Avoided Disposal Costs - Projects other than Clyde Valley | E32: 3198 | F32: ='201112 CALCS'!F1919 -> 55881.78725 | G32: 52683.78725 | I32: 3198.382648 | J32: ='Summary New'!N32 -> -64078.29561 | K32: -67276.67825 | M32: 30%/25% | P32: C6 | Q32: 780215.3107
B33: G2 | C33: Waste - Service Cost Benefits (Reduced Gate Fees) - Projects other than Clyde Valley | E33: -1011763 | F33: ='201112 CALCS'!F1957 -> 668951.9758 | G33: 1680714.976 | I33: -1011762.706 | J33: ='Summary New'!N33 -> 455904.9083 | K33: 1467667.615 | M33: 30%/25% | P33: C7 | Q33: 849219.1179
B34: G3 | C34: Waste - Reduced Gate Fees - Clyde Valley | E34: 2579914 | F34: ='201112 CALCS'!F1995 -> 230762.2658 | G34: -2349151.734 | I34: 2579913.734 | J34: ='Summary New'!N34 -> -2233770.335 | K34: -4813684.069 | M34: D to C, 33%/20% | P34: C8 | Q34: 554194.573
B35: G4 | C35: Budget Recast - Initial Benefit Identification | E35: 30422606 | F35: ='201112 CALCS'!F2033 -> 3583428.147 | G35: -26839177.85 | I35: 30422605.87 | J35: ='Summary New'!N35 -> 5411675.601 | K35: -25010930.27 | M35: 90%/10% | P35: C9 | Q35: 15717.89927
B36: G5 | C36: Asset Management | E36: 7064898 | F36: ='201112 CALCS'!F2071 -> 22783967.35 | G36: 15719069.35 | I36: 7064897.931 | J36: ='Summary New'!N36 -> 23313725.2 | K36: 16248827.27 | M36: 5%/35% | P36: D1 | Q36: 3005296.792
B37: G6 | C37: NPD Programme - Needs not Wants - Scrutiny & Challenge | E37: 448627 | F37: ='201112 CALCS'!F2109 -> 4020547.213 | G37: 3571920.213 | I37: 448626.5285 | J37: ='Summary New'!N37 -> 4242011.887 | K37: 3793385.358 | M37: D to C, 10%/60% | P37: D2 | Q37: 3235532.494
B38: G7 | C38: ='201112 CALCS'!D2117 -> Energy Efficient Streetlighting Model for Local Authorities | E38: 0 | F38: ='201112 CALCS'!F2147 -> 1059275.801 | G38: 1059275.801 | I38: 0 | J38: ='Summary New'!N38 -> 1059275.801 | K38: 1059275.801 | M38: New Benefit | P38: D3 | Q38: 1460486.351
B39: TOTAL | E39: =SUM(E3:E38) -> 133170540 | F39: =SUM(F3:F38) -> 106668339.2 | G39: =SUM(G3:G38) -> -26502200.79 | I39: =SUM(I3:I38) -> 133170537.4 | J39: =SUM(J3:J38) -> 136240100.5 | K39: =SUM(K3:K38) -> 3069563.067 | M39: =SUM(M3:M37) -> 0 | P39: D4 | Q39: 715330.1635
P40: D5 | Q40: 1089311.613
P41: D6 | Q41: 374944.3727
P42: D7 | Q42: 629129.5982
P43: D8 | Q43: 2405260.915
P44: D9 | Q44: 3816435.526
P45: D10 | Q45: 0
P46: E1 | Q46: 6748395.863
P47: E2 | Q47: 1060483.465
P48: E3 | Q48: 11212056.22
P49: E4 | Q49: 317637.8964
P50: F1 | Q50: 2201958.219
P51: G1 | Q51: 3198.382648
P52: G2 | Q52: -1011762.706
P53: G3 | Q53: 2579913.734
P54: G4 | Q54: 30422605.87
P55: G5 | Q55: 7064897.931
P56: G6 | Q56: 448626.5285

Sheet 201112 CALCS
B1: Scottish Futures Trust
B2: Benefits Statement
B3: Calculations
B4: Benefit Year | C4: 2011/12
B5: Discount Rate | C5: 0.035
B6: Confidence Reduction Factor for Scenario 3 | C6: 0.2
B7: NB: All figures are in £'s unless otherwise stated
D8: 2009/10 | E8: 2010/11 | F8: 2011/12 | G8: 2012/13 | H8: 2013/14 | I8: 2014/15 | J8: 2015/16 | K8: 2016/17 | L8: 2017/18 | M8: 2018/19 | N8: 2019/20 | O8: 2020/21 | P8: 2021/22 | Q8: 2022/23 | R8: 2023/24 | S8: 2024/25 | T8: 2025/26 | U8: 2026/27 | V8: 2027/28 | W8: 2028/29 | X8: 2029/30 | Y8: 2030/31 | Z8: 2031/32 | AA8: 2032/33 | AB8: 2033/34 | AC8: 2034/35 | AD8: 2035/36 | AE8: 2036/37 | AF8: 2037/38 | AG8: 2038/39 | AH8: 2039/40 | AI8: 2040/41 | AJ8: 2041/42 | AK8: 2042/43 | AL8: 2043/44 | AM8: 2044/45 | AN8: 2045/46 | AO8: 2046/47 | AP8: 2047/48
C11: =IF(SUM(D12:AN12)<>C10,"CHECK","OK ") -> OK
B14: Benefit Ref & Title | C14: A1 | D14: SFT Consolidated Avoided Cost Benefit
B15: Benefit Owner & Description | C15: AY
B16: VFM Driver (Select From Menu) | C16: Centre of Expertise
C17: Delivery
C18: Aggregation & Collaboration
C19: Funding & Finance
C20: Validation
C21: Centre of Expertise
C22: Other
B23: Benefit Type (Select From Menu) | C23: Avoided Cost
C24: Avoided Cost
C25: Additional Investment
C26: Efficiency Gain: Funding and Finance
C27: Efficiency Gain: Validation
C28: Efficiency Gain: Delivery
C29: Efficiency Gain: Centre of Expertise
B30: Benefit Sharing (Select From Menu) | C30: SFT | D30: =VLOOKUP(C30,'Calcs Refs'!$A$14:$C$17,3,FALSE) -> 1
C31: SFT
C32: SFT/SG
C33: SFT/Local Authority
C34: SFT/SG/LA
B35: Confidence Level (Select From Menu) | C35: A - High | D35: =VLOOKUP(C35,'[1]Look Up Tables'!$B$6:$D$9,3) -> 1
C36: A - High
C37: B - Very Good
C38: C - Good
C39: D - Moderate
B40: Unfactored Cashflow of Benefit | C40: =SUM(D40:AN40) -> 6652800 | D40: =25*1200*224*33% -> 2217600 | E40: =D40 -> 2217600 | F40: =25*1200*224*33% -> 2217600 | O40: 0 | P40: 0 | Q40: 0 | R40: 0 | S40: 0 | T40: 0 | U40: 0 | V40: 0 | W40: 0 | X40: 0 | Y40: 0 | Z40: 0 | AA40: 0 | AB40: 0 | AC40: 0 | AD40: 0 | AE40: 0 | AF40: 0 | AG40: 0 | AH40: 0 | AI40: 0 | AJ40: 0 | AK40: 0 | AL40: 0 | AM40: 0 | AN40: 0 | AO40: 0 | AP40: 0
B41: Factored Cashflow of Benefit | C41: =SUM(D41:AN41) -> 6652800 | D41: =D40*$D35*$D30 -> 2217600 | E41: =E40*$D35*$D30 -> 2217600 | F41: 2217600 | O41: 0 | P41: 0 | Q41: 0 | R41: 0 | S41: 0 | T41: 0 | U41: 0 | V41: 0 | W41: 0 | X41: 0 | Y41: 0 | Z41: 0 | AA41: 0 | AB41: 0 | AC41: 0 | AD41: 0 | AE41: 0 | AF41: 0 | AG41: 0 | AH41: 0 | AI41: 0 | AJ41: 0 | AK41: 0 | AL41: 0 | AM41: 0 | AN41: 0 | AO41: 0 | AP41: 0
B42: % Benefit Recognition | C42: =IF(SUM(D42:AN42)<>1,"CHECK","100% ") -> 100% | D42: 0.3333333333 | E42: 0.3333333333 | F42: 0.3333333333
B43: NPV & Annual Measured Value - Scenario 1 | C43: =NPV($C$5,G41:AP41)+D41+E41+F41 -> 6652800 | D43: =IF(D42>0,(D42*$C43),0) -> 2217600 | E43: =IF(E42>0,(E42*$C43),0) -> 2217600 | F43: 2217600 | G43: 0 | H43: 0 | I43: 0 | J43: 0 | K43: 0 | L43: 0 | M43: 0 | N43: 0 | O43: 0 | P43: 0 | Q43: 0 | R43: 0 | S43: 0 | T43: 0 | U43: 0 | V43: 0 | W43: 0 | X43: 0 | Y43: 0 | Z43: 0 | AA43: 0 | AB43: 0 | AC43: 0 | AD43: 0 | AE43: 0 | AF43: 0 | AG43: 0 | AH43: 0 | AI43: 0 | AJ43: 0 | AK43: 0 | AL43: 0 | AM43: 0 | AN43: 0 | AO43: 0 | AP43: 0
B44: NPV & Annual Measured Value - Scenario 2 | C44: =NPV($C$5,G41:O41)+D41+E41+F41 -> 6652800 | D44: =IF(D42>0,(D42*$C44),0) -> 2217600 | E44: =IF(E42>0,(E42*$C44),0) -> 2217600 | F44: 2217600 | G44: 0 | H44: 0 | I44: 0 | J44: 0 | K44: 0 | L44: 0 | M44: 0 | N44: 0 | O44: 0 | P44: 0 | Q44: 0 | R44: 0 | S44: 0 | T44: 0 | U44: 0 | V44: 0 | W44: 0 | X44: 0 | Y44: 0 | Z44: 0 | AA44: 0 | AB44: 0 | AC44: 0 | AD44: 0 | AE44: 0 | AF44: 0 | AG44: 0 | AH44: 0 | AI44: 0 | AJ44: 0 | AK44: 0 | AL44: 0 | AM44: 0 | AN44: 0 | AO44: 0 | AP44: 0
B45: NPV & Annual Measured Value - Scenario 3 | C45: =(NPV($C$5,G41:O41)+D41+E41+F41)*(D35-$C$6)/D35 -> 5322240 | D45: =IF(D42>0,(D42*$C45),0) -> 1774080 | E45: =IF(E42>0,(E42*$C45),0) -> 1774080 | F45: 1774080 | G45: 0 | H45: 0 | I45: 0 | J45: 0 | K45: 0 | L45: 0 | M45: 0 | N45: 0 | O45: 0 | P45: 0 | Q45: 0 | R45: 0 | S45: 0 | T45: 0 | U45: 0 | V45: 0 | W45: 0 | X45: 0 | Y45: 0 | Z45: 0 | AA45: 0 | AB45: 0 | AC45: 0 | AD45: 0 | AE45: 0 | AF45: 0 | AG45: 0 | AH45: 0 | AI45: 0 | AJ45: 0 | AK45: 0 | AL45: 0 | AM45: 0 | AN45: 0 | AO45: 0 | AP45: 0
B47: Total Cashflow of benefit
B48: Total NPV
C49: =IF(SUM(D50:AN50)<>C48,"CHECK","OK ") -> OK
B50: Total Measured Value
B52: Benefit Ref & Title | C52: A2 | D52: Waste - Gateway Review Costs Avoided
B53: Benefit Owner & Description | C53: AY
B54: VFM Driver (Select From Menu) | C54: Validation
C55: Delivery
C56: Aggregation & Collaboration
C57: Funding & Finance
C58: Validation
C59: Centre of Expertise
C60: Other
B61: Benefit Type (Select From Menu) | C61: Avoided Cost
C62: Avoided Cost
C63: Additional Investment
C64: Efficiency Gain: Funding and Finance
C65: Efficiency Gain: Validation
C66: Efficiency Gain: Delivery
C67: Efficiency Gain: Centre of Expertise
B68: Benefit Sharing (Select From Menu) | C68: SFT | D68: =VLOOKUP(C68,'Calcs Refs'!$A$14:$C$17,3,FALSE) -> 1
C69: SFT
C70: SFT/SG
C71: SFT/Local Authority
C72: SFT/SG/LA
B73: Confidence Level (Select From Menu) | C73: A - High | D73: =VLOOKUP(C73,'[1]Look Up Tables'!$B$6:$D$9,3) -> 1
C74: A - High
C75: B - Very Good
C76: C - Good
C77: D - Moderate
B78: Unfactored Cashflow of Benefit | C78: =SUM(D78:AN78) -> 0 | D78: 0 | E78: 0 | F78: 0 | G78: 0 | H78: 0 | I78: 0 | J78: 0 | K78: 0 | L78: 0 | M78: 0 | N78: 0 | O78: 0 | P78: 0 | Q78: 0 | R78: 0 | S78: 0 | T78: 0 | U78: 0 | V78: 0 | W78: 0 | X78: 0 | Y78: 0 | Z78: 0 | AA78: 0 | AB78: 0 | AC78: 0 | AD78: 0 | AE78: 0 | AF78: 0 | AG78: 0 | AH78: 0 | AI78: 0 | AJ78: 0 | AK78: 0 | AL78: 0 | AM78: 0 | AN78: 0 | AO78: 0 | AP78: 0
B79: Factored Cashflow of Benefit | C79: =SUM(D79:AN79) -> 0 | D79: =D78*$D73*$D68 -> 0 | E79: =E78*$D73*$D68 -> 0 | F79: 0 | G79: 0 | H79: 0 | I79: 0 | J79: 0 | K79: 0 | L79: 0 | M79: 0 | N79: 0 | O79: 0 | P79: 0 | Q79: 0 | R79: 0 | S79: 0 | T79: 0 | U79: 0 | V79: 0 | W79: 0 | X79: 0 | Y79: 0 | Z79: 0 | AA79: 0 | AB79: 0 | AC79: 0 | AD79: 0 | AE79: 0 | AF79: 0 | AG79: 0 | AH79: 0 | AI79: 0 | AJ79: 0 | AK79: 0 | AL79: 0 | AM79: 0 | AN79: 0 | AO79: 0 | AP79: 0
B80: % Benefit Recognition | C80: =IF(SUM(D80:AN80)<>1,"CHECK","100% ") -> 100% | D80: 0.33 | E80: 0.67
B81: NPV & Annual Measured Value - Scenario 1 | C81: =NPV($C$5,G79:AP79)+D79+E79+F79 -> 0 | D81: =IF(D80>0,(D80*$C81),0) -> 0 | E81: 0 | F81: 0 | G81: 0 | H81: 0 | I81: 0 | J81: 0 | K81: 0 | L81: 0 | M81: 0 | N81: 0 | O81: 0 | P81: 0 | Q81: 0 | R81: 0 | S81: 0 | T81: 0 | U81: 0 | V81: 0 | W81: 0 | X81: 0 | Y81: 0 | Z81: 0 | AA81: 0 | AB81: 0 | AC81: 0 | AD81: 0 | AE81: 0 | AF81: 0 | AG81: 0 | AH81: 0 | AI81: 0 | AJ81: 0 | AK81: 0 | AL81: 0 | AM81: 0 | AN81: 0 | AO81: 0 | AP81: 0
B82: NPV & Annual Measured Value - Scenario 2 | C82: =NPV($C$5,G79:O79)+D79+E79+F79 -> 0 | D82: =IF(D80>0,(D80*$C82),0) -> 0 | E82: =IF(E80>0,(E80*$C82),0) -> 0 | F82: 0 | G82: 0 | H82: 0 | I82: 0 | J82: 0 | K82: 0 | L82: 0 | M82: 0 | N82: 0 | O82: 0 | P82: 0 | Q82: 0 | R82: 0 | S82: 0 | T82: 0 | U82: 0 | V82: 0 | W82: 0 | X82: 0 | Y82: 0 | Z82: 0 | AA82: 0 | AB82: 0 | AC82: 0 | AD82: 0 | AE82: 0 | AF82: 0 | AG82: 0 | AH82: 0 | AI82: 0 | AJ82: 0 | AK82: 0 | AL82: 0 | AM82: 0 | AN82: 0 | AO82: 0 | AP82: 0
B83: NPV & Annual Measured Value - Scenario 3 | C83: =(NPV($C$5,G79:O79)+D79+E79+F79)*(D73-$C$6)/D73 -> 0 | D83: =IF(D80>0,(D80*$C83),0) -> 0 | E83: =IF(E80>0,(E80*$C83),0) -> 0 | F83: 0 | G83: 0 | H83: 0 | I83: 0 | J83: 0 | K83: 0 | L83: 0 | M83: 0 | N83: 0 | O83: 0 | P83: 0 | Q83: 0 | R83: 0 | S83: 0 | T83: 0 | U83: 0 | V83: 0 | W83: 0 | X83: 0 | Y83: 0 | Z83: 0 | AA83: 0 | AB83: 0 | AC83: 0 | AD83: 0 | AE83: 0 | AF83: 0 | AG83: 0 | AH83: 0 | AI83: 0 | AJ83: 0 | AK83: 0 | AL83: 0 | AM83: 0 | AN83: 0 | AO83: 0 | AP83: 0
B85: Total Cashflow of benefit
B86: Total NPV
C87: =IF(SUM(D88:AN88)<>C86,"CHECK","OK ") -> OK
B88: Total Measured Value
B90: Benefit Ref & Title | C90: A3 | D90: Waste - Data Capture and Market Engagement
B91: Benefit Owner & Description | C91: AY
B92: VFM Driver (Select From Menu) | C92: Centre of Expertise
C93: Delivery
C94: Aggregation & Collaboration
C95: Funding & Finance
C96: Validation
C97: Centre of Expertise
C98: Other
B99: Benefit Type (Select From Menu) | C99: Avoided Cost
C100: Avoided Cost
C101: Additional Investment
C102: Efficiency Gain: Funding and Finance
C103: Efficiency Gain: Validation
C104: Efficiency Gain: Delivery
C105: Efficiency Gain: Centre of Expertise
B106: Benefit Sharing (Select From Menu) | C106: SFT | D106: =VLOOKUP(C106,'Calcs Refs'!$A$14:$C$17,3,FALSE) -> 1
C107: SFT
C108: SFT/SG
C109: SFT/Local Authority
C110: SFT/SG/LA
B111: Confidence Level (Select From Menu) | C111: A - High | D111: =VLOOKUP(C111,'[1]Look Up Tables'!$B$6:$D$9,3) -> 1
C112: A - High
C113: B - Very Good
C114: C - Good
C115: D - Moderate
B116: Unfactored Cashflow of Benefit | C116: =SUM(D116:AN116) -> 0 | D116: 0 | E116: 0 | F116: 0 | G116: 0 | H116: 0 | I116: 0 | J116: 0 | K116: 0 | L116: 0 | M116: 0 | N116: 0 | O116: 0 | P116: 0 | Q116: 0 | R116: 0 | S116: 0 | T116: 0 | U116: 0 | V116: 0 | W116: 0 | X116: 0 | Y116: 0 | Z116: 0 | AA116: 0 | AB116: 0 | AC116: 0 | AD116: 0 | AE116: 0 | AF116: 0 | AG116: 0 | AH116: 0 | AI116: 0 | AJ116: 0 | AK116: 0 | AL116: 0 | AM116: 0 | AN116: 0 | AO116: 0 | AP116: 0
B117: Factored Cashflow of Benefit | C117: =SUM(D117:AN117) -> 0 | D117: =D116*$D111*$D106 -> 0 | E117: =E116*$D111*$D106 -> 0 | F117: 0 | G117: 0 | H117: 0 | I117: 0 | J117: 0 | K117: 0 | L117: 0 | M117: 0 | N117: 0 | O117: 0 | P117: 0 | Q117: 0 | R117: 0 | S117: 0 | T117: 0 | U117: 0 | V117: 0 | W117: 0 | X117: 0 | Y117: 0 | Z117: 0 | AA117: 0 | AB117: 0 | AC117: 0 | AD117: 0 | AE117: 0 | AF117: 0 | AG117: 0 | AH117: 0 | AI117: 0 | AJ117: 0 | AK117: 0 | AL117: 0 | AM117: 0 | AN117: 0 | AO117: 0 | AP117: 0
B118: % Benefit Recognition | C118: =IF(SUM(D118:AN118)<>1,"CHECK","100% ") -> 100% | D118: 0.79 | E118: 0.21
B119: NPV & Annual Measured Value - Scenario 1 | C119: =NPV($C$5,F117:AO117)+D117+E117 -> 0 | D119: =IF(D118>0,(D118*$C119),0) -> 0 | E119: 0 | F119: 0 | G119: 0 | H119: 0 | I119: 0 | J119: 0 | K119: 0 | L119: 0 | M119: 0 | N119: 0 | O119: 0 | P119: 0 | Q119: 0 | R119: 0 | S119: 0 | T119: 0 | U119: 0 | V119: 0 | W119: 0 | X119: 0 | Y119: 0 | Z119: 0 | AA119: 0 | AB119: 0 | AC119: 0 | AD119: 0 | AE119: 0 | AF119: 0 | AG119: 0 | AH119: 0 | AI119: 0 | AJ119: 0 | AK119: 0 | AL119: 0 | AM119: 0 | AN119: 0 | AO119: 0 | AP119: 0
B120: NPV & Annual Measured Value - Scenario 2 | C120: =NPV($C$5,G117:O117)+D117+E117+F117 -> 0 | D120: =IF(D118>0,(D118*$C120),0) -> 0 | E120: =IF(E118>0,(E118*$C120),0) -> 0 | F120: 0 | G120: 0 | H120: 0 | I120: 0 | J120: 0 | K120: 0 | L120: 0 | M120: 0 | N120: 0 | O120: 0 | P120: 0 | Q120: 0 | R120: 0 | S120: 0 | T120: 0 | U120: 0 | V120: 0 | W120: 0 | X120: 0 | Y120: 0 | Z120: 0 | AA120: 0 | AB120: 0 | AC120: 0 | AD120: 0 | AE120: 0 | AF120: 0 | AG120: 0 | AH120: 0 | AI120: 0 | AJ120: 0 | AK120: 0 | AL120: 0 | AM120: 0 | AN120: 0 | AO120: 0 | AP120: 0
B121: NPV & Annual Measured Value - Scenario 3 | C121: =(NPV($C$5,G117:O117)+D117+E117+F117)*(D111-$C$6)/D111 -> 0 | D121: =IF(D118>0,(D118*$C121),0) -> 0 | E121: =IF(E118>0,(E118*$C121),0) -> 0 | F121: 0 | G121: 0 | H121: 0 | I121: 0 | J121: 0 | K121: 0 | L121: 0 | M121: 0 | N121: 0 | O121: 0 | P121: 0 | Q121: 0 | R121: 0 | S121: 0 | T121: 0 | U121: 0 | V121: 0 | W121: 0 | X121: 0 | Y121: 0 | Z121: 0 | AA121: 0 | AB121: 0 | AC121: 0 | AD121: 0 | AE121: 0 | AF121: 0 | AG121: 0 | AH121: 0 | AI121: 0 | AJ121: 0 | AK121: 0 | AL121: 0 | AM121: 0 | AN121: 0 | AO121: 0 | AP121: 0
B123: Total Cashflow of benefit
B124: Total NPV
C125: =IF(SUM(D126:AN126)<>C124,"CHECK","OK ") -> OK
B126: Total Measured Value
B128: Benefit Ref & Title | C128: A4 | D128: Residual Waste - Programme Support
B129: Benefit Owner & Description | C129: AY
B130: VFM Driver (Select From Menu) | C130: Centre of Expertise
C131: Delivery
C132: Aggregation & Collaboration
C133: Funding & Finance
C134: Validation
C135: Centre of Expertise
C136: Other
B137: Benefit Type (Select From Menu) | C137: Avoided Cost
C138: Avoided Cost
C139: Additional Investment
C140: Efficiency Gain: Funding and Finance
C141: Efficiency Gain: Validation
C142: Efficiency Gain: Delivery
C143: Efficiency Gain: Centre of Expertise
B144: Benefit Sharing (Select From Menu) | C144: SFT | D144: =VLOOKUP(C144,'Calcs Refs'!$A$14:$C$17,3,FALSE) -> 1
C145: SFT
C146: SFT/SG
C147: SFT/Local Authority
C148: SFT/SG/LA
B149: Confidence Level (Select From Menu) | C149: A - High | D149: =VLOOKUP(C149,'[1]Look Up Tables'!$B$6:$D$9,3) -> 1
C150: A - High
C151: B - Very Good
C152: C - Good
C153: D - Moderate
B154: Unfactored Cashflow of Benefit | C154: =SUM(D154:AN154) -> 0 | D154: 0 | E154: 0 | F154: 0 | G154: 0 | H154: 0 | I154: 0 | J154: 0 | K154: 0 | L154: 0 | M154: 0 | N154: 0 | O154: 0 | P154: 0 | Q154: 0 | R154: 0 | S154: 0 | T154: 0 | U154: 0 | V154: 0 | W154: 0 | X154: 0 | Y154: 0 | Z154: 0 | AA154: 0 | AB154: 0 | AC154: 0 | AD154: 0 | AE154: 0 | AF154: 0 | AG154: 0 | AH154: 0 | AI154: 0 | AJ154: 0 | AK154: 0 | AL154: 0 | AM154: 0 | AN154: 0 | AO154: 0 | AP154: 0
B155: Factored Cashflow of Benefit | C155: =SUM(D155:AN155) -> 0 | D155: =D154*$D149*$D144 -> 0 | E155: =E154*$D149*$D144 -> 0 | F155: 0 | G155: 0 | H155: 0 | I155: 0 | J155: 0 | K155: 0 | L155: 0 | M155: 0 | N155: 0 | O155: 0 | P155: 0 | Q155: 0 | R155: 0 | S155: 0 | T155: 0 | U155: 0 | V155: 0 | W155: 0 | X155: 0 | Y155: 0 | Z155: 0 | AA155: 0 | AB155: 0 | AC155: 0 | AD155: 0 | AE155: 0 | AF155: 0 | AG155: 0 | AH155: 0 | AI155: 0 | AJ155: 0 | AK155: 0 | AL155: 0 | AM155: 0 | AN155: 0 | AO155: 0 | AP155: 0
B156: % Benefit Recognition | C156: =IF(SUM(D156:AN156)<>1,"CHECK","100% ") -> 100% | D156: 0.33 | E156: 0.67
B157: NPV & Annual Measured Value - Scenario 1 | C157: =NPV($C$5,G155:AP155)+D155+E155+F155 -> 0 | D157: =IF(D156>0,(D156*$C157),0) -> 0 | E157: 0 | F157: 0 | G157: 0 | H157: 0 | I157: 0 | J157: 0 | K157: 0 | L157: 0 | M157: 0 | N157: 0 | O157: 0 | P157: 0 | Q157: 0 | R157: 0 | S157: 0 | T157: 0 | U157: 0 | V157: 0 | W157: 0 | X157: 0 | Y157: 0 | Z157: 0 | AA157: 0 | AB157: 0 | AC157: 0 | AD157: 0 | AE157: 0 | AF157: 0 | AG157: 0 | AH157: 0 | AI157: 0 | AJ157: 0 | AK157: 0 | AL157: 0 | AM157: 0 | AN157: 0 | AO157: 0 | AP157: 0
B158: NPV & Annual Measured Value - Scenario 2 | C158: =NPV($C$5,G155:O155)+D155+E155+F155 -> 0 | D158: =IF(D156>0,(D156*$C158),0) -> 0 | E158: =IF(E156>0,(E156*$C158),0) -> 0 | F158: 0 | G158: 0 | H158: 0 | I158: 0 | J158: 0 | K158: 0 | L158: 0 | M158: 0 | N158: 0 | O158: 0 | P158: 0 | Q158: 0 | R158: 0 | S158: 0 | T158: 0 | U158: 0 | V158: 0 | W158: 0 | X158: 0 | Y158: 0 | Z158: 0 | AA158: 0 | AB158: 0 | AC158: 0 | AD158: 0 | AE158: 0 | AF158: 0 | AG158: 0 | AH158: 0 | AI158: 0 | AJ158: 0 | AK158: 0 | AL158: 0 | AM158: 0 | AN158: 0 | AO158: 0 | AP158: 0
B159: NPV & Annual Measured Value - Scenario 3 | C159: =(NPV($C$5,G155:O155)+D155+E155+F155)*(D149-$C$6)/D149 -> 0 | D159: =IF(D156>0,(D156*$C159),0) -> 0 | E159: =IF(E156>0,(E156*$C159),0) -> 0 | F159: 0 | G159: 0 | H159: 0 | I159: 0 | J159: 0 | K159: 0 | L159: 0 | M159: 0 | N159: 0 | O159: 0 | P159: 0 | Q159: 0 | R159: 0 | S159: 0 | T159: 0 | U159: 0 | V159: 0 | W159: 0 | X159: 0 | Y159: 0 | Z159: 0 | AA159: 0 | AB159: 0 | AC159: 0 | AD159: 0 | AE159: 0 | AF159: 0 | AG159: 0 | AH159: 0 | AI159: 0 | AJ159: 0 | AK159: 0 | AL159: 0 | AM159: 0 | AN159: 0 | AO159: 0 | AP159: 0
B161: Total Cashflow of benefit
B162: Total NPV
C163: =IF(SUM(D164:AN164)<>C162,"CHECK","OK ") -> OK
B164: Total Measured Value
B166: Benefit Ref & Title | C166: A5 | D166: Waste - Procurement Cost Benefits - avoided support costs
B167: Benefit Owner & Description | C167: AY
B168: VFM Driver (Select From Menu) | C168: Centre of Expertise
C169: Delivery
C170: Aggregation & Collaboration
C171: Funding & Finance
C172: Validation
C173: Centre of Expertise
C174: Other
B175: Benefit Type (Select From Menu) | C175: Avoided Cost
C176: Avoided Cost
C177: Additional Investment
C178: Efficiency Gain: Funding and Finance
C179: Efficiency Gain: Validation
C180: Efficiency Gain: Delivery
C181: Efficiency Gain: Centre of Expertise
B182: Benefit Sharing (Select From Menu) | C182: SFT | D182: =VLOOKUP(C182,'Calcs Refs'!$A$14:$C$17,3,FALSE) -> 1
C183: SFT
C184: SFT/SG
C185: SFT/Local Authority
C186: SFT/SG/LA
B187: Confidence Level (Select From Menu) | C187: A - High | D187: =VLOOKUP(C187,'[1]Look Up Tables'!$B$6:$D$9,3) -> 1
C188: A - High
C189: B - Very Good
C190: C - Good
C191: D - Moderate
B192: Unfactored Cashflow of Benefit | C192: =SUM(D192:AN192) -> 0 | D192: 0 | E192: 0 | F192: 0 | G192: 0 | H192: 0 | I192: 0 | J192: 0 | K192: 0 | L192: 0 | M192: 0 | N192: 0 | O192: 0 | P192: 0 | Q192: 0 | R192: 0 | S192: 0 | T192: 0 | U192: 0 | V192: 0 | W192: 0 | X192: 0 | Y192: 0 | Z192: 0 | AA192: 0 | AB192: 0 | AC192: 0 | AD192: 0 | AE192: 0 | AF192: 0 | AG192: 0 | AH192: 0 | AI192: 0 | AJ192: 0 | AK192: 0 | AL192: 0 | AM192: 0 | AN192: 0 | AO192: 0 | AP192: 0
B193: Factored Cashflow of Benefit | C193: =SUM(D193:AN193) -> 0 | D193: =D192*$D187*$D182 -> 0 | E193: =E192*$D187*$D182 -> 0 | F193: 0 | G193: 0 | H193: 0 | I193: 0 | J193: 0 | K193: 0 | L193: 0 | M193: 0 | N193: 0 | O193: 0 | P193: 0 | Q193: 0 | R193: 0 | S193: 0 | T193: 0 | U193: 0 | V193: 0 | W193: 0 | X193: 0 | Y193: 0 | Z193: 0 | AA193: 0 | AB193: 0 | AC193: 0 | AD193: 0 | AE193: 0 | AF193: 0 | AG193: 0 | AH193: 0 | AI193: 0 | AJ193: 0 | AK193: 0 | AL193: 0 | AM193: 0 | AN193: 0 | AO193: 0 | AP193: 0
B194: % Benefit Recognition | C194: =IF(SUM(D194:AN194)<>1,"CHECK","100% ") -> 100% | D194: 0.33 | E194: 0.67
B195: NPV & Annual Measured Value - Scenario 1 | C195: =NPV($C$5,G193:AP193)+D193+E193+F193 -> 0 | D195: =IF(D194>0,(D194*$C195),0) -> 0 | E195: 0 | F195: 0 | G195: 0 | H195: 0 | I195: 0 | J195: 0 | K195: 0 | L195: 0 | M195: 0 | N195: 0 | O195: 0 | P195: 0 | Q195: 0 | R195: 0 | S195: 0 | T195: 0 | U195: 0 | V195: 0 | W195: 0 | X195: 0 | Y195: 0 | Z195: 0 | AA195: 0 | AB195: 0 | AC195: 0 | AD195: 0 | AE195: 0 | AF195: 0 | AG195: 0 | AH195: 0 | AI195: 0 | AJ195: 0 | AK195: 0 | AL195: 0 | AM195: 0 | AN195: 0 | AO195: 0 | AP195: 0
B196: NPV & Annual Measured Value - Scenario 2 | C196: =NPV($C$5,G193:O193)+D193+E193+F193 -> 0 | D196: =IF(D194>0,(D194*$C196),0) -> 0 | E196: =IF(E194>0,(E194*$C196),0) -> 0 | F196: 0 | G196: 0 | H196: 0 | I196: 0 | J196: 0 | K196: 0 | L196: 0 | M196: 0 | N196: 0 | O196: 0 | P196: 0 | Q196: 0 | R196: 0 | S196: 0 | T196: 0 | U196: 0 | V196: 0 | W196: 0 | X196: 0 | Y196: 0 | Z196: 0 | AA196: 0 | AB196: 0 | AC196: 0 | AD196: 0 | AE196: 0 | AF196: 0 | AG196: 0 | AH196: 0 | AI196: 0 | AJ196: 0 | AK196: 0 | AL196: 0 | AM196: 0 | AN196: 0 | AO196: 0 | AP196: 0
B197: NPV & Annual Measured Value - Scenario 3 | C197: =(NPV($C$5,G193:O193)+D193+E193+F193)*(D187-$C$6)/D187 -> 0 | D197: =IF(D194>0,(D194*$C197),0) -> 0 | E197: =IF(E194>0,(E194*$C197),0) -> 0 | F197: 0 | G197: 0 | H197: 0 | I197: 0 | J197: 0 | K197: 0 | L197: 0 | M197: 0 | N197: 0 | O197: 0 | P197: 0 | Q197: 0 | R197: 0 | S197: 0 | T197: 0 | U197: 0 | V197: 0 | W197: 0 | X197: 0 | Y197: 0 | Z197: 0 | AA197: 0 | AB197: 0 | AC197: 0 | AD197: 0 | AE197: 0 | AF197: 0 | AG197: 0 | AH197: 0 | AI197: 0 | AJ197: 0 | AK197: 0 | AL197: 0 | AM197: 0 | AN197: 0 | AO197: 0 | AP197: 0
B199: Total Cashflow of benefit
B200: Total NPV
C201: =IF(SUM(D202:AN202)<>C200,"CHECK","OK ") -> OK
B202: Total Measured Value
B204: Benefit Ref & Title | C204: A6 | D204: ESA 95 - Consultancy Costs Avoided
B205: Benefit Owner & Description | C205: VC
B206: VFM Driver (Select From Menu) | C206: Funding & Finance
C207: Delivery
C208: Aggregation & Collaboration
C209: Funding & Finance
C210: Validation
C211: Centre of Expertise
C212: Other
B213: Benefit Type (Select From Menu) | C213: Avoided Cost
C214: Avoided Cost
... 1865 more rows

Sheet C5, C7 Supporting Info
B1: C7 - Optimal Risk Transfer
B3: Summary | C3: Risk Pricing | D3: Risk Cost Transferred to Public Sector | E3: Net Benefit | G3: Benefit Profile | H3: 2011/12 | I3: 2012/13 | J3: 2013/14 | K3: 2014/15 | L3: 2015/16 | M3: 2016/17 | N3: 2017/18 | O3: 2018/19 | P3: 2019/20 | Q3: 2020/21 | R3: 2021/2022 | S3: 2022/2023 | T3: 2023/2024 | U3: 2024/2025 | V3: 2025/2026 | W3: 2026/2027 | X3: 2027/2028 | Y3: 2028/2029 | Z3: 2029/2030 | AA3: 2030/2031 | AB3: 2031/2032 | AC3: 2032/2033 | AD3: 2033/2034 | AE3: 2034/2035 | AF3: 2035/2036
B4: Change in Law | C4: 0 | D4: 0 | E4: =C4-D4 -> 0 | G4: Assumption on Full Benefit Realisation | H4: 0 | I4: 0 | J4: 0 | K4: 0.25 | L4: 0.67 | M4: 1 | N4: 1 | O4: =N4 -> 1 | P4: =O4 -> 1 | Q4: =P4 -> 1 | R4: =Q4 -> 1 | S4: 1 | T4: 1 | U4: 1 | V4: 1 | W4: 1 | X4: 1 | Y4: 1 | Z4: 1 | AA4: 1 | AB4: 1 | AC4: 1 | AD4: 1 | AE4: 1 | AF4: 1
B5: Insurance General Market Risk | C5: =0.2*D22 -> 0.7 | D5: =D24*0.1*COUNT(D13:D21) -> 0.35 | E5: =C5-D5 -> 0.35 | G5: Benefit Cash Flow Profile | H5: =H4*$E$8*1000000 -> 0 | I5: =I4*$E$8*1000000 -> 0 | J5: 0 | K5: 320312.5 | L5: 858437.5 | M5: 1281250 | N5: 1281250 | O5: 1281250 | P5: 1281250 | Q5: 1281250 | R5: 1281250 | S5: 1281250 | T5: 1281250 | U5: 1281250 | V5: 1281250 | W5: 1281250 | X5: 1281250 | Y5: 1281250 | Z5: 1281250 | AA5: 1281250 | AB5: 1281250 | AC5: 1281250 | AD5: 1281250 | AE5: 1281250 | AF5: 1281250
B6: Utilities Volume Risk | C6: =E28 -> 1.575 | D6: =0.5*C6 -> 0.7875 | E6: =C6-D6 -> 0.7875
B7: Malicious Damage | C7: =(E40+E41)/1000000 -> 0.575 | D7: =0.75*C7 -> 0.43125 | E7: =C7-D7 -> 0.14375
E8: =SUM(E4:E7) -> 1.28125
B11: Insurance Derivation
B12: Project | C12: Estimated Capital Cost (m) | D12: Estimated Operational Insurance Cost
B13: RHSC / DCN | C13: 150 | D13: =0.0025*C13 -> 0.375
B14: M8
B15: AWPR
B16: Inverness College | C16: 50 | D16: =0.0025*C16 -> 0.125
B17: Kilmarnock College | C17: 50 | D17: 0.125
B18: Glasgow City Centre Colleges | C18: 200 | D18: 0.5
B19: 3 Other Acute Hospital Contracts | C19: 300 | D19: 0.75
B20: Hub Projects | C20: 200 | D20: 0.5
B21: Schools Projects | C21: 450 | D21: 1.125
B22: Total | C22: =SUM(C13:C21) -> 1400 | D22: =SUM(D13:D21) -> 3.5
B24: Average Insurance Premium | D24: =D22/COUNT(D13:D21) -> 0.5
B27: Utilities Volume Risk | C27: Estimated Capital Cost (000s) | D27: Est. Utitity Cost (2.5% of Capex) | E27: Risk Premium @ 4.5%
C28: =C22 -> 1400 | D28: =C28*2.5% -> 35 | E28: =D28*4.5% -> 1.575
B30: Benchmarks | C30: Construction Cost | D30: Utility Cost
B31: Project 1 | C31: 41653 | D31: 84 | E31: =D31/C31 -> 0.002016661465
B32: Project 2 | C32: 152500 | D32: 531 | E32: =D32/C32 -> 0.003481967213
B33: Project 3 | C33: 292200 | D33: 577 | E33: =D33/C33 -> 0.00197467488
B34: Project 4 | C34: 113320 | D34: 375 | E34: =D34/C34 -> 0.003309212849
B37: Malicious Damage | C37: Estimated Capital Cost (000s) | D37: Floor Space (m2) | E37: FM Charge @ £25/m2
C38: =C22 -> 1400 | D38: =1000000*C38/2500 -> 560000 | E38: =D38*25 -> 14000000
B40: Vandalism Risk (Schools) @ 7.5% | E40: =(C21/C22)*7.5%*E38 -> 337500
B41: Vandalism Risk (Other) @2.5% | E41: =((C22-C21)/C22)*2.5%*E38 -> 237500
B45: C5 | C45: RHSC/DCN Procurement Strategy & Increased Competition
B48: Lifecycle | C48: Estimate | D48: per square metre
B49: Hard FM | C49: Estimate | D49: per square metre
B50: Total | C50: Estimate | D50: per square metre
B51: GIFA | C51: Estimate | D51: m2
B52: Annual Cost | C52: 2530000
H54: 2014/15 | I54: 2015/16 | J54: 2016/17 | K54: 2017/18 | L54: 2018/19 | M54: 2019/20 | N54: 2020/21 | O54: 2021/22 | P54: 2022/23 | Q54: 2023/24 | R54: 2024/25 | S54: 2025/26 | T54: 2026/27 | U54: 2027/28 | V54: 2028/29 | W54: 2029/30 | X54: 2030/31 | Y54: 2031/32 | Z54: 2032/33 | AA54: 2033/34 | AB54: 2034/35 | AC54: 2035/36 | AD54: 2036/37 | AE54: 2037/38 | AF54: 2038/39 | AG54: 2039/40 | AH54: 2040/41 | AI54: 2041/42 | AJ54: 2042/43 | AK54: 2043/44
B55: UC Saving per annum from construction cost | H55: =C13*5%*1/12 -> 0.625 | I55: =H55 -> 0.625 | J55: =I55 -> 0.625 | K55: 0.625 | L55: 0.625 | M55: 0.625 | N55: 0.625 | O55: 0.625 | P55: 0.625 | Q55: 0.625 | R55: 0.625 | S55: 0.625 | T55: 0.625 | U55: 0.625 | V55: 0.625 | W55: 0.625 | X55: 0.625 | Y55: 0.625 | Z55: 0.625 | AA55: 0.625 | AB55: 0.625 | AC55: 0.625 | AD55: 0.625 | AE55: 0.625 | AF55: 0.625 | AG55: 0.625 | AH55: 0.625
B56: UC Saving per annum from hard FM and lifecycle cost | H56: =C52*5%/1000000 -> 0.1265 | I56: =H56 -> 0.1265 | J56: =I56 -> 0.1265 | K56: 0.1265 | L56: 0.1265 | M56: 0.1265 | N56: 0.1265 | O56: 0.1265 | P56: 0.1265 | Q56: 0.1265 | R56: 0.1265 | S56: 0.1265 | T56: 0.1265 | U56: 0.1265 | V56: 0.1265 | W56: 0.1265 | X56: 0.1265 | Y56: 0.1265 | Z56: 0.1265 | AA56: 0.1265 | AB56: 0.1265 | AC56: 0.1265 | AD56: 0.1265 | AE56: 0.1265 | AF56: 0.1265 | AG56: 0.1265 | AH56: 0.1265
B57: Total UC Saving | H57: =SUM(H55:H56) -> 0.7515 | I57: =SUM(I55:I56) -> 0.7515 | J57: 0.7515 | K57: 0.7515 | L57: 0.7515 | M57: 0.7515 | N57: 0.7515 | O57: 0.7515 | P57: 0.7515 | Q57: 0.7515 | R57: 0.7515 | S57: 0.7515 | T57: 0.7515 | U57: 0.7515 | V57: 0.7515 | W57: 0.7515 | X57: 0.7515 | Y57: 0.7515 | Z57: 0.7515 | AA57: 0.7515 | AB57: 0.7515 | AC57: 0.7515 | AD57: 0.7515 | AE57: 0.7515 | AF57: 0.7515 | AG57: 0.7515 | AH57: 0.7515 | AI57: =AH57 -> 0.7515 | AJ57: =AI57 -> 0.7515 | AK57: 0.7515
G59: Cashflow | H59: =H57*1000000 -> 751500 | I59: =I57*1000000 -> 751500 | J59: 751500 | K59: 751500 | L59: 751500 | M59: 751500 | N59: 751500 | O59: 751500 | P59: 751500 | Q59: 751500 | R59: 751500 | S59: 751500 | T59: 751500 | U59: 751500 | V59: 751500 | W59: 751500 | X59: 751500 | Y59: 751500 | Z59: 751500 | AA59: 751500 | AB59: 751500 | AC59: 751500 | AD59: 751500 | AE59: 751500 | AF59: 751500 | AG59: 751500 | AH59: 751500 | AI59: 751500 | AJ59: 751500 | AK59: 751500

Sheet C6 Supporting Info
B1: C6
C2: 2011/12 | D2: 2012/13 | E2: 2013/14 | F2: 2014/15 | G2: 2015/16 | H2: 2016/17 | I2: 2017/18 | J2: 2018/19 | K2: 2019/20 | L2: 2020/21 | M2: 2021/2022 | N2: 2022/2023 | O2: 2023/2024 | P2: 2024/2025 | Q2: 2025/2026 | R2: 2026/2027 | S2: 2027/2028 | T2: 2028/2029 | U2: 2029/2030 | V2: 2030/2031 | W2: 2031/2032 | X2: 2032/2033 | Y2: 2033/2034 | Z2: 2034/2035 | AA2: 2035/2036 | AB2: 2035/2037 | AC2: 2035/2038 | AD2: 2035/2039 | AE2: 2035/2040 | AF2: 2035/2041
C3: 1 | D3: 2 | E3: 3 | F3: 4 | G3: 5 | H3: 6 | I3: 7 | J3: 8 | K3: 9 | L3: 10 | M3: 11 | N3: 12 | O3: 13 | P3: 14 | Q3: 15 | R3: 16 | S3: 17 | T3: 18 | U3: 19 | V3: 20 | W3: 21 | X3: 22 | Y3: 23 | Z3: 24 | AA3: 25 | AB3: 26 | AC3: 27 | AD3: 28 | AE3: 29 | AF3: 30
B5: Public Sector Costs - NPD | C5: =0 -> 0 | D5: =D40*$C$17 -> 350 | E5: =E40*$C$17 -> 350 | F5: =F40*$C$17 -> 525 | G5: 0 | H5: 0 | I5: 0 | J5: 0 | K5: 0 | L5: 0 | M5: 0 | N5: =0 -> 0 | O5: =O40*$C$17 -> 0 | P5: =P40*$C$17 -> 0 | Q5: =Q40*$C$17 -> 0
C6: 0 | D6: =D42*E18 -> 0 | E6: =E42*E18 -> 0 | F6: =F42*E18 -> 0 | G6: =F6 -> 0 | H6: 0 | I6: 0 | J6: 0 | K6: 0 | L6: 0 | M6: 0 | N6: 0 | O6: =O42*P18 -> 0 | P6: =P42*P18 -> 0 | Q6: =Q42*P18 -> 0 | R6: =Q6 -> 0 | S6: 0 | T6: 0 | U6: 0 | V6: 0 | W6: 0
B7: Private Sector Costs (NPD Programme Projects) - UC Saving | C7: =C50 -> 0 | D7: 0 | E7: 350 | F7: 437.5 | G7: 700 | H7: 306.25 | I7: 306.25 | J7: 306.25 | K7: 306.25 | L7: 306.25 | M7: 306.25 | N7: 306.25 | O7: 306.25 | P7: 306.25 | Q7: 306.25 | R7: 306.25 | S7: 306.25 | T7: 306.25 | U7: 306.25 | V7: 306.25 | W7: 306.25 | X7: 306.25 | Y7: 306.25 | Z7: 306.25 | AA7: 306.25 | AB7: 306.25 | AC7: 306.25 | AD7: 306.25 | AE7: 218.75 | AF7: 131.25
B8: Total | C8: =SUM(C5:C7) -> 0 | D8: 350 | E8: 700 | F8: 962.5 | G8: 700 | H8: 306.25 | I8: 306.25 | J8: 306.25 | K8: 306.25 | L8: 306.25 | M8: 306.25 | N8: 306.25 | O8: 306.25 | P8: 306.25 | Q8: 306.25 | R8: 306.25 | S8: 306.25 | T8: 306.25 | U8: 306.25 | V8: 306.25 | W8: 306.25 | X8: 306.25 | Y8: 306.25 | Z8: 306.25 | AA8: 306.25 | AB8: 306.25 | AC8: 306.25 | AD8: 306.25 | AE8: 218.75 | AF8: 131.25
B9: NPV | C9: =NPV(3.5%,C8:Z8) -> 5921.373288
C10: 2010/11 | D10: 2011/12
B11: Work Carried Out | C11: 0.6 | D11: 0.4
B14: Public Sector Advisory Costs - Legal and Technical | C14: 17.5% Saving on £1m of costs
B15: (Additional Costs) / Savings | C15: £k
B17: NPD Projects | C17: 175
B18: Hub Projects | C18: =130-156 -> -26 | D18: =130-124 -> 6 | E18: =130-91 -> 39
B20: Private Sector Advisory Costs - Legal and Technical
B21: =B15 -> (Additional Costs) / Savings | C21: 17.5% Saving on £1.5m of costs, saved by two losing bidders
G22: This reflects higher costs to private sector and success fee basis of recovery
B23: Percentage Premium Private Sector - Hub | C23: 0
B25: =B17 -> NPD Projects | C25: =(0.175*1500)*2 -> 525
B26: =B18 -> Hub Projects | C26: =C18*$C$23 -> 0 | D26: =D18*$C$23 -> 0 | E26: =E18*$C$23 -> 0
B30: NPD Contracts | C30: 2011/12 | D30: 2012/13 | E30: 2013/14 | F30: 2014/15
B32: RHSC / DCN | D32: 1 | K32: Operational School Project 1 - 0.25% of construction cost for operational insurance
B33: M8 | D33: 0 | K33: Operational School Project 2 - 0.44% of construction costs for operational insurance
B34: AWPR | F34: 0
B35: Inverness College | D35: 1
B36: Kilmarnock College | E36: 1
B37: Glasgow City Centre Colleges | E37: 1
B38: 3 Other Acute Hospital Contracts | F38: 3
B39: 2 Schools NPD Contracts | E39: 0 | F39: 0
B40: Total | D40: =SUM(D32:D39) -> 2 | E40: =SUM(E32:E39) -> 2 | F40: =SUM(F32:F39) -> 3
B42: Total | C42: 0 | D42: 0 | E42: 0 | F42: 0 | G42: 0 | H42: 0 | I42: 0 | J42: 0 | K42: 0 | L42: 0
F44: 1 | G44: 2 | H44: 3 | I44: 4 | J44: 5 | K44: 6 | L44: 7 | M44: 8 | N44: 9 | O44: 10 | P44: 11 | Q44: 12 | R44: 13 | S44: 14 | T44: 15 | U44: 16 | V44: 17 | W44: 18 | X44: 19 | Y44: 20 | Z44: 21 | AA44: 22 | AB44: 23 | AC44: 24 | AD44: 25 | AE44: 26 | AF44: 27
C45: =C2 -> 2011/12 | D45: 2012/13 | E45: 2013/14 | F45: 2014/15 | G45: 2015/16 | H45: 2016/17 | I45: 2017/18 | J45: 2018/19 | K45: 2019/20 | L45: 2020/21 | M45: 2021/2022 | N45: 2022/2023 | O45: 2023/2024 | P45: 2024/2025 | Q45: 2025/2026 | R45: 2026/2027 | S45: 2027/2028 | T45: 2028/2029 | U45: 2029/2030 | V45: 2030/2031 | W45: 2031/2032 | X45: 2032/2033 | Y45: 2033/2034 | Z45: 2034/2035
B46: 2012/13 Projects | E46: =C17*D40 -> 350 | F46: =$D$40*$C$25/12 -> 87.5 | G46: =$D$40*$C$25/12 -> 87.5 | H46: 87.5 | I46: 87.5 | J46: 87.5 | K46: 87.5 | L46: 87.5 | M46: 87.5 | N46: 87.5 | O46: 87.5 | P46: 87.5 | Q46: 87.5 | R46: 87.5 | S46: 87.5 | T46: 87.5 | U46: 87.5 | V46: 87.5 | W46: 87.5 | X46: 87.5 | Y46: 87.5 | Z46: 87.5 | AA46: 87.5 | AB46: 87.5 | AC46: 87.5 | AD46: 87.5
B47: 2013/14 Projects | F47: =C17*E40 -> 350 | G47: =$E$40*$C$25/12 -> 87.5 | H47: =$E$40*$C$25/12 -> 87.5 | I47: 87.5 | J47: 87.5 | K47: 87.5 | L47: 87.5 | M47: 87.5 | N47: 87.5 | O47: 87.5 | P47: 87.5 | Q47: 87.5 | R47: 87.5 | S47: 87.5 | T47: 87.5 | U47: 87.5 | V47: 87.5 | W47: 87.5 | X47: 87.5 | Y47: 87.5 | Z47: 87.5 | AA47: 87.5 | AB47: 87.5 | AC47: 87.5 | AD47: 87.5 | AE47: 87.5
B48: 2014/15 Projects | G48: =C17*F40 -> 525 | H48: =$F$40*$C$25/12 -> 131.25 | I48: =$F$40*$C$25/12 -> 131.25 | J48: 131.25 | K48: 131.25 | L48: 131.25 | M48: 131.25 | N48: 131.25 | O48: 131.25 | P48: 131.25 | Q48: 131.25 | R48: 131.25 | S48: 131.25 | T48: 131.25 | U48: 131.25 | V48: 131.25 | W48: 131.25 | X48: 131.25 | Y48: 131.25 | Z48: 131.25 | AA48: 131.25 | AB48: 131.25 | AC48: 131.25 | AD48: 131.25 | AE48: 131.25 | AF48: 131.25
B50: CASHFLOW OF BENEFIT | C50: =SUM(C46:C48) -> 0 | D50: 0 | E50: 350 | F50: 437.5 | G50: 700 | H50: 306.25 | I50: 306.25 | J50: 306.25 | K50: 306.25 | L50: 306.25 | M50: 306.25 | N50: 306.25 | O50: 306.25 | P50: 306.25 | Q50: 306.25 | R50: 306.25 | S50: 306.25 | T50: 306.25 | U50: 306.25 | V50: 306.25 | W50: 306.25 | X50: 306.25 | Y50: 306.25 | Z50: 306.25 | AA50: 306.25 | AB50: 306.25 | AC50: 306.25 | AD50: 306.25 | AE50: 218.75 | AF50: 131.25

Sheet C9, D1-D5 Supporting Info(hub)
B1: Scottish Futures Trust
B2: Benefits Statement
B3: Hub Programme - Benefits Underlying Assumptions
B6: D1 | C6: Savings in Procurement Time
F7: Time Saved In Years:
F8: 0.5 | G8: driving % saving of: | I8: 0.02 | J8: of capital costs because of saving in advisory / internal costs
F10: 2011/12 | G10: 2012/13 | H10: 2013/14 | I10: 2014/15 | J10: 2015/16 | K10: 2016/17 | L10: 2017/18 | M10: 2018/19 | N10: 2019/20 | O10: 2020/21 | P10: 2021/22 | Q10: 2022/23 | R10: 2023/24 | S10: 2024/25 | T10: 2025/26 | U10: 2026/27 | V10: 2027/28 | W10: 2028/29 | X10: 2029/30 | Y10: 2030/31 | Z10: 2031/32 | AA10: 2032/33 | AB10: 2033/34 | AC10: 2034/35 | AD10: 2035/36 | AE10: 2036/37 | AF10: 2037/38 | AG10: 2038/39 | AH10: 2039/40 | AI10: 2040/41 | AJ10: 2041/42 | AK10: 2042/43 | AL10: 2043/44 | AM10: 2044/45 | AN10: 2045/46 | AO10: 2046/47 | AP10: 2047/48
D11: Capital Value of Projects
E12: Year | F12: 1 | G12: 2 | H12: 3 | I12: 4 | J12: 5 | K12: 6 | L12: 7 | M12: 8 | N12: 9 | O12: 10 | P12: 11 | Q12: 12 | R12: 13 | S12: 14 | T12: 15 | U12: 16 | V12: 17 | W12: 18 | X12: 19 | Y12: 20 | Z12: 21 | AA12: 22 | AB12: 23 | AC12: 24 | AD12: 25 | AE12: 26 | AF12: 27 | AG12: 28 | AH12: 29 | AI12: 30 | AJ12: 31 | AK12: 32 | AL12: 33 | AM12: 34 | AN12: 35 | AO12: 36 | AP12: 37 | AQ12: Total
D13: Terr 1 | E13: D&B | F13: 13.4 | G13: 28.3 | H13: 22.05833333 | I13: 25.375 | J13: 25.375 | K13: 25.375 | L13: 25.375 | M13: 25.375 | N13: 25.375 | O13: 25.375 | P13: 25.375 | Q13: 0 | R13: 0 | S13: 0 | T13: 0 | U13: 0 | V13: 0 | W13: 0 | X13: 0 | Y13: 0 | Z13: 0 | AA13: 0 | AB13: 0 | AC13: 0 | AD13: 0 | AE13: 0 | AF13: 0 | AG13: 0 | AH13: 0 | AI13: 0 | AJ13: 0 | AK13: 0 | AL13: 0 | AM13: 0 | AN13: 0 | AO13: 0 | AP13: 0
E14: DBFM | F14: 0 | G14: 41.5 | H14: 40.85 | I14: 55.25 | J14: 55.25 | K14: 55.25 | L14: 55.25 | M14: 55.25 | N14: 55.25 | O14: 55.25 | P14: 55.25 | Q14: 0 | R14: 0 | S14: 0 | T14: 0 | U14: 0 | V14: 0 | W14: 0 | X14: 0 | Y14: 0 | Z14: 0 | AA14: 0 | AB14: 0 | AC14: 0 | AD14: 0 | AE14: 0 | AF14: 0 | AG14: 0 | AH14: 0 | AI14: 0 | AJ14: 0 | AK14: 0 | AL14: 0 | AM14: 0 | AN14: 0 | AO14: 0 | AP14: 0
E15: Total | F15: 13.4 | G15: 69.8 | H15: 62.90833333 | I15: 80.625 | J15: 80.625 | K15: 80.625 | L15: 80.625 | M15: 80.625 | N15: 80.625 | O15: 80.625 | P15: 80.625 | Q15: 0 | R15: 0 | S15: 0 | T15: 0 | U15: 0 | V15: 0 | W15: 0 | X15: 0 | Y15: 0 | Z15: 0 | AA15: 0 | AB15: 0 | AC15: 0 | AD15: 0 | AE15: 0 | AF15: 0 | AG15: 0 | AH15: 0 | AI15: 0 | AJ15: 0 | AK15: 0 | AL15: 0 | AM15: 0 | AN15: 0 | AO15: 0 | AP15: 0 | AQ15: 791.1083333
D16: Terr 2 | E16: D&B | F16: 0 | G16: 62.19333333 | H16: 123 | I16: 3.345833333 | J16: 3.345833333 | K16: 3.345833333 | L16: 3.345833333 | M16: 3.345833333 | N16: 3.345833333 | O16: 3.345833333 | P16: 3.345833333 | Q16: 0 | R16: 0 | S16: 0 | T16: 0 | U16: 0 | V16: 0 | W16: 0 | X16: 0 | Y16: 0 | Z16: 0 | AA16: 0 | AB16: 0 | AC16: 0 | AD16: 0 | AE16: 0 | AF16: 0 | AG16: 0 | AH16: 0 | AI16: 0 | AJ16: 0 | AK16: 0 | AL16: 0 | AM16: 0 | AN16: 0 | AO16: 0 | AP16: 0
E17: DBFM | F17: 0 | G17: 29.1 | H17: 168.2 | I17: 14.1 | J17: 14.1 | K17: 14.1 | L17: 14.1 | M17: 14.1 | N17: 14.1 | O17: 14.1 | P17: 14.1 | Q17: 0 | R17: 0 | S17: 0 | T17: 0 | U17: 0 | V17: 0 | W17: 0 | X17: 0 | Y17: 0 | Z17: 0 | AA17: 0 | AB17: 0 | AC17: 0 | AD17: 0 | AE17: 0 | AF17: 0 | AG17: 0 | AH17: 0 | AI17: 0 | AJ17: 0 | AK17: 0 | AL17: 0 | AM17: 0 | AN17: 0 | AO17: 0 | AP17: 0
E18: Total | F18: 0 | G18: 91.29333333 | H18: 291.2 | I18: 17.44583333 | J18: 17.44583333 | K18: 17.44583333 | L18: 17.44583333 | M18: 17.44583333 | N18: 17.44583333 | O18: 17.44583333 | P18: 17.44583333 | Q18: 0 | R18: 0 | S18: 0 | T18: 0 | U18: 0 | V18: 0 | W18: 0 | X18: 0 | Y18: 0 | Z18: 0 | AA18: 0 | AB18: 0 | AC18: 0 | AD18: 0 | AE18: 0 | AF18: 0 | AG18: 0 | AH18: 0 | AI18: 0 | AJ18: 0 | AK18: 0 | AL18: 0 | AM18: 0 | AN18: 0 | AO18: 0 | AP18: 0 | AQ18: 522.06
D19: Terr 3 | E19: D&B | F19: 0 | G19: 40.31 | H19: 28.6 | I19: 15.375 | J19: 15.375 | K19: 15.375 | L19: 15.375 | M19: 15.375 | N19: 15.375 | O19: 15.375 | P19: 15.375 | Q19: 0 | R19: 0 | S19: 0 | T19: 0 | U19: 0 | V19: 0 | W19: 0 | X19: 0 | Y19: 0 | Z19: 0 | AA19: 0 | AB19: 0 | AC19: 0 | AD19: 0 | AE19: 0 | AF19: 0 | AG19: 0 | AH19: 0 | AI19: 0 | AJ19: 0 | AK19: 0 | AL19: 0 | AM19: 0 | AN19: 0 | AO19: 0 | AP19: 0
E20: DBFM | F20: 0 | G20: 16 | H20: 47.25 | I20: 8.5715 | J20: 8.5715 | K20: 8.5715 | L20: 8.5715 | M20: 8.5715 | N20: 8.5715 | O20: 8.5715 | P20: 8.5715 | Q20: 0 | R20: 0 | S20: 0 | T20: 0 | U20: 0 | V20: 0 | W20: 0 | X20: 0 | Y20: 0 | Z20: 0 | AA20: 0 | AB20: 0 | AC20: 0 | AD20: 0 | AE20: 0 | AF20: 0 | AG20: 0 | AH20: 0 | AI20: 0 | AJ20: 0 | AK20: 0 | AL20: 0 | AM20: 0 | AN20: 0 | AO20: 0 | AP20: 0
E21: Total | F21: 0 | G21: 56.31 | H21: 75.85 | I21: 23.9465 | J21: 23.9465 | K21: 23.9465 | L21: 23.9465 | M21: 23.9465 | N21: 23.9465 | O21: 23.9465 | P21: 23.9465 | Q21: 0 | R21: 0 | S21: 0 | T21: 0 | U21: 0 | V21: 0 | W21: 0 | X21: 0 | Y21: 0 | Z21: 0 | AA21: 0 | AB21: 0 | AC21: 0 | AD21: 0 | AE21: 0 | AF21: 0 | AG21: 0 | AH21: 0 | AI21: 0 | AJ21: 0 | AK21: 0 | AL21: 0 | AM21: 0 | AN21: 0 | AO21: 0 | AP21: 0 | AQ21: 323.732
D22: Terr 4 | E22: D&B | F22: 0 | G22: 64 | H22: 37.5 | I22: 10.5 | J22: 10.5 | K22: 10.5 | L22: 10.5 | M22: 10.5 | N22: 10.5 | O22: 10.5 | P22: 10.5 | Q22: 0 | R22: 0 | S22: 0 | T22: 0 | U22: 0 | V22: 0 | W22: 0 | X22: 0 | Y22: 0 | Z22: 0 | AA22: 0 | AB22: 0 | AC22: 0 | AD22: 0 | AE22: 0 | AF22: 0 | AG22: 0 | AH22: 0 | AI22: 0 | AJ22: 0 | AK22: 0 | AL22: 0 | AM22: 0 | AN22: 0 | AO22: 0 | AP22: 0
E23: DBFM | F23: 0 | G23: 0 | H23: 45 | I23: 22 | J23: 22 | K23: 22 | L23: 22 | M23: 22 | N23: 22 | O23: 22 | P23: 22 | Q23: 0 | R23: 0 | S23: 0 | T23: 0 | U23: 0 | V23: 0 | W23: 0 | X23: 0 | Y23: 0 | Z23: 0 | AA23: 0 | AB23: 0 | AC23: 0 | AD23: 0 | AE23: 0 | AF23: 0 | AG23: 0 | AH23: 0 | AI23: 0 | AJ23: 0 | AK23: 0 | AL23: 0 | AM23: 0 | AN23: 0 | AO23: 0 | AP23: 0
E24: Total | F24: 0 | G24: 64 | H24: 82.5 | I24: 32.5 | J24: 32.5 | K24: 32.5 | L24: 32.5 | M24: 32.5 | N24: 32.5 | O24: 32.5 | P24: 32.5 | Q24: 0 | R24: 0 | S24: 0 | T24: 0 | U24: 0 | V24: 0 | W24: 0 | X24: 0 | Y24: 0 | Z24: 0 | AA24: 0 | AB24: 0 | AC24: 0 | AD24: 0 | AE24: 0 | AF24: 0 | AG24: 0 | AH24: 0 | AI24: 0 | AJ24: 0 | AK24: 0 | AL24: 0 | AM24: 0 | AN24: 0 | AO24: 0 | AP24: 0 | AQ24: 406.5
D25: Terr 5 | E25: D&B | F25: 0 | G25: 3.5 | H25: 16.48333333 | I25: 0.4166666667 | J25: 0.4166666667 | K25: 0.4166666667 | L25: 0.4166666667 | M25: 0.4166666667 | N25: 0.4166666667 | O25: 0.4166666667 | P25: 0.4166666667 | Q25: 0 | R25: 0 | S25: 0 | T25: 0 | U25: 0 | V25: 0 | W25: 0 | X25: 0 | Y25: 0 | Z25: 0 | AA25: 0 | AB25: 0 | AC25: 0 | AD25: 0 | AE25: 0 | AF25: 0 | AG25: 0 | AH25: 0 | AI25: 0 | AJ25: 0 | AK25: 0 | AL25: 0 | AM25: 0 | AN25: 0 | AO25: 0 | AP25: 0
E26: DBFM | F26: 0 | G26: 0 | H26: 200.82 | I26: 4.125 | J26: 4.125 | K26: 4.125 | L26: 4.125 | M26: 4.125 | N26: 4.125 | O26: 4.125 | P26: 4.125 | Q26: 0 | R26: 0 | S26: 0 | T26: 0 | U26: 0 | V26: 0 | W26: 0 | X26: 0 | Y26: 0 | Z26: 0 | AA26: 0 | AB26: 0 | AC26: 0 | AD26: 0 | AE26: 0 | AF26: 0 | AG26: 0 | AH26: 0 | AI26: 0 | AJ26: 0 | AK26: 0 | AL26: 0 | AM26: 0 | AN26: 0 | AO26: 0 | AP26: 0
E27: Total | F27: 0 | G27: 3.5 | H27: 217.3033333 | I27: 4.541666667 | J27: 4.541666667 | K27: 4.541666667 | L27: 4.541666667 | M27: 4.541666667 | N27: 4.541666667 | O27: 4.541666667 | P27: 4.541666667 | Q27: 0 | R27: 0 | S27: 0 | T27: 0 | U27: 0 | V27: 0 | W27: 0 | X27: 0 | Y27: 0 | Z27: 0 | AA27: 0 | AB27: 0 | AC27: 0 | AD27: 0 | AE27: 0 | AF27: 0 | AG27: 0 | AH27: 0 | AI27: 0 | AJ27: 0 | AK27: 0 | AL27: 0 | AM27: 0 | AN27: 0 | AO27: 0 | AP27: 0 | AQ27: 257.1366667
AQ28: 2300.537
D29: Totals | E29: D&B (T1&2) | F29: 13.4 | G29: 90.49333333 | H29: 145.0583333 | I29: 28.72083333 | J29: 28.72083333 | K29: 28.72083333 | L29: 28.72083333 | M29: 28.72083333 | N29: 28.72083333 | O29: 28.72083333 | P29: 28.72083333 | Q29: 0 | R29: 0 | S29: 0 | T29: 0 | U29: 0 | V29: 0 | W29: 0 | X29: 0 | Y29: 0 | Z29: 0 | AA29: 0 | AB29: 0 | AC29: 0 | AD29: 0 | AE29: 0 | AF29: 0 | AG29: 0 | AH29: 0 | AI29: 0 | AJ29: 0 | AK29: 0 | AL29: 0 | AM29: 0 | AN29: 0 | AO29: 0 | AP29: 0
E30: D&B (T3,4&5) | F30: 0 | G30: 107.81 | H30: 82.58333333 | I30: 26.29166667 | J30: 26.29166667 | K30: 26.29166667 | L30: 26.29166667 | M30: 26.29166667 | N30: 26.29166667 | O30: 26.29166667 | P30: 26.29166667 | Q30: 0 | R30: 0 | S30: 0 | T30: 0 | U30: 0 | V30: 0 | W30: 0 | X30: 0 | Y30: 0 | Z30: 0 | AA30: 0 | AB30: 0 | AC30: 0 | AD30: 0 | AE30: 0 | AF30: 0 | AG30: 0 | AH30: 0 | AI30: 0 | AJ30: 0 | AK30: 0 | AL30: 0 | AM30: 0 | AN30: 0 | AO30: 0 | AP30: 0
E31: DBFM (T1&2) | F31: 0 | G31: 70.6 | H31: 209.05 | I31: 69.35 | J31: 69.35 | K31: 69.35 | L31: 69.35 | M31: 69.35 | N31: 69.35 | O31: 69.35 | P31: 69.35 | Q31: 0 | R31: 0 | S31: 0 | T31: 0 | U31: 0 | V31: 0 | W31: 0 | X31: 0 | Y31: 0 | Z31: 0 | AA31: 0 | AB31: 0 | AC31: 0 | AD31: 0 | AE31: 0 | AF31: 0 | AG31: 0 | AH31: 0 | AI31: 0 | AJ31: 0 | AK31: 0 | AL31: 0 | AM31: 0 | AN31: 0 | AO31: 0 | AP31: 0
E32: DBFM (T3,4&5) | F32: 0 | G32: 16 | H32: 293.07 | I32: 34.6965 | J32: 34.6965 | K32: 34.6965 | L32: 34.6965 | M32: 34.6965 | N32: 34.6965 | O32: 34.6965 | P32: 34.6965 | Q32: 0 | R32: 0 | S32: 0 | T32: 0 | U32: 0 | V32: 0 | W32: 0 | X32: 0 | Y32: 0 | Z32: 0 | AA32: 0 | AB32: 0 | AC32: 0 | AD32: 0 | AE32: 0 | AF32: 0 | AG32: 0 | AH32: 0 | AI32: 0 | AJ32: 0 | AK32: 0 | AL32: 0 | AM32: 0 | AN32: 0 | AO32: 0 | AP32: 0
E33: Total | F33: 13.4 | G33: 284.9033333 | H33: 729.7616667 | I33: 159.059 | J33: 159.059 | K33: 159.059 | L33: 159.059 | M33: 159.059 | N33: 159.059 | O33: 159.059 | P33: 159.059 | Q33: 0 | R33: 0 | S33: 0 | T33: 0 | U33: 0 | V33: 0 | W33: 0 | X33: 0 | Y33: 0 | Z33: 0 | AA33: 0 | AB33: 0 | AC33: 0 | AD33: 0 | AE33: 0 | AF33: 0 | AG33: 0 | AH33: 0 | AI33: 0 | AJ33: 0 | AK33: 0 | AL33: 0 | AM33: 0 | AN33: 0 | AO33: 0 | AP33: 0 | AQ33: 2300.537
D35: Total No of DBFM | F35: 0 | G35: 10 | H35: 29 | I35: 8 | J35: 8 | K35: 8 | L35: 8 | M35: 8 | N35: 8 | O35: 8 | P35: 8 | Q35: 0 | R35: 0 | S35: 0 | T35: 0 | U35: 0 | V35: 0 | W35: 0 | X35: 0 | Y35: 0 | Z35: 0 | AA35: 0 | AB35: 0 | AC35: 0 | AD35: 0 | AE35: 0 | AF35: 0 | AG35: 0 | AH35: 0 | AI35: 0 | AJ35: 0 | AK35: 0 | AL35: 0 | AM35: 0 | AN35: 0 | AO35: 0 | AP35: 0
E37: Year | F37: 1 | G37: 2 | H37: 3 | I37: 4 | J37: 5 | K37: 6 | L37: 7 | M37: 8 | N37: 9 | O37: 10 | P37: 11 | Q37: 12 | R37: 13 | S37: 14 | T37: 15 | U37: 16 | V37: 17 | W37: 18 | X37: 19 | Y37: 20 | Z37: 21 | AA37: 22 | AB37: 23 | AC37: 24 | AD37: 25 | AE37: 26 | AF37: 27 | AG37: 28 | AH37: 29 | AI37: 30 | AJ37: 31 | AK37: 32 | AL37: 33 | AM37: 34 | AN37: 35 | AO37: 36 | AP37: 37
D38: D&B Total | F38: 0.268 | G38: 3.966066667 | H38: 4.552833333 | I38: 1.10025 | J38: 1.10025 | K38: 1.10025 | L38: 1.10025 | M38: 1.10025 | N38: 1.10025 | O38: 1.10025 | P38: 1.10025 | Q38: 0 | R38: 0 | S38: 0 | T38: 0 | U38: 0 | V38: 0 | W38: 0 | X38: 0 | Y38: 0 | Z38: 0 | AA38: 0 | AB38: 0 | AC38: 0 | AD38: 0 | AE38: 0 | AF38: 0 | AG38: 0 | AH38: 0 | AI38: 0 | AJ38: 0 | AK38: 0 | AL38: 0 | AM38: 0 | AN38: 0 | AO38: 0 | AP38: 0
D39: DBFM Total | F39: 0 | G39: 1.732 | H39: 10.0424 | I39: 2.08093 | J39: 2.08093 | K39: 2.08093 | L39: 2.08093 | M39: 2.08093 | N39: 2.08093 | O39: 2.08093 | P39: 2.08093 | Q39: 0 | R39: 0 | S39: 0 | T39: 0 | U39: 0 | V39: 0 | W39: 0 | X39: 0 | Y39: 0 | Z39: 0 | AA39: 0 | AB39: 0 | AC39: 0 | AD39: 0 | AE39: 0 | AF39: 0 | AG39: 0 | AH39: 0 | AI39: 0 | AJ39: 0 | AK39: 0 | AL39: 0 | AM39: 0 | AN39: 0 | AO39: 0 | AP39: 0
B41: UC Reduction (p.a.)
B42: DBFM | C42: Year 1 Projects | H42: 0 | I42: 0 | J42: 0 | K42: 0 | L42: 0 | M42: 0 | N42: 0 | O42: 0 | P42: 0 | Q42: 0 | R42: 0 | S42: 0 | T42: 0 | U42: 0 | V42: 0 | W42: 0 | X42: 0 | Y42: 0 | Z42: 0 | AA42: 0 | AB42: 0 | AC42: 0 | AD42: 0 | AE42: 0 | AF42: 0 | AQ42: 0
C43: Year 2 Projects | I43: 0.1443333333 | J43: 0.1443333333 | K43: 0.1443333333 | L43: 0.1443333333 | M43: 0.1443333333 | N43: 0.1443333333 | O43: 0.1443333333 | P43: 0.1443333333 | Q43: 0.1443333333 | R43: 0.1443333333 | S43: 0.1443333333 | T43: 0.1443333333 | U43: 0.1443333333 | V43: 0.1443333333 | W43: 0.1443333333 | X43: 0.1443333333 | Y43: 0.1443333333 | Z43: 0.1443333333 | AA43: 0.1443333333 | AB43: 0.1443333333 | AC43: 0.1443333333 | AD43: 0.1443333333 | AE43: 0.1443333333 | AF43: 0.1443333333 | AG43: 0.1443333333 | AQ43: 3.608333333
C44: Year 3 Projects | J44: 0.8368666667 | K44: 0.8368666667 | L44: 0.8368666667 | M44: 0.8368666667 | N44: 0.8368666667 | O44: 0.8368666667 | P44: 0.8368666667 | Q44: 0.8368666667 | R44: 0.8368666667 | S44: 0.8368666667 | T44: 0.8368666667 | U44: 0.8368666667 | V44: 0.8368666667 | W44: 0.8368666667 | X44: 0.8368666667 | Y44: 0.8368666667 | Z44: 0.8368666667 | AA44: 0.8368666667 | AB44: 0.8368666667 | AC44: 0.8368666667 | AD44: 0.8368666667 | AE44: 0.8368666667 | AF44: 0.8368666667 | AG44: 0.8368666667 | AH44: 0.8368666667 | AQ44: 20.92166667
C45: Year 4 Projects | K45: 0.1734108333 | L45: 0.1734108333 | M45: 0.1734108333 | N45: 0.1734108333 | O45: 0.1734108333 | P45: 0.1734108333 | Q45: 0.1734108333 | R45: 0.1734108333 | S45: 0.1734108333 | T45: 0.1734108333 | U45: 0.1734108333 | V45: 0.1734108333 | W45: 0.1734108333 | X45: 0.1734108333 | Y45: 0.1734108333 | Z45: 0.1734108333 | AA45: 0.1734108333 | AB45: 0.1734108333 | AC45: 0.1734108333 | AD45: 0.1734108333 | AE45: 0.1734108333 | AF45: 0.1734108333 | AG45: 0.1734108333 | AH45: 0.1734108333 | AI45: 0.1734108333 | AQ45: 4.335270833
C46: Year 5 Projects | L46: 0.1734108333 | M46: 0.1734108333 | N46: 0.1734108333 | O46: 0.1734108333 | P46: 0.1734108333 | Q46: 0.1734108333 | R46: 0.1734108333 | S46: 0.1734108333 | T46: 0.1734108333 | U46: 0.1734108333 | V46: 0.1734108333 | W46: 0.1734108333 | X46: 0.1734108333 | Y46: 0.1734108333 | Z46: 0.1734108333 | AA46: 0.1734108333 | AB46: 0.1734108333 | AC46: 0.1734108333 | AD46: 0.1734108333 | AE46: 0.1734108333 | AF46: 0.1734108333 | AG46: 0.1734108333 | AH46: 0.1734108333 | AI46: 0.1734108333 | AJ46: 0.1734108333 | AQ46: 4.335270833
C47: Year 6 Projects | M47: 0.1734108333 | N47: 0.1734108333 | O47: 0.1734108333 | P47: 0.1734108333 | Q47: 0.1734108333 | R47: 0.1734108333 | S47: 0.1734108333 | T47: 0.1734108333 | U47: 0.1734108333 | V47: 0.1734108333 | W47: 0.1734108333 | X47: 0.1734108333 | Y47: 0.1734108333 | Z47: 0.1734108333 | AA47: 0.1734108333 | AB47: 0.1734108333 | AC47: 0.1734108333 | AD47: 0.1734108333 | AE47: 0.1734108333 | AF47: 0.1734108333 | AG47: 0.1734108333 | AH47: 0.1734108333 | AI47: 0.1734108333 | AJ47: 0.1734108333 | AK47: 0.1734108333 | AQ47: 4.335270833
C48: Year 7 Projects | N48: 0.1734108333 | O48: 0.1734108333 | P48: 0.1734108333 | Q48: 0.1734108333 | R48: 0.1734108333 | S48: 0.1734108333 | T48: 0.1734108333 | U48: 0.1734108333 | V48: 0.1734108333 | W48: 0.1734108333 | X48: 0.1734108333 | Y48: 0.1734108333 | Z48: 0.1734108333 | AA48: 0.1734108333 | AB48: 0.1734108333 | AC48: 0.1734108333 | AD48: 0.1734108333 | AE48: 0.1734108333 | AF48: 0.1734108333 | AG48: 0.1734108333 | AH48: 0.1734108333 | AI48: 0.1734108333 | AJ48: 0.1734108333 | AK48: 0.1734108333 | AL48: 0.1734108333 | AQ48: 4.335270833
C49: Year 8 Projects | O49: 0.1734108333 | P49: 0.1734108333 | Q49: 0.1734108333 | R49: 0.1734108333 | S49: 0.1734108333 | T49: 0.1734108333 | U49: 0.1734108333 | V49: 0.1734108333 | W49: 0.1734108333 | X49: 0.1734108333 | Y49: 0.1734108333 | Z49: 0.1734108333 | AA49: 0.1734108333 | AB49: 0.1734108333 | AC49: 0.1734108333 | AD49: 0.1734108333 | AE49: 0.1734108333 | AF49: 0.1734108333 | AG49: 0.1734108333 | AH49: 0.1734108333 | AI49: 0.1734108333 | AJ49: 0.1734108333 | AK49: 0.1734108333 | AL49: 0.1734108333 | AM49: 0.1734108333 | AQ49: 4.335270833
C50: Year 9 Projects | P50: 0.1734108333 | Q50: 0.1734108333 | R50: 0.1734108333 | S50: 0.1734108333 | T50: 0.1734108333 | U50: 0.1734108333 | V50: 0.1734108333 | W50: 0.1734108333 | X50: 0.1734108333 | Y50: 0.1734108333 | Z50: 0.1734108333 | AA50: 0.1734108333 | AB50: 0.1734108333 | AC50: 0.1734108333 | AD50: 0.1734108333 | AE50: 0.1734108333 | AF50: 0.1734108333 | AG50: 0.1734108333 | AH50: 0.1734108333 | AI50: 0.1734108333 | AJ50: 0.1734108333 | AK50: 0.1734108333 | AL50: 0.1734108333 | AM50: 0.1734108333 | AN50: 0.1734108333 | AQ50: 4.335270833
C51: Year 10 Projects | Q51: 0.1734108333 | R51: 0.1734108333 | S51: 0.1734108333 | T51: 0.1734108333 | U51: 0.1734108333 | V51: 0.1734108333 | W51: 0.1734108333 | X51: 0.1734108333 | Y51: 0.1734108333 | Z51: 0.1734108333 | AA51: 0.1734108333 | AB51: 0.1734108333 | AC51: 0.1734108333 | AD51: 0.1734108333 | AE51: 0.1734108333 | AF51: 0.1734108333 | AG51: 0.1734108333 | AH51: 0.1734108333 | AI51: 0.1734108333 | AJ51: 0.1734108333 | AK51: 0.1734108333 | AL51: 0.1734108333 | AM51: 0.1734108333 | AN51: 0.1734108333 | AO51: 0.1734108333 | AQ51: 4.335270833
C52: Year 11 Projects | R52: 0.1734108333 | S52: 0.1734108333 | T52: 0.1734108333 | U52: 0.1734108333 | V52: 0.1734108333 | W52: 0.1734108333 | X52: 0.1734108333 | Y52: 0.1734108333 | Z52: 0.1734108333 | AA52: 0.1734108333 | AB52: 0.1734108333 | AC52: 0.1734108333 | AD52: 0.1734108333 | AE52: 0.1734108333 | AF52: 0.1734108333 | AG52: 0.1734108333 | AH52: 0.1734108333 | AI52: 0.1734108333 | AJ52: 0.1734108333 | AK52: 0.1734108333 | AL52: 0.1734108333 | AM52: 0.1734108333 | AN52: 0.1734108333 | AO52: 0.1734108333 | AP52: 0.1734108333 | AQ52: 4.335270833
AQ53: 59.21216667
C54: Sub-Total (inc D&B Savings) | F54: 0.268 | G54: 3.966066667 | H54: 4.552833333 | I54: 1.244583333 | J54: 2.08145 | K54: 2.254860833 | L54: 2.428271667 | M54: 2.6016825 | N54: 2.775093333 | O54: 2.948504167 | P54: 3.121915 | Q54: 2.195075833 | R54: 2.368486667 | S54: 2.368486667 | T54: 2.368486667 | U54: 2.368486667 | V54: 2.368486667 | W54: 2.368486667 | X54: 2.368486667 | Y54: 2.368486667 | Z54: 2.368486667 | AA54: 2.368486667 | AB54: 2.368486667 | AC54: 2.368486667 | AD54: 2.368486667 | AE54: 2.368486667 | AF54: 2.368486667 | AG54: 2.368486667 | AH54: 2.224153333 | AI54: 1.387286667 | AJ54: 1.213875833 | AK54: 1.040465 | AL54: 0.8670541667 | AM54: 0.6936433333 | AN54: 0.5202325 | AO54: 0.3468216667 | AP54: 0.1734108333 | AQ54: 76.80106667
C55: Benefit Attributable to SFT | F55: 0.5
C56: Total | F56: 0.134 | G56: 1.983033333 | H56: 2.276416667 | I56: 0.6222916667 | J56: 1.040725 | K56: 1.127430417 | L56: 1.214135833 | M56: 1.30084125 | N56: 1.387546667 | O56: 1.474252083 | P56: 1.5609575 | Q56: 1.097537917 | R56: 1.184243333 | S56: 1.184243333 | T56: 1.184243333 | U56: 1.184243333 | V56: 1.184243333 | W56: 1.184243333 | X56: 1.184243333 | Y56: 1.184243333 | Z56: 1.184243333 | AA56: 1.184243333 | AB56: 1.184243333 | AC56: 1.184243333 | AD56: 1.184243333 | AE56: 1.184243333 | AF56: 1.184243333 | AG56: 1.184243333 | AH56: 1.112076667 | AI56: 0.6936433333 | AJ56: 0.6069379167 | AK56: 0.5202325 | AL56: 0.4335270833 | AM56: 0.3468216667 | AN56: 0.26011625 | AO56: 0.1734108333 | AP56: 0.08670541667 | AQ56: 38.40053333
B59: D2 | C59: Improvement in Capital Costs - Continuous Improvement & Aggregation Benefit
F61: 2011/12 | G61: 2012/13 | H61: 2013/14 | I61: 2014/15 | J61: 2015/16 | K61: 2016/17 | L61: 2017/18 | M61: 2018/19 | N61: 2019/20 | O61: 2020/21 | P61: 2021/22 | Q61: 2022/23 | R61: 2023/24 | S61: 2024/25 | T61: 2025/26 | U61: 2026/27 | V61: 2027/28 | W61: 2028/29 | X61: 2029/30 | Y61: 2030/31 | Z61: 2031/32 | AA61: 2032/33 | AB61: 2033/34 | AC61: 2034/35 | AD61: 2035/36 | AE61: 2036/37 | AF61: 2037/38 | AG61: 2038/39 | AH61: 2039/40 | AI61: 2040/41 | AJ61: 2041/42 | AK61: 2042/43 | AL61: 2043/44 | AM61: 2044/45 | AN61: 2045/46 | AO61: 2046/47 | AP61: 2047/48
E62: Year | F62: 1 | G62: 2 | H62: 3 | I62: 4 | J62: 5 | K62: 6 | L62: 7 | M62: 8 | N62: 9 | O62: 10 | P62: 11 | Q62: 12 | R62: 13 | S62: 14 | T62: 15 | U62: 16 | V62: 17 | W62: 18 | X62: 19 | Y62: 20 | Z62: 21 | AA62: 22 | AB62: 23 | AC62: 24 | AD62: 25 | AE62: 26 | AF62: 27 | AG62: 28 | AH62: 29 | AI62: 30 | AJ62: 31 | AK62: 32 | AL62: 33 | AM62: 34 | AN62: 35 | AO62: 36 | AP62: 37
B63: Real improvement per annum - Cumul | E63: 0.01 | F63: 0 | G63: 0.01 | H63: 0.02 | I63: 0.03 | J63: 0.04 | K63: 0.05 | L63: 0.06 | M63: 0.07 | N63: 0.08 | O63: 0.09 | P63: 0.1 | Q63: 0.11 | R63: 0.12 | S63: 0.13 | T63: 0.14 | U63: 0.15 | V63: 0.16 | W63: 0.17 | X63: 0.18 | Y63: 0.19 | Z63: 0.2 | AA63: 0.21 | AB63: 0.22 | AC63: 0.23 | AD63: 0.24 | AE63: 0.25 | AF63: 0.26 | AG63: 0.27 | AH63: 0.28 | AI63: 0.29 | AJ63: 0.3 | AK63: 0.31 | AL63: 0.32 | AM63: 0.33 | AN63: 0.34 | AO63: 0.35 | AP63: 0.36
C65: D&B (T1&2) | F65: 0 | G65: 0.9049333333 | H65: 2.901166667 | I65: 0.861625 | J65: 1.148833333 | K65: 1.436041667 | L65: 1.72325 | M65: 2.010458333 | N65: 2.297666667 | O65: 2.584875 | P65: 2.872083333 | Q65: 0 | R65: 0 | S65: 0 | T65: 0 | U65: 0 | V65: 0 | W65: 0 | X65: 0 | Y65: 0 | Z65: 0 | AA65: 0 | AB65: 0 | AC65: 0 | AD65: 0 | AE65: 0 | AF65: 0 | AG65: 0 | AH65: 0 | AI65: 0 | AJ65: 0 | AK65: 0 | AL65: 0 | AM65: 0 | AN65: 0 | AO65: 0 | AP65: 0 | AQ65: 18.74093333
C66: D&B (T3,4&5) | G66: 0 | H66: 0.8258333333 | I66: 0.5258333333 | J66: 0.78875 | K66: 1.051666667 | L66: 1.314583333 | M66: 1.5775 | N66: 1.840416667 | O66: 2.103333333 | P66: 2.36625 | Q66: 0 | R66: 0 | S66: 0 | T66: 0 | U66: 0 | V66: 0 | W66: 0 | X66: 0 | Y66: 0 | Z66: 0 | AA66: 0 | AB66: 0 | AC66: 0 | AD66: 0 | AE66: 0 | AF66: 0 | AG66: 0 | AH66: 0 | AI66: 0 | AJ66: 0 | AK66: 0 | AL66: 0 | AM66: 0 | AN66: 0 | AO66: 0 | AP66: 0 | AQ66: 12.39416667
AQ67: 31.1351
C68: DBFM (T1&2) | F68: 0 | G68: 0.706 | H68: 4.181 | I68: 2.0805 | J68: 2.774 | K68: 3.4675 | L68: 4.161 | M68: 4.8545 | N68: 5.548 | O68: 6.2415 | P68: 6.935 | Q68: 0 | R68: 0 | S68: 0 | T68: 0 | U68: 0 | V68: 0 | W68: 0 | X68: 0 | Y68: 0 | Z68: 0 | AA68: 0 | AB68: 0 | AC68: 0 | AD68: 0 | AE68: 0 | AF68: 0 | AG68: 0 | AH68: 0 | AI68: 0 | AJ68: 0 | AK68: 0 | AL68: 0 | AM68: 0 | AN68: 0 | AO68: 0 | AP68: 0
C69: DBFM (T3,4&5) | G69: 0 | H69: 2.9307 | I69: 0.69393 | J69: 1.040895 | K69: 1.38786 | L69: 1.734825 | M69: 2.08179 | N69: 2.428755 | O69: 2.77572 | P69: 3.122685 | Q69: 0 | R69: 0 | S69: 0 | T69: 0 | U69: 0 | V69: 0 | W69: 0 | X69: 0 | Y69: 0 | Z69: 0 | AA69: 0 | AB69: 0 | AC69: 0 | AD69: 0 | AE69: 0 | AF69: 0 | AG69: 0 | AH69: 0 | AI69: 0 | AJ69: 0 | AK69: 0 | AL69: 0 | AM69: 0 | AN69: 0 | AO69: 0 | AP69: 0
B71: DBFM | C71: Year 1 Projects | H71: 0 | I71: 0 | J71: 0 | K71: 0 | L71: 0 | M71: 0 | N71: 0 | O71: 0 | P71: 0 | Q71: 0 | R71: 0 | S71: 0 | T71: 0 | U71: 0 | V71: 0 | W71: 0 | X71: 0 | Y71: 0 | Z71: 0 | AA71: 0 | AB71: 0 | AC71: 0 | AD71: 0 | AE71: 0 | AF71: 0 | AQ71: 0
C72: Year 2 Projects | I72: 0.05295 | J72: 0.05295 | K72: 0.05295 | L72: 0.05295 | M72: 0.05295 | N72: 0.05295 | O72: 0.05295 | P72: 0.05295 | Q72: 0.05295 | R72: 0.05295 | S72: 0.05295 | T72: 0.05295 | U72: 0.05295 | V72: 0.05295 | W72: 0.05295 | X72: 0.05295 | Y72: 0.05295 | Z72: 0.05295 | AA72: 0.05295 | AB72: 0.05295 | AC72: 0.05295 | AD72: 0.05295 | AE72: 0.05295 | AF72: 0.05295 | AG72: 0.05295 | AQ72: 1.32375
C73: Year 3 Projects | J73: 0.5333775 | K73: 0.5333775 | L73: 0.5333775 | M73: 0.5333775 | N73: 0.5333775 | O73: 0.5333775 | P73: 0.5333775 | Q73: 0.5333775 | R73: 0.5333775 | S73: 0.5333775 | T73: 0.5333775 | U73: 0.5333775 | V73: 0.5333775 | W73: 0.5333775 | X73: 0.5333775 | Y73: 0.5333775 | Z73: 0.5333775 | AA73: 0.5333775 | AB73: 0.5333775 | AC73: 0.5333775 | AD73: 0.5333775 | AE73: 0.5333775 | AF73: 0.5333775 | AG73: 0.5333775 | AH73: 0.5333775 | AQ73: 13.3344375
C74: Year 4 Projects | K74: 0.20808225 | L74: 0.20808225 | M74: 0.20808225 | N74: 0.20808225 | O74: 0.20808225 | P74: 0.20808225 | Q74: 0.20808225 | R74: 0.20808225 | S74: 0.20808225 | T74: 0.20808225 | U74: 0.20808225 | V74: 0.20808225 | W74: 0.20808225 | X74: 0.20808225 | Y74: 0.20808225 | Z74: 0.20808225 | AA74: 0.20808225 | AB74: 0.20808225 | AC74: 0.20808225 | AD74: 0.20808225 | AE74: 0.20808225 | AF74: 0.20808225 | AG74: 0.20808225 | AH74: 0.20808225 | AI74: 0.20808225 | AQ74: 5.20205625
C75: Year 5 Projects | L75: 0.286117125 | M75: 0.286117125 | N75: 0.286117125 | O75: 0.286117125 | P75: 0.286117125 | Q75: 0.286117125 | R75: 0.286117125 | S75: 0.286117125 | T75: 0.286117125 | U75: 0.286117125 | V75: 0.286117125 | W75: 0.286117125 | X75: 0.286117125 | Y75: 0.286117125 | Z75: 0.286117125 | AA75: 0.286117125 | AB75: 0.286117125 | AC75: 0.286117125 | AD75: 0.286117125 | AE75: 0.286117125 | AF75: 0.286117125 | AG75: 0.286117125 | AH75: 0.286117125 | AI75: 0.286117125 | AJ75: 0.286117125 | AQ75: 7.152928125
C76: Year 6 Projects | M76: 0.364152 | N76: 0.364152 | O76: 0.364152 | P76: 0.364152 | Q76: 0.364152 | R76: 0.364152 | S76: 0.364152 | T76: 0.364152 | U76: 0.364152 | V76: 0.364152 | W76: 0.364152 | X76: 0.364152 | Y76: 0.364152 | Z76: 0.364152 | AA76: 0.364152 | AB76: 0.364152 | AC76: 0.364152 | AD76: 0.364152 | AE76: 0.364152 | AF76: 0.364152 | AG76: 0.364152 | AH76: 0.364152 | AI76: 0.364152 | AJ76: 0.364152 | AK76: 0.364152 | AQ76: 9.1038
C77: Year 7 Projects | N77: 0.442186875 | O77: 0.442186875 | P77: 0.442186875 | Q77: 0.442186875 | R77: 0.442186875 | S77: 0.442186875 | T77: 0.442186875 | U77: 0.442186875 | V77: 0.442186875 | W77: 0.442186875 | X77: 0.442186875 | Y77: 0.442186875 | Z77: 0.442186875 | AA77: 0.442186875 | AB77: 0.442186875 | AC77: 0.442186875 | AD77: 0.442186875 | AE77: 0.442186875 | AF77: 0.442186875 | AG77: 0.442186875 | AH77: 0.442186875 | AI77: 0.442186875 | AJ77: 0.442186875 | AK77: 0.442186875 | AL77: 0.442186875 | AQ77: 11.05467188
C78: Year 8 Projects | O78: 0.52022175 | P78: 0.52022175 | Q78: 0.52022175 | R78: 0.52022175 | S78: 0.52022175 | T78: 0.52022175 | U78: 0.52022175 | V78: 0.52022175 | W78: 0.52022175 | X78: 0.52022175 | Y78: 0.52022175 | Z78: 0.52022175 | AA78: 0.52022175 | AB78: 0.52022175 | AC78: 0.52022175 | AD78: 0.52022175 | AE78: 0.52022175 | AF78: 0.52022175 | AG78: 0.52022175 | AH78: 0.52022175 | AI78: 0.52022175 | AJ78: 0.52022175 | AK78: 0.52022175 | AL78: 0.52022175 | AM78: 0.52022175 | AQ78: 13.00554375
C79: Year 9 Projects | P79: 0.598256625 | Q79: 0.598256625 | R79: 0.598256625 | S79: 0.598256625 | T79: 0.598256625 | U79: 0.598256625 | V79: 0.598256625 | W79: 0.598256625 | X79: 0.598256625 | Y79: 0.598256625 | Z79: 0.598256625 | AA79: 0.598256625 | AB79: 0.598256625 | AC79: 0.598256625 | AD79: 0.598256625 | AE79: 0.598256625 | AF79: 0.598256625 | AG79: 0.598256625 | AH79: 0.598256625 | AI79: 0.598256625 | AJ79: 0.598256625 | AK79: 0.598256625 | AL79: 0.598256625 | AM79: 0.598256625 | AN79: 0.598256625 | AQ79: 14.95641562
C80: Year 10 Projects | Q80: 0.6762915 | R80: 0.6762915 | S80: 0.6762915 | T80: 0.6762915 | U80: 0.6762915 | V80: 0.6762915 | W80: 0.6762915 | X80: 0.6762915 | Y80: 0.6762915 | Z80: 0.6762915 | AA80: 0.6762915 | AB80: 0.6762915 | AC80: 0.6762915 | AD80: 0.6762915 | AE80: 0.6762915 | AF80: 0.6762915 | AG80: 0.6762915 | AH80: 0.6762915 | AI80: 0.6762915 | AJ80: 0.6762915 | AK80: 0.6762915 | AL80: 0.6762915 | AM80: 0.6762915 | AN80: 0.6762915 | AO80: 0.6762915 | AQ80: 16.9072875
C81: Year 11 Projects | R81: 0.754326375 | S81: 0.754326375 | T81: 0.754326375 | U81: 0.754326375 | V81: 0.754326375 | W81: 0.754326375 | X81: 0.754326375 | Y81: 0.754326375 | Z81: 0.754326375 | AA81: 0.754326375 | AB81: 0.754326375 | AC81: 0.754326375 | AD81: 0.754326375 | AE81: 0.754326375 | AF81: 0.754326375 | AG81: 0.754326375 | AH81: 0.754326375 | AI81: 0.754326375 | AJ81: 0.754326375 | AK81: 0.754326375 | AL81: 0.754326375 | AM81: 0.754326375 | AN81: 0.754326375 | AO81: 0.754326375 | AP81: 0.754326375 | AQ81: 18.85815938
AQ82: 110.89905
B83: % Savings of Capex to UC | C83: 0.075
C85: Sub-Total | F85: 0 | G85: 0.9049333333 | H85: 3.727 | I85: 1.440408333 | J85: 2.523910833 | K85: 3.282118083 | L85: 4.118360208 | M85: 5.032637208 | N85: 6.024949083 | O85: 7.095295833 | P85: 8.243677458 | Q85: 3.681635625 | R85: 4.435962 | S85: 4.435962 | T85: 4.435962 | U85: 4.435962 | V85: 4.435962 | W85: 4.435962 | X85: 4.435962 | Y85: 4.435962 | Z85: 4.435962 | AA85: 4.435962 | AB85: 4.435962 | AC85: 4.435962 | AD85: 4.435962 | AE85: 4.435962 | AF85: 4.435962 | AG85: 4.435962 | AH85: 4.383012 | AI85: 3.8496345 | AJ85: 3.64155225 | AK85: 3.355435125 | AL85: 2.991283125 | AM85: 2.54909625 | AN85: 2.0288745 | AO85: 1.430617875 | AP85: 0.754326375 | AQ85: 142.03415
C86: Benefit Attributable to SFT | F86: 0.5
C87: Total | F87: 0 | G87: 0.4524666667 | H87: 1.8635 | I87: 0.7202041667 | J87: 1.261955417 | K87: 1.641059042 | L87: 2.059180104 | M87: 2.516318604 | N87: 3.012474542 | O87: 3.547647917 | P87: 4.121838729 | Q87: 1.840817812 | R87: 2.217981 | S87: 2.217981 | T87: 2.217981 | U87: 2.217981 | V87: 2.217981 | W87: 2.217981 | X87: 2.217981 | Y87: 2.217981 | Z87: 2.217981 | AA87: 2.217981 | AB87: 2.217981 | AC87: 2.217981 | AD87: 2.217981 | AE87: 2.217981 | AF87: 2.217981 | AG87: 2.217981 | AH87: 2.191506 | AI87: 1.92481725 | AJ87: 1.820776125 | AK87: 1.677717563 | AL87: 1.495641562 | AM87: 1.274548125 | AN87: 1.01443725 | AO87: 0.7153089375 | AP87: 0.3771631875 | AQ87: 71.017075
B90: D3 | C90: Savings in Bid Costs
B92: No Bid Costs Written Off on a DBFM Projects: (Not lost because no competition)
C94: Design Fees Saved | E94: 0.225 | F94: per bidder per project
C95: Other Bid Costs | E95: 0.15
C96: Total | E96: 0.375
C97: No of Losing Bidders Per Project | E97: 1.5
C98: UC Reduction (p.a.) | E98: 0.046875
F100: 2011/12 | G100: 2012/13 | H100: 2013/14 | I100: 2014/15 | J100: 2015/16 | K100: 2016/17 | L100: 2017/18 | M100: 2018/19 | N100: 2019/20 | O100: 2020/21 | P100: 2021/22 | Q100: 2022/23 | R100: 2023/24 | S100: 2024/25 | T100: 2025/26 | U100: 2026/27 | V100: 2027/28 | W100: 2028/29 | X100: 2029/30 | Y100: 2030/31 | Z100: 2031/32 | AA100: 2032/33 | AB100: 2033/34 | AC100: 2034/35 | AD100: 2035/36 | AE100: 2036/37 | AF100: 2037/38 | AG100: 2038/39 | AH100: 2039/40 | AI100: 2040/41 | AJ100: 2041/42 | AK100: 2042/43 | AL100: 2043/44 | AM100: 2044/45 | AN100: 2045/46 | AO100: 2046/47 | AP100: 2047/48
B101: Public Sector Investment Returns | E101: Year | F101: 1 | G101: 2 | H101: 3 | I101: 4 | J101: 5 | K101: 6 | L101: 7 | M101: 8 | N101: 9 | O101: 10 | P101: 11 | Q101: 12 | R101: 13 | S101: 14 | T101: 15 | U101: 16 | V101: 17 | W101: 18 | X101: 19 | Y101: 20 | Z101: 21 | AA101: 22 | AB101: 23 | AC101: 24 | AD101: 25 | AE101: 26 | AF101: 27 | AG101: 28 | AH101: 29 | AI101: 30 | AJ101: 31 | AK101: 32 | AL101: 33 | AM101: 34 | AN101: 35 | AO101: 36 | AP101: 37
B103: DBFM | C103: Year 1 Projects | H103: 0 | I103: 0 | J103: 0 | K103: 0 | L103: 0 | M103: 0 | N103: 0 | O103: 0 | P103: 0 | Q103: 0 | R103: 0 | S103: 0 | T103: 0 | U103: 0 | V103: 0 | W103: 0 | X103: 0 | Y103: 0 | Z103: 0 | AA103: 0 | AB103: 0 | AC103: 0 | AD103: 0 | AE103: 0 | AF103: 0 | AQ103: 0
C104: Year 2 Projects | I104: 0.46875 | J104: 0.46875 | K104: 0.46875 | L104: 0.46875 | M104: 0.46875 | N104: 0.46875 | O104: 0.46875 | P104: 0.46875 | Q104: 0.46875 | R104: 0.46875 | S104: 0.46875 | T104: 0.46875 | U104: 0.46875 | V104: 0.46875 | W104: 0.46875 | X104: 0.46875 | Y104: 0.46875 | Z104: 0.46875 | AA104: 0.46875 | AB104: 0.46875 | AC104: 0.46875 | AD104: 0.46875 | AE104: 0.46875 | AF104: 0.46875 | AG104: 0.46875 | AQ104: 11.71875
C105: Year 3 Projects | J105: 1.359375 | K105: 1.359375 | L105: 1.359375 | M105: 1.359375 | N105: 1.359375 | O105: 1.359375 | P105: 1.359375 | Q105: 1.359375 | R105: 1.359375 | S105: 1.359375 | T105: 1.359375 | U105: 1.359375 | V105: 1.359375 | W105: 1.359375 | X105: 1.359375 | Y105: 1.359375 | Z105: 1.359375 | AA105: 1.359375 | AB105: 1.359375 | AC105: 1.359375 | AD105: 1.359375 | AE105: 1.359375 | AF105: 1.359375 | AG105: 1.359375 | AH105: 1.359375 | AQ105: 33.984375
C106: Year 4 Projects | K106: 0.375 | L106: 0.375 | M106: 0.375 | N106: 0.375 | O106: 0.375 | P106: 0.375 | Q106: 0.375 | R106: 0.375 | S106: 0.375 | T106: 0.375 | U106: 0.375 | V106: 0.375 | W106: 0.375 | X106: 0.375 | Y106: 0.375 | Z106: 0.375 | AA106: 0.375 | AB106: 0.375 | AC106: 0.375 | AD106: 0.375 | AE106: 0.375 | AF106: 0.375 | AG106: 0.375 | AH106: 0.375 | AI106: 0.375 | AQ106: 9.375
C107: Year 5 Projects | L107: 0.375 | M107: 0.375 | N107: 0.375 | O107: 0.375 | P107: 0.375 | Q107: 0.375 | R107: 0.375 | S107: 0.375 | T107: 0.375 | U107: 0.375 | V107: 0.375 | W107: 0.375 | X107: 0.375 | Y107: 0.375 | Z107: 0.375 | AA107: 0.375 | AB107: 0.375 | AC107: 0.375 | AD107: 0.375 | AE107: 0.375 | AF107: 0.375 | AG107: 0.375 | AH107: 0.375 | AI107: 0.375 | AJ107: 0.375 | AQ107: 9.375
C108: Year 6 Projects | M108: 0.375 | N108: 0.375 | O108: 0.375 | P108: 0.375 | Q108: 0.375 | R108: 0.375 | S108: 0.375 | T108: 0.375 | U108: 0.375 | V108: 0.375 | W108: 0.375 | X108: 0.375 | Y108: 0.375 | Z108: 0.375 | AA108: 0.375 | AB108: 0.375 | AC108: 0.375 | AD108: 0.375 | AE108: 0.375 | AF108: 0.375 | AG108: 0.375 | AH108: 0.375 | AI108: 0.375 | AJ108: 0.375 | AK108: 0.375 | AQ108: 9.375
C109: Year 7 Projects | N109: 0.375 | O109: 0.375 | P109: 0.375 | Q109: 0.375 | R109: 0.375 | S109: 0.375 | T109: 0.375 | U109: 0.375 | V109: 0.375 | W109: 0.375 | X109: 0.375 | Y109: 0.375 | Z109: 0.375 | AA109: 0.375 | AB109: 0.375 | AC109: 0.375 | AD109: 0.375 | AE109: 0.375 | AF109: 0.375 | AG109: 0.375 | AH109: 0.375 | AI109: 0.375 | AJ109: 0.375 | AK109: 0.375 | AL109: 0.375 | AQ109: 9.375
C110: Year 8 Projects | O110: 0.375 | P110: 0.375 | Q110: 0.375 | R110: 0.375 | S110: 0.375 | T110: 0.375 | U110: 0.375 | V110: 0.375 | W110: 0.375 | X110: 0.375 | Y110: 0.375 | Z110: 0.375 | AA110: 0.375 | AB110: 0.375 | AC110: 0.375 | AD110: 0.375 | AE110: 0.375 | AF110: 0.375 | AG110: 0.375 | AH110: 0.375 | AI110: 0.375 | AJ110: 0.375 | AK110: 0.375 | AL110: 0.375 | AM110: 0.375 | AQ110: 9.375
C111: Year 9 Projects | P111: 0.375 | Q111: 0.375 | R111: 0.375 | S111: 0.375 | T111: 0.375 | U111: 0.375 | V111: 0.375 | W111: 0.375 | X111: 0.375 | Y111: 0.375 | Z111: 0.375 | AA111: 0.375 | AB111: 0.375 | AC111: 0.375 | AD111: 0.375 | AE111: 0.375 | AF111: 0.375 | AG111: 0.375 | AH111: 0.375 | AI111: 0.375 | AJ111: 0.375 | AK111: 0.375 | AL111: 0.375 | AM111: 0.375 | AN111: 0.375 | AQ111: 9.375
C112: Year 10 Projects | Q112: 0.375 | R112: 0.375 | S112: 0.375 | T112: 0.375 | U112: 0.375 | V112: 0.375 | W112: 0.375 | X112: 0.375 | Y112: 0.375 | Z112: 0.375 | AA112: 0.375 | AB112: 0.375 | AC112: 0.375 | AD112: 0.375 | AE112: 0.375 | AF112: 0.375 | AG112: 0.375 | AH112: 0.375 | AI112: 0.375 | AJ112: 0.375 | AK112: 0.375 | AL112: 0.375 | AM112: 0.375 | AN112: 0.375 | AO112: 0.375 | AQ112: 9.375
C113: Year 11 Projects | R113: 0.375 | S113: 0.375 | T113: 0.375 | U113: 0.375 | V113: 0.375 | W113: 0.375 | X113: 0.375 | Y113: 0.375 | Z113: 0.375 | AA113: 0.375 | AB113: 0.375 | AC113: 0.375 | AD113: 0.375 | AE113: 0.375 | AF113: 0.375 | AG113: 0.375 | AH113: 0.375 | AI113: 0.375 | AJ113: 0.375 | AK113: 0.375 | AL113: 0.375 | AM113: 0.375 | AN113: 0.375 | AO113: 0.375 | AP113: 0.375 | AQ113: 9.375
AQ114: 120.703125
C115: Sub-Total | F115: 0 | G115: 0 | H115: 0 | I115: 0.46875 | J115: 1.828125 | K115: 2.203125 | L115: 2.578125 | M115: 2.953125 | N115: 3.328125 | O115: 3.703125 | P115: 4.078125 | Q115: 4.453125 | R115: 4.828125 | S115: 4.828125 | T115: 4.828125 | U115: 4.828125 | V115: 4.828125 | W115: 4.828125 | X115: 4.828125 | Y115: 4.828125 | Z115: 4.828125 | AA115: 4.828125 | AB115: 4.828125 | AC115: 4.828125 | AD115: 4.828125 | AE115: 4.828125 | AF115: 4.828125 | AG115: 4.828125 | AH115: 4.359375 | AI115: 3 | AJ115: 2.625 | AK115: 2.25 | AL115: 1.875 | AM115: 1.5 | AN115: 1.125 | AO115: 0.75 | AP115: 0.375 | AQ115: 120.703125
C116: Benefit Attributable to SFT | F116: 0.5
C117: Total | F117: 0 | G117: 0 | H117: 0 | I117: 0.234375 | J117: 0.9140625 | K117: 1.1015625 | L117: 1.2890625 | M117: 1.4765625 | N117: 1.6640625 | O117: 1.8515625 | P117: 2.0390625 | Q117: 2.2265625 | R117: 2.4140625 | S117: 2.4140625 | T117: 2.4140625 | U117: 2.4140625 | V117: 2.4140625 | W117: 2.4140625 | X117: 2.4140625 | Y117: 2.4140625 | Z117: 2.4140625 | AA117: 2.4140625 | AB117: 2.4140625 | AC117: 2.4140625 | AD117: 2.4140625 | AE117: 2.4140625 | AF117: 2.4140625 | AG117: 2.4140625 | AH117: 2.1796875 | AI117: 1.5 | AJ117: 1.3125 | AK117: 1.125 | AL117: 0.9375 | AM117: 0.75 | AN117: 0.5625 | AO117: 0.375 | AP117: 0.1875 | AQ117: 60.3515625
B120: D4 | C120: Public Sector Investment Returns
B122: Nominal Average Return on Equity / Sub Debt Post Construction | F122: 0.1
B123: Nominal Public Sector Cost of Capital | F123: 0.0609
B124: Real Additional Return on Public Sector Capital | F124: 0.0391
B125: Gearing Ratio | F125: 0.9
B126: Public Sector Investment | E126: 0.4 | F126: 0.04
F128: 2011/12 | G128: 2012/13 | H128: 2013/14 | I128: 2014/15 | J128: 2015/16 | K128: 2016/17 | L128: 2017/18 | M128: 2018/19 | N128: 2019/20 | O128: 2020/21 | P128: 2021/22 | Q128: 2022/23 | R128: 2023/24 | S128: 2024/25 | T128: 2025/26 | U128: 2026/27 | V128: 2027/28 | W128: 2028/29 | X128: 2029/30 | Y128: 2030/31 | Z128: 2031/32 | AA128: 2032/33 | AB128: 2033/34 | AC128: 2034/35 | AD128: 2035/36 | AE128: 2036/37 | AF128: 2037/38 | AG128: 2038/39 | AH128: 2039/40 | AI128: 2040/41 | AJ128: 2041/42 | AK128: 2042/43 | AL128: 2043/44 | AM128: 2044/45 | AN128: 2045/46 | AO128: 2046/47 | AP128: 2047/48
B129: Public Sector Investment Returns | E129: Year | F129: 1 | G129: 2 | H129: 3 | I129: 4 | J129: 5 | K129: 6 | L129: 7 | M129: 8 | N129: 9 | O129: 10 | P129: 11 | Q129: 12 | R129: 13 | S129: 14 | T129: 15 | U129: 16 | V129: 17 | W129: 18 | X129: 19 | Y129: 20 | Z129: 21 | AA129: 22 | AB129: 23 | AC129: 24 | AD129: 25 | AE129: 26 | AF129: 27 | AG129: 28 | AH129: 29 | AI129: 30 | AJ129: 31 | AK129: 32 | AL129: 33 | AM129: 34 | AN129: 35 | AO129: 36 | AP129: 37
B131: DBFM | C131: Year 1 Projects | H131: 0 | I131: 0 | J131: 0 | K131: 0 | L131: 0 | M131: 0 | N131: 0 | O131: 0 | P131: 0 | Q131: 0 | R131: 0 | S131: 0 | T131: 0 | U131: 0 | V131: 0 | W131: 0 | X131: 0 | Y131: 0 | Z131: 0 | AA131: 0 | AB131: 0 | AC131: 0 | AD131: 0 | AE131: 0 | AF131: 0 | AQ131: 0
C132: Year 2 Projects | I132: 0.1354424 | J132: 0.1354424 | K132: 0.1354424 | L132: 0.1354424 | M132: 0.1354424 | N132: 0.1354424 | O132: 0.1354424 | P132: 0.1354424 | Q132: 0.1354424 | R132: 0.1354424 | S132: 0.1354424 | T132: 0.1354424 | U132: 0.1354424 | V132: 0.1354424 | W132: 0.1354424 | X132: 0.1354424 | Y132: 0.1354424 | Z132: 0.1354424 | AA132: 0.1354424 | AB132: 0.1354424 | AC132: 0.1354424 | AD132: 0.1354424 | AE132: 0.1354424 | AF132: 0.1354424 | AG132: 0.1354424 | AQ132: 3.38606
C133: Year 3 Projects | J133: 0.78531568 | K133: 0.78531568 | L133: 0.78531568 | M133: 0.78531568 | N133: 0.78531568 | O133: 0.78531568 | P133: 0.78531568 | Q133: 0.78531568 | R133: 0.78531568 | S133: 0.78531568 | T133: 0.78531568 | U133: 0.78531568 | V133: 0.78531568 | W133: 0.78531568 | X133: 0.78531568 | Y133: 0.78531568 | Z133: 0.78531568 | AA133: 0.78531568 | AB133: 0.78531568 | AC133: 0.78531568 | AD133: 0.78531568 | AE133: 0.78531568 | AF133: 0.78531568 | AG133: 0.78531568 | AH133: 0.78531568 | AQ133: 19.632892
C134: Year 4 Projects | K134: 0.162728726 | L134: 0.162728726 | M134: 0.162728726 | N134: 0.162728726 | O134: 0.162728726 | P134: 0.162728726 | Q134: 0.162728726 | R134: 0.162728726 | S134: 0.162728726 | T134: 0.162728726 | U134: 0.162728726 | V134: 0.162728726 | W134: 0.162728726 | X134: 0.162728726 | Y134: 0.162728726 | Z134: 0.162728726 | AA134: 0.162728726 | AB134: 0.162728726 | AC134: 0.162728726 | AD134: 0.162728726 | AE134: 0.162728726 | AF134: 0.162728726 | AG134: 0.162728726 | AH134: 0.162728726 | AI134: 0.162728726 | AQ134: 4.06821815
C135: Year 5 Projects | L135: 0.162728726 | M135: 0.162728726 | N135: 0.162728726 | O135: 0.162728726 | P135: 0.162728726 | Q135: 0.162728726 | R135: 0.162728726 | S135: 0.162728726 | T135: 0.162728726 | U135: 0.162728726 | V135: 0.162728726 | W135: 0.162728726 | X135: 0.162728726 | Y135: 0.162728726 | Z135: 0.162728726 | AA135: 0.162728726 | AB135: 0.162728726 | AC135: 0.162728726 | AD135: 0.162728726 | AE135: 0.162728726 | AF135: 0.162728726 | AG135: 0.162728726 | AH135: 0.162728726 | AI135: 0.162728726 | AJ135: 0.162728726 | AQ135: 4.06821815
C136: Year 6 Projects | M136: 0.162728726 | N136: 0.162728726 | O136: 0.162728726 | P136: 0.162728726 | Q136: 0.162728726 | R136: 0.162728726 | S136: 0.162728726 | T136: 0.162728726 | U136: 0.162728726 | V136: 0.162728726 | W136: 0.162728726 | X136: 0.162728726 | Y136: 0.162728726 | Z136: 0.162728726 | AA136: 0.162728726 | AB136: 0.162728726 | AC136: 0.162728726 | AD136: 0.162728726 | AE136: 0.162728726 | AF136: 0.162728726 | AG136: 0.162728726 | AH136: 0.162728726 | AI136: 0.162728726 | AJ136: 0.162728726 | AK136: 0.162728726 | AQ136: 4.06821815
C137: Year 7 Projects | N137: 0.162728726 | O137: 0.162728726 | P137: 0.162728726 | Q137: 0.162728726 | R137: 0.162728726 | S137: 0.162728726 | T137: 0.162728726 | U137: 0.162728726 | V137: 0.162728726 | W137: 0.162728726 | X137: 0.162728726 | Y137: 0.162728726 | Z137: 0.162728726 | AA137: 0.162728726 | AB137: 0.162728726 | AC137: 0.162728726 | AD137: 0.162728726 | AE137: 0.162728726 | AF137: 0.162728726 | AG137: 0.162728726 | AH137: 0.162728726 | AI137: 0.162728726 | AJ137: 0.162728726 | AK137: 0.162728726 | AL137: 0.162728726 | AQ137: 4.06821815
C138: Year 8 Projects | O138: 0.162728726 | P138: 0.162728726 | Q138: 0.162728726 | R138: 0.162728726 | S138: 0.162728726 | T138: 0.162728726 | U138: 0.162728726 | V138: 0.162728726 | W138: 0.162728726 | X138: 0.162728726 | Y138: 0.162728726 | Z138: 0.162728726 | AA138: 0.162728726 | AB138: 0.162728726 | AC138: 0.162728726 | AD138: 0.162728726 | AE138: 0.162728726 | AF138: 0.162728726 | AG138: 0.162728726 | AH138: 0.162728726 | AI138: 0.162728726 | AJ138: 0.162728726 | AK138: 0.162728726 | AL138: 0.162728726 | AM138: 0.162728726 | AQ138: 4.06821815
C139: Year 9 Projects | P139: 0.162728726 | Q139: 0.162728726 | R139: 0.162728726 | S139: 0.162728726 | T139: 0.162728726 | U139: 0.162728726 | V139: 0.162728726 | W139: 0.162728726 | X139: 0.162728726 | Y139: 0.162728726 | Z139: 0.162728726 | AA139: 0.162728726 | AB139: 0.162728726 | AC139: 0.162728726 | AD139: 0.162728726 | AE139: 0.162728726 | AF139: 0.162728726 | AG139: 0.162728726 | AH139: 0.162728726 | AI139: 0.162728726 | AJ139: 0.162728726 | AK139: 0.162728726 | AL139: 0.162728726 | AM139: 0.162728726 | AN139: 0.162728726 | AQ139: 4.06821815
C140: Year 10 Projects | Q140: 0.162728726 | R140: 0.162728726 | S140: 0.162728726 | T140: 0.162728726 | U140: 0.162728726 | V140: 0.162728726 | W140: 0.162728726 | X140: 0.162728726 | Y140: 0.162728726 | Z140: 0.162728726 | AA140: 0.162728726 | AB140: 0.162728726 | AC140: 0.162728726 | AD140: 0.162728726 | AE140: 0.162728726 | AF140: 0.162728726 | AG140: 0.162728726 | AH140: 0.162728726 | AI140: 0.162728726 | AJ140: 0.162728726 | AK140: 0.162728726 | AL140: 0.162728726 | AM140: 0.162728726 | AN140: 0.162728726 | AO140: 0.162728726 | AQ140: 4.06821815
C141: Year 11 Projects | R141: 0.162728726 | S141: 0.162728726 | T141: 0.162728726 | U141: 0.162728726 | V141: 0.162728726 | W141: 0.162728726 | X141: 0.162728726 | Y141: 0.162728726 | Z141: 0.162728726 | AA141: 0.162728726 | AB141: 0.162728726 | AC141: 0.162728726 | AD141: 0.162728726 | AE141: 0.162728726 | AF141: 0.162728726 | AG141: 0.162728726 | AH141: 0.162728726 | AI141: 0.162728726 | AJ141: 0.162728726 | AK141: 0.162728726 | AL141: 0.162728726 | AM141: 0.162728726 | AN141: 0.162728726 | AO141: 0.162728726 | AP141: 0.162728726 | AQ141: 4.06821815
AQ142: 55.5646972
C143: Sub-Total | F143: 0 | G143: 0 | H143: 0 | I143: 0.1354424 | J143: 0.92075808 | K143: 1.083486806 | L143: 1.246215532 | M143: 1.408944258 | N143: 1.571672984 | O143: 1.73440171 | P143: 1.897130436 | Q143: 2.059859162 | R143: 2.222587888 | S143: 2.222587888 | T143: 2.222587888 | U143: 2.222587888 | V143: 2.222587888 | W143: 2.222587888 | X143: 2.222587888 | Y143: 2.222587888 | Z143: 2.222587888 | AA143: 2.222587888 | AB143: 2.222587888 | AC143: 2.222587888 | AD143: 2.222587888 | AE143: 2.222587888 | AF143: 2.222587888 | AG143: 2.222587888 | AH143: 2.087145488 | AI143: 1.301829808 | AJ143: 1.139101082 | AK143: 0.976372356 | AL143: 0.81364363 | AM143: 0.650914904 | AN143: 0.488186178 | AO143: 0.325457452 | AP143: 0.162728726 | AQ143: 55.5646972
C144: Benefit Attributable to SFT | F144: 0.5
C145: Total | F145: 0 | G145: 0 | H145: 0 | I145: 0.0677212 | J145: 0.46037904 | K145: 0.541743403 | L145: 0.623107766 | M145: 0.704472129 | N145: 0.785836492 | O145: 0.867200855 | P145: 0.948565218 | Q145: 1.029929581 | R145: 1.111293944 | S145: 1.111293944 | T145: 1.111293944 | U145: 1.111293944 | V145: 1.111293944 | W145: 1.111293944 | X145: 1.111293944 | Y145: 1.111293944 | Z145: 1.111293944 | AA145: 1.111293944 | AB145: 1.111293944 | AC145: 1.111293944 | AD145: 1.111293944 | AE145: 1.111293944 | AF145: 1.111293944 | AG145: 1.111293944 | AH145: 1.043572744 | AI145: 0.650914904 | AJ145: 0.569550541 | AK145: 0.488186178 | AL145: 0.406821815 | AM145: 0.325457452 | AN145: 0.244093089 | AO145: 0.162728726 | AP145: 0.081364363 | AQ145: 27.7823486
B148: D5 | C148: Reduced IRR
B150: Nominal Average Return on Equity / Sub Debt Pre Negotiation | F150: 0.13
B151: Nominal Average Return on Equity / Sub Debt Post Negotiation | F151: 0.1
B152: Saving | F152: 0.03
B153: Sub Debt Investment | F153: 0.1
F155: 2011/12 | G155: 2012/13 | H155: 2013/14 | I155: 2014/15 | J155: 2015/16 | K155: 2016/17 | L155: 2017/18 | M155: 2018/19 | N155: 2019/20 | O155: 2020/21 | P155: 2021/22 | Q155: 2022/23 | R155: 2023/24 | S155: 2024/25 | T155: 2025/26 | U155: 2026/27 | V155: 2027/28 | W155: 2028/29 | X155: 2029/30 | Y155: 2030/31 | Z155: 2031/32 | AA155: 2032/33 | AB155: 2033/34 | AC155: 2034/35 | AD155: 2035/36 | AE155: 2036/37 | AF155: 2037/38 | AG155: 2038/39 | AH155: 2039/40 | AI155: 2040/41 | AJ155: 2041/42 | AK155: 2042/43 | AL155: 2043/44 | AM155: 2044/45 | AN155: 2045/46 | AO155: 2046/47 | AP155: 2047/48
B156: Public Sector Investment Returns | E156: Year | F156: 1 | G156: 2 | H156: 3 | I156: 4 | J156: 5 | K156: 6 | L156: 7 | M156: 8 | N156: 9 | O156: 10 | P156: 11 | Q156: 12 | R156: 13 | S156: 14 | T156: 15 | U156: 16 | V156: 17 | W156: 18 | X156: 19 | Y156: 20 | Z156: 21 | AA156: 22 | AB156: 23 | AC156: 24 | AD156: 25 | AE156: 26 | AF156: 27 | AG156: 28 | AH156: 29 | AI156: 30 | AJ156: 31 | AK156: 32 | AL156: 33 | AM156: 34 | AN156: 35 | AO156: 36 | AP156: 37
B158: DBFM | C158: Year 1 Projects | H158: 0 | I158: 0 | J158: 0 | K158: 0 | L158: 0 | M158: 0 | N158: 0 | O158: 0 | P158: 0 | Q158: 0 | R158: 0 | S158: 0 | T158: 0 | U158: 0 | V158: 0 | W158: 0 | X158: 0 | Y158: 0 | Z158: 0 | AA158: 0 | AB158: 0 | AC158: 0 | AD158: 0 | AE158: 0 | AF158: 0 | AQ158: 0
C159: Year 2 Projects | I159: 0.2598 | J159: 0.2598 | K159: 0.2598 | L159: 0.2598 | M159: 0.2598 | N159: 0.2598 | O159: 0.2598 | P159: 0.2598 | Q159: 0.2598 | R159: 0.2598 | S159: 0.2598 | T159: 0.2598 | U159: 0.2598 | V159: 0.2598 | W159: 0.2598 | X159: 0.2598 | Y159: 0.2598 | Z159: 0.2598 | AA159: 0.2598 | AB159: 0.2598 | AC159: 0.2598 | AD159: 0.2598 | AE159: 0.2598 | AF159: 0.2598 | AG159: 0.2598 | AQ159: 6.495
C160: Year 3 Projects | J160: 1.50636 | K160: 1.50636 | L160: 1.50636 | M160: 1.50636 | N160: 1.50636 | O160: 1.50636 | P160: 1.50636 | Q160: 1.50636 | R160: 1.50636 | S160: 1.50636 | T160: 1.50636 | U160: 1.50636 | V160: 1.50636 | W160: 1.50636 | X160: 1.50636 | Y160: 1.50636 | Z160: 1.50636 | AA160: 1.50636 | AB160: 1.50636 | AC160: 1.50636 | AD160: 1.50636 | AE160: 1.50636 | AF160: 1.50636 | AG160: 1.50636 | AH160: 1.50636 | AQ160: 37.659
C161: Year 4 Projects | K161: 0.3121395 | L161: 0.3121395 | M161: 0.3121395 | N161: 0.3121395 | O161: 0.3121395 | P161: 0.3121395 | Q161: 0.3121395 | R161: 0.3121395 | S161: 0.3121395 | T161: 0.3121395 | U161: 0.3121395 | V161: 0.3121395 | W161: 0.3121395 | X161: 0.3121395 | Y161: 0.3121395 | Z161: 0.3121395 | AA161: 0.3121395 | AB161: 0.3121395 | AC161: 0.3121395 | AD161: 0.3121395 | AE161: 0.3121395 | AF161: 0.3121395 | AG161: 0.3121395 | AH161: 0.3121395 | AI161: 0.3121395 | AQ161: 7.8034875
C162: Year 5 Projects | L162: 0.3121395 | M162: 0.3121395 | N162: 0.3121395 | O162: 0.3121395 | P162: 0.3121395 | Q162: 0.3121395 | R162: 0.3121395 | S162: 0.3121395 | T162: 0.3121395 | U162: 0.3121395 | V162: 0.3121395 | W162: 0.3121395 | X162: 0.3121395 | Y162: 0.3121395 | Z162: 0.3121395 | AA162: 0.3121395 | AB162: 0.3121395 | AC162: 0.3121395 | AD162: 0.3121395 | AE162: 0.3121395 | AF162: 0.3121395 | AG162: 0.3121395 | AH162: 0.3121395 | AI162: 0.3121395 | AJ162: 0.3121395 | AQ162: 7.8034875
C163: Year 6 Projects | M163: 0.3121395 | N163: 0.3121395 | O163: 0.3121395 | P163: 0.3121395 | Q163: 0.3121395 | R163: 0.3121395 | S163: 0.3121395 | T163: 0.3121395 | U163: 0.3121395 | V163: 0.3121395 | W163: 0.3121395 | X163: 0.3121395 | Y163: 0.3121395 | Z163: 0.3121395 | AA163: 0.3121395 | AB163: 0.3121395 | AC163: 0.3121395 | AD163: 0.3121395 | AE163: 0.3121395 | AF163: 0.3121395 | AG163: 0.3121395 | AH163: 0.3121395 | AI163: 0.3121395 | AJ163: 0.3121395 | AK163: 0.3121395 | AQ163: 7.8034875
C164: Year 7 Projects | N164: 0.3121395 | O164: 0.3121395 | P164: 0.3121395 | Q164: 0.3121395 | R164: 0.3121395 | S164: 0.3121395 | T164: 0.3121395 | U164: 0.3121395 | V164: 0.3121395 | W164: 0.3121395 | X164: 0.3121395 | Y164: 0.3121395 | Z164: 0.3121395 | AA164: 0.3121395 | AB164: 0.3121395 | AC164: 0.3121395 | AD164: 0.3121395 | AE164: 0.3121395 | AF164: 0.3121395 | AG164: 0.3121395 | AH164: 0.3121395 | AI164: 0.3121395 | AJ164: 0.3121395 | AK164: 0.3121395 | AL164: 0.3121395 | AQ164: 7.8034875
C165: Year 8 Projects | O165: 0.3121395 | P165: 0.3121395 | Q165: 0.3121395 | R165: 0.3121395 | S165: 0.3121395 | T165: 0.3121395 | U165: 0.3121395 | V165: 0.3121395 | W165: 0.3121395 | X165: 0.3121395 | Y165: 0.3121395 | Z165: 0.3121395 | AA165: 0.3121395 | AB165: 0.3121395 | AC165: 0.3121395 | AD165: 0.3121395 | AE165: 0.3121395 | AF165: 0.3121395 | AG165: 0.3121395 | AH165: 0.3121395 | AI165: 0.3121395 | AJ165: 0.3121395 | AK165: 0.3121395 | AL165: 0.3121395 | AM165: 0.3121395 | AQ165: 7.8034875
C166: Year 9 Projects | P166: 0.3121395 | Q166: 0.3121395 | R166: 0.3121395 | S166: 0.3121395 | T166: 0.3121395 | U166: 0.3121395 | V166: 0.3121395 | W166: 0.3121395 | X166: 0.3121395 | Y166: 0.3121395 | Z166: 0.3121395 | AA166: 0.3121395 | AB166: 0.3121395 | AC166: 0.3121395 | AD166: 0.3121395 | AE166: 0.3121395 | AF166: 0.3121395 | AG166: 0.3121395 | AH166: 0.3121395 | AI166: 0.3121395 | AJ166: 0.3121395 | AK166: 0.3121395 | AL166: 0.3121395 | AM166: 0.3121395 | AN166: 0.3121395 | AQ166: 7.8034875
C167: Year 10 Projects | Q167: 0.3121395 | R167: 0.3121395 | S167: 0.3121395 | T167: 0.3121395 | U167: 0.3121395 | V167: 0.3121395 | W167: 0.3121395 | X167: 0.3121395 | Y167: 0.3121395 | Z167: 0.3121395 | AA167: 0.3121395 | AB167: 0.3121395 | AC167: 0.3121395 | AD167: 0.3121395 | AE167: 0.3121395 | AF167: 0.3121395 | AG167: 0.3121395 | AH167: 0.3121395 | AI167: 0.3121395 | AJ167: 0.3121395 | AK167: 0.3121395 | AL167: 0.3121395 | AM167: 0.3121395 | AN167: 0.3121395 | AO167: 0.3121395 | AQ167: 7.8034875
C168: Year 11 Projects | R168: 0.3121395 | S168: 0.3121395 | T168: 0.3121395 | U168: 0.3121395 | V168: 0.3121395 | W168: 0.3121395 | X168: 0.3121395 | Y168: 0.3121395 | Z168: 0.3121395 | AA168: 0.3121395 | AB168: 0.3121395 | AC168: 0.3121395 | AD168: 0.3121395 | AE168: 0.3121395 | AF168: 0.3121395 | AG168: 0.3121395 | AH168: 0.3121395 | AI168: 0.3121395 | AJ168: 0.3121395 | AK168: 0.3121395 | AL168: 0.3121395 | AM168: 0.3121395 | AN168: 0.3121395 | AO168: 0.3121395 | AP168: 0.3121395 | AQ168: 7.8034875
AQ169: 106.5819
C170: Sub-Total | F170: 0 | G170: 0 | H170: 0 | I170: 0.2598 | J170: 1.76616 | K170: 2.0782995 | L170: 2.390439 | M170: 2.7025785 | N170: 3.014718 | O170: 3.3268575 | P170: 3.638997 | Q170: 3.9511365 | R170: 4.263276 | S170: 4.263276 | T170: 4.263276 | U170: 4.263276 | V170: 4.263276 | W170: 4.263276 | X170: 4.263276 | Y170: 4.263276 | Z170: 4.263276 | AA170: 4.263276 | AB170: 4.263276 | AC170: 4.263276 | AD170: 4.263276 | AE170: 4.263276 | AF170: 4.263276 | AG170: 4.263276 | AH170: 4.003476 | AI170: 2.497116 | AJ170: 2.1849765 | AK170: 1.872837 | AL170: 1.5606975 | AM170: 1.248558 | AN170: 0.9364185 | AO170: 0.624279 | AP170: 0.3121395 | AQ170: 106.5819
C171: Benefit Attributable to SFT | F171: 0.5
C172: Total | F172: 0 | G172: 0 | H172: 0 | I172: 0.1299 | J172: 0.88308 | K172: 1.03914975 | L172: 1.1952195 | M172: 1.35128925 | N172: 1.507359 | O172: 1.66342875 | P172: 1.8194985 | Q172: 1.97556825 | R172: 2.131638 | S172: 2.131638 | T172: 2.131638 | U172: 2.131638 | V172: 2.131638 | W172: 2.131638 | X172: 2.131638 | Y172: 2.131638 | Z172: 2.131638 | AA172: 2.131638 | AB172: 2.131638 | AC172: 2.131638 | AD172: 2.131638 | AE172: 2.131638 | AF172: 2.131638 | AG172: 2.131638 | AH172: 2.001738 | AI172: 1.248558 | AJ172: 1.09248825 | AK172: 0.9364185 | AL172: 0.78034875 | AM172: 0.624279 | AN172: 0.46820925 | AO172: 0.3121395 | AP172: 0.15606975 | AQ172: 53.29095
B177: C9 | C177: hub - return on working capital investment
D178: 2010/11 | E178: 2011/12 | F178: 2012/13 | G178: 2013/14 | H178: 2014/15 | I178: 2015/16 | J178: 2016/17
C179: North & SE hub | D179: =(0.045*400000)+(0.05*400000) -> 38000 | E179: =(0.045*400000)+(0.05*400000) -> 38000 | F179: 38000 | G179: 38000 | H179: 38000 | I179: 38000 | J179: 0
C180: East Central | E180: =0.05*400000 -> 20000 | F180: =0.05*400000 -> 20000 | G180: 20000 | H180: 20000 | I180: 20000 | J180: 20000
C181: TOTAL | D181: =SUM(D179:D180) -> 38000 | E181: =SUM(E179:E180) -> 58000 | F181: 58000 | G181: 58000 | H181: 58000 | I181: 58000 | J181: 20000

Sheet D8 & D8a Supporting Info
A1: D8 - Schools Programme - Needs Identification | M1: D8 | O1: Secondary Schools - Roll
S2: Total 14 Schools | T2: Average
C3: 2010/11 | D3: 2011/12 | E3: 2012/13 | F3: 2013/14 | G3: 2014/15 | H3: 2015/16 | I3: 2016/17 | J3: 2017/8 | K3: 2018/19 | O3: LA proposed design capacity (pupils) | S3: 15005 | T3: =S3/14 -> 1071.785714
O4: Agreed funded roll (pupils) | S4: 13780 | T4: =S4/14 -> 984.2857143
A5: Benefit | C5: =P56 -> 1381872.544 | D5: =Q56 -> 6218426.447 | E5: 10364044.08 | F5: 13818725.44 | G5: 17273406.8 | H5: 21419024.43 | I5: 26255578.33 | J5: 13818725.44 | M5: =SUM(C5:L5) -> 110549803.5
M6: =SUM(C6:L6) -> 0 | O6: Estimated spend based on proposed design capacity using programme parameters (£ exc Infl) | S6: 376281000 | T6: =S6/14 -> 26877214.29
O7: Estimated spend based on agreed funded roll using programme parameters (£ exc Infl) | S7: 357422600 | T7: =S7/14 -> 25530185.71
O8: Benefit | S8: =S6-S7 -> 18858400 | T8: =T6-T7 -> 1347028.571
A9: D8a - Schools Programme - Needs Identification - Further Savings Secondary Schools
C11: 2010/11 | D11: 2011/12 | E11: 2012/13 | F11: 2013/14 | G11: 2014/15 | H11: 2015/16 | I11: 2016/17 | J11: 2017/8 | K11: 2018/19 | O11: Secondary Schools - Space & Cost
S12: Total 14 Schools | T12: Average
A13: Total Benefit | D13: =D16*M13 -> 4109000 | E13: =M13*E16 -> 5503125 | F13: =F16*M13 -> 7337500 | G13: =G16*M13 -> 9098500 | H13: =H16*M13 -> 11373125 | I13: =I16*M13 -> 13941250 | J13: =J16*M13 -> 7337500 | M13: 58700000
A14: SFT take 2/3rds | D14: =D13*(2/3) -> 2739333.333 | E14: 3668750 | F14: 4891666.667 | G14: 6065666.667 | H14: 7582083.333 | I14: 9294166.667 | J14: 4891666.667 | M14: =SUM(D14:J14) -> 39133333.33 | O14: Average LA sqm cost (£) | S14: 2660.285592
O15: SFT sqm cost (£) | S15: 2200
A16: project delivery profile | C16: 0 | D16: 0.07 | E16: 0.09375 | F16: 0.125 | G16: 0.155 | H16: 0.19375 | I16: 0.2375 | J16: 0.125 | O16: Sqm cost saving (£) | S16: =S14-S15 -> 460.2855922
O18: LA average sqm per pupil (sqm) | S18: 12.28314246
O19: SFT average sqm per pupil (sqm) | S19: 10.97387518
O20: Sqm per pupil saving (sqm) | S20: =S18-S19 -> 1.309267277
O22: Agreed funded roll (pupils) | S22: 13780 | T22: =S22/14 -> 984.2857143
O24: LA estimated spend based on average LA sqm / cost and agreed roll (£) | S24: =S14*S18*S22 -> 450284470 | T24: =S24/14 -> 32163176.43
O25: SFT estimated spend based on programme parameters (£) | S25: =S15*S19*S22 -> 332684000 | T25: =S25/14 -> 23763142.86
O26: Benefit | S26: =S24-S25 -> 117600470 | T26: =T24-T25 -> 8400033.571
O29: Primary Schools
S30: Total 21 Schools | T30: Average
O31: LA estimated spend based on initial submissions | S31: 179650000 | T31: =S31/21 -> 8554761.905
O32: SFT estimated spend based on programme parameters | S32: 140495553 | T32: =S32/21 -> 6690264.429
O33: Benefit | S33: =S31-S32 -> 39154447 | T33: =T31-T32 -> 1864497.476
O36: Total Benefits
O38: Secondary Schools:
O39: - Roll | Q39: =S8 -> 18858400
O40: - Space & Cost | Q40: =S26 -> 117600470
O41: Primary Schools | Q41: =S33 -> 39154447
Q42: =SUM(Q39:Q41) -> 175613317
O45: Total Benefit Profile:
P46: 2010/11 | Q46: 2011/12 | R46: 2012/13 | S46: 2013/14 | T46: 2014/15 | U46: 2015/16 | V46: 2016/17 | W46: 2017/18 | X46: Total
O47: % Profile | P47: 0.0125 | Q47: 0.05625 | R47: 0.09375 | S47: 0.125 | T47: 0.15625 | U47: 0.19375 | V47: 0.2375 | W47: 0.125 | X47: 1
O48: Total | P48: =$Q$42*P47 -> 2195166.463 | Q48: 9878249.081 | R48: 16463748.47 | S48: 21951664.63 | T48: 27439580.78 | U48: 34025080.17 | V48: 41708162.79 | W48: 21951664.63 | X48: =SUM(P48:W48) -> 175613317
O51: Shared Benefit Profile:
O52: Secondary Schools: 67% SFT / 33% LA
O53: Benefit Profile | P53: =(($Q$39+$Q$40)*P$47)*(2/3) -> 1137157.25 | Q53: =(($Q$39+$Q$40)*Q$47)*(2/3) -> 5117207.625 | R53: 8528679.375 | S53: 11371572.5 | T53: 14214465.63 | U53: 17625937.38 | V53: 21605987.75 | W53: 11371572.5 | X53: =SUM(P53:W53) -> 90972580
O54: Primary Schools: 50% SFT / 50% LA
O55: Benefit Profile | P55: =($Q$41*P$47)/2 -> 244715.2938 | Q55: 1101218.822 | R55: 1835364.703 | S55: 2447152.938 | T55: 3058941.172 | U55: 3793087.053 | V55: 4649590.581 | W55: 2447152.938 | X55: =SUM(P55:W55) -> 19577223.5
O56: Total | P56: =P53+P55 -> 1381872.544 | Q56: 6218426.447 | R56: 10364044.08 | S56: 13818725.44 | T56: 17273406.8 | U56: 21419024.43 | V56: 26255578.33 | W56: 13818725.44 | X56: =SUM(P56:W56) -> 110549803.5
P59: =P48*67% -> 1470761.53

Sheet D9 Supporting Info
B2: 2011/12 Benefits Profile | D2: 0.03 | E2: Saving
B3: Total | C3: 1180000000
B4: Rev | C4: 450000000 | D4: =C4*D2 -> 13500000 | E4: =D4/12 -> 1125000
B5: Cap | C5: =C3-C4 -> 730000000 | D5: =C5*D2 -> 21900000 | E5: =D5/8 -> 2737500
C7: 2009/10 | D7: 11 | E7: 12 | F7: 13 | G7: 14 | H7: 15 | I7: 16 | J7: 17 | K7: 18 | L7: 19 | M7: 20 | N7: 21 | O7: 22 | P7: 23 | Q7: 24 | R7: 25 | S7: 26 | T7: 27 | U7: 28 | V7: 29 | W7: 30 | X7: 31 | Y7: 32 | Z7: 33 | AA7: 34 | AB7: 35 | AC7: 36 | AD7: 37 | AE7: 38 | AF7: 39
B8: Revenue | C8: 0 | D8: 0 | E8: 0 | F8: 0 | G8: =E4 -> 1125000 | H8: =G8 -> 1125000 | I8: =H8 -> 1125000 | J8: 1125000 | K8: 1125000 | L8: 1125000 | M8: 1125000 | N8: 1125000 | O8: 1125000 | P8: 1125000 | Q8: 1125000 | R8: 1125000 | S8: 1125000 | T8: 1125000 | U8: 1125000 | V8: 1125000 | W8: 1125000 | X8: 1125000 | Y8: 1125000 | Z8: 1125000 | AA8: 1125000 | AB8: 1125000 | AC8: 1125000 | AD8: 1125000 | AE8: 1125000 | AF8: 1125000
B9: Capital | C9: 0 | D9: =E5 -> 2737500 | E9: =D9 -> 2737500 | F9: =E9 -> 2737500 | G9: 2737500 | H9: 2737500 | I9: 2737500 | J9: 2737500 | K9: 2737500
B11: Total | D11: =D8+D9 -> 2737500 | E11: =E8+E9 -> 2737500 | F11: 2737500 | G11: 3862500 | H11: 3862500 | I11: 3862500 | J11: 3862500 | K11: 3862500 | L11: 1125000 | M11: 1125000 | N11: 1125000 | O11: 1125000 | P11: 1125000 | Q11: 1125000 | R11: 1125000 | S11: 1125000 | T11: 1125000 | U11: 1125000 | V11: 1125000 | W11: 1125000 | X11: 1125000 | Y11: 1125000 | Z11: 1125000 | AA11: 1125000 | AB11: 1125000 | AC11: 1125000 | AD11: 1125000 | AE11: 1125000 | AF11: 1125000
B17: 2010/11 Benefits Profile | D17: 11 | E17: 12 | F17: 13 | G17: 14 | H17: 15 | I17: 16 | J17: 17 | K17: 18 | L17: 19 | M17: 20 | N17: 21 | O17: 22 | P17: 23 | Q17: 24 | R17: 25 | S17: 26 | T17: 27 | U17: 28 | V17: 29 | W17: 30 | X17: 31 | Y17: 32 | Z17: 33 | AA17: 34 | AB17: 35 | AC17: 36 | AD17: 37 | AE17: 38 | AF17: 39
B18: Revenue | C18: 0 | D18: 0 | E18: 0 | F18: 0 | G18: 1125000 | H18: 1125000 | I18: 1125000 | J18: 1125000 | K18: 1125000 | L18: 1125000 | M18: 1125000 | N18: 1125000 | O18: 1125000 | P18: 1125000 | Q18: 1125000 | R18: 1125000 | S18: 1125000 | T18: 1125000 | U18: 1125000 | V18: 1125000 | W18: 1125000 | X18: 1125000 | Y18: 1125000 | Z18: 1125000 | AA18: 1125000 | AB18: 1125000 | AC18: 1125000 | AD18: 1125000 | AE18: 1125000 | AF18: 1125000
B19: Capital | C19: 0 | D19: =29100000/7 -> 4157142.857 | E19: =29100000/7 -> 4157142.857 | F19: 4157142.857 | G19: 4157142.857 | H19: 4157142.857 | I19: 4157142.857 | J19: 4157142.857 | K19: 0
B21: Total | D21: =SUM(D17:D20) -> 4157153.857 | E21: =SUM(E17:E20) -> 4157154.857 | F21: 4157155.857 | G21: 5282156.857 | H21: 5282157.857 | I21: 5282158.857 | J21: 5282159.857 | K21: 1125018 | L21: 1125019 | M21: 1125020 | N21: 1125021 | O21: 1125022 | P21: 1125023 | Q21: 1125024 | R21: 1125025 | S21: 1125026 | T21: 1125027 | U21: 1125028 | V21: 1125029 | W21: 1125030 | X21: 1125031 | Y21: 1125032 | Z21: 1125033 | AA21: 1125034 | AB21: 1125035 | AC21: 1125036 | AD21: 1125037 | AE21: 1125038 | AF21: 1125039

Sheet E2 Supporting Sheet
A1: E2
B2: Validation Benefit Profile - Hub Projects Validated by SFT
B3: Summary by Funding Route and Territory | D3: Total | E3: 2009/10 | F3: 2010/11 | G3: 2011/12
B4: South East | C4: SE Revenue | D4: =SUM(G4:L4) -> 0 | G4: 0
B5: North | C5: N Revenue | D5: =SUM(G5:L5) -> 15000000 | G5: 15000000
B6: East Central | C6: EC Revenue | D6: =SUM(G6:L6) -> 0 | G6: 0
B7: West | C7: W Revenue | D7: =SUM(G7:L7) -> 0 | G7: 0
B8: South West | C8: SW Revenue | D8: =SUM(G8:L8) -> 0 | G8: 0
D9: =SUM(D4:D8) -> 15000000 | G9: =SUM(G4:G8) -> 15000000
C11: Revenue Total | D11: =SUM(G11:L11) -> 15000000 | G11: =SUM(G4,G5,G6,G7,G8) -> 15000000 | H11: 0 | I11: 0 | J11: 0 | K11: 0 | L11: 0
B13: 0.6% of Capex x Correction factor of 1.0 | C13: Revenue Savings | D13: 2011/12 | I13: =(G11*0.6%/12) -> 7500 | J13: =I13 -> 7500 | K13: 7500 | L13: 7500 | M13: 7500 | N13: 7500 | O13: 7500 | P13: 7500 | Q13: 7500 | R13: 7500 | S13: 7500 | T13: 7500 | U13: 7500 | V13: 7500 | W13: 7500 | X13: 7500 | Y13: 7500 | Z13: 7500 | AA13: 7500 | AB13: 7500 | AC13: 7500 | AD13: 7500 | AE13: 7500 | AF13: 7500 | AG13: 7500
C14: Total Hub Projects | G14: =SUM(G13:G13) -> 0 | H14: 0 | I14: 7500 | J14: 7500 | K14: 7500 | L14: 7500 | M14: 7500 | N14: 7500 | O14: 7500 | P14: 7500 | Q14: 7500 | R14: 7500 | S14: 7500 | T14: 7500 | U14: 7500 | V14: 7500 | W14: 7500 | X14: 7500 | Y14: 7500 | Z14: 7500 | AA14: 7500 | AB14: 7500 | AC14: 7500 | AD14: 7500 | AE14: 7500 | AF14: 7500 | AG14: 7500 | AH14: 0 | AI14: 0 | AJ14: 0
B17: Validation Benefit Legacy Projects | E17: 2009/10 | F17: 2010/11 | G17: 2011/12 | H17: 2012/13 | I17: 2013/14 | J17: 2014/15 | K17: 2015/16 | L17: 2016/17 | M17: 2017/18 | N17: 2018/19 | O17: 2019/20 | P17: 2020/21 | Q17: 2021/22 | R17: 2022/23 | S17: 2023/24 | T17: 2024/25 | U17: 2025/26 | V17: 2026/27 | W17: 2027/28 | X17: 2028/29 | Y17: 2029/30 | Z17: 2030/31 | AA17: 2031/32 | AB17: 2032/33 | AC17: 2033/34 | AD17: 2034/35 | AE17: 2035/36 | AF17: 2036/37 | AG17: 2037/38 | AH17: 2038/39 | AI17: 2039/40 | AJ17: 2040/41 | AK17: 2041/42
B18: Orkney Islands Schools | C18: Capital | D18: 49000000 | E18: =(D18*0.6%/3) -> 98000 | F18: =E18 -> 98000 | G18: =F18 -> 98000
B19: Western Isles Schools | C19: Capital | D19: 58000000 | E19: =(D19*0.6%/3) -> 116000 | F19: =E19 -> 116000 | G19: =F19 -> 116000
B20: Tayside Mental Health | C20: Revenue | D20: 100000000 | H20: =(D20*0.6%/12) -> 50000 | I20: =H20 -> 50000 | J20: =I20 -> 50000 | K20: 50000 | L20: 50000 | M20: 50000 | N20: 50000 | O20: 50000 | P20: 50000 | Q20: 50000 | R20: 50000 | S20: 50000 | T20: 50000 | U20: 50000 | V20: 50000 | W20: 50000 | X20: 50000 | Y20: 50000 | Z20: =Y20 -> 50000 | AA20: 50000 | AB20: 50000 | AC20: 50000 | AD20: 50000 | AE20: 50000 | AF20: 50000 | AG20: 50000 | AH20: 50000 | AI20: 50000 | AJ20: 50000 | AK20: 50000
B21: Moray Schools | C21: Revenue | D21: 40000000 | H21: =(D21*0.6%/12) -> 20000 | I21: =H21 -> 20000 | J21: 20000 | K21: 20000 | L21: 20000 | M21: 20000 | N21: 20000 | O21: 20000 | P21: 20000 | Q21: 20000 | R21: 20000 | S21: 20000 | T21: 20000 | U21: 20000 | V21: 20000 | W21: 20000 | X21: 20000 | Y21: 20000 | Z21: 20000 | AA21: 20000 | AB21: 20000 | AC21: 20000 | AD21: 20000 | AE21: 20000 | AF21: 20000 | AG21: 20000 | AH21: 20000 | AI21: 20000 | AJ21: 20000 | AK21: 20000
C22: Legacy Total | E22: =SUM(E18:E21) -> 214000 | F22: =SUM(F18:F21) -> 214000 | G22: 214000 | H22: 70000 | I22: 70000 | J22: 70000 | K22: 70000 | L22: 70000 | M22: 70000 | N22: 70000 | O22: 70000 | P22: 70000 | Q22: 70000 | R22: 70000 | S22: 70000 | T22: 70000 | U22: 70000 | V22: 70000 | W22: 70000 | X22: 70000 | Y22: 70000 | Z22: 70000 | AA22: 70000 | AB22: 70000 | AC22: 70000 | AD22: 70000 | AE22: 70000 | AF22: 70000 | AG22: 70000 | AH22: 70000 | AI22: 70000 | AJ22: 70000 | AK22: 70000
C25: Updated Total | E25: =SUM(E22,E14) -> 214000 | F25: =SUM(F22,F14) -> 214000 | G25: 214000 | H25: 70000 | I25: 77500 | J25: 77500 | K25: 77500 | L25: 77500 | M25: 77500 | N25: 77500 | O25: 77500 | P25: 77500 | Q25: 77500 | R25: 77500 | S25: 77500 | T25: 77500 | U25: 77500 | V25: 77500 | W25: 77500 | X25: 77500 | Y25: 77500 | Z25: 77500 | AA25: 77500 | AB25: 77500 | AC25: 77500 | AD25: 77500 | AE25: 77500 | AF25: 77500 | AG25: 77500 | AH25: 70000 | AI25: 70000 | AJ25: 70000 | AK25: 70000

Sheet G2 Supporting Info
A1: G2 | B1: Waste - Service Cost Benefits (Reduced Gate Fees) | H1: GCC residual, CEC/MLC residual, Ayrshire residual & CEC/MLC food waste projects.
D4: 2009/10 | E4: 2010/11 | F4: 2011/12 | G4: 2012/13 | H4: 2013/14 | I4: 2014/15 | J4: 2015/16 | K4: 2016/17 | L4: 2017/18 | M4: 2018/19 | N4: 2019/20 | O4: 2020/12 | AK4: 2042/43
B5: GCC | D5: 0 | E5: 0 | F5: 0 | G5: 0 | H5: 0 | I5: =20500000/25 -> 820000 | J5: =20500000/25 -> 820000 | K5: 820000 | L5: 820000 | M5: 820000 | N5: 820000 | O5: 820000 | P5: 820000 | Q5: 820000 | R5: 820000 | S5: 820000 | T5: 820000 | U5: 820000 | V5: 820000 | W5: 820000 | X5: 820000 | Y5: 820000 | Z5: 820000 | AA5: 820000 | AB5: 820000 | AC5: 820000 | AD5: 820000 | AE5: 820000 | AF5: 820000 | AG5: 820000 | AH5: 0 | AI5: 0 | AJ5: 0 | AK5: 0
B6: CEC/MLC | D6: 0 | E6: 0 | F6: 0 | G6: 0 | H6: 0 | I6: 0 | J6: 0 | K6: 0 | L6: =11275000/25 -> 451000 | M6: =11275000/25 -> 451000 | N6: 451000 | O6: 451000 | P6: 451000 | Q6: 451000 | R6: 451000 | S6: 451000 | T6: 451000 | U6: 451000 | V6: 451000 | W6: 451000 | X6: 451000 | Y6: 451000 | Z6: 451000 | AA6: 451000 | AB6: 451000 | AC6: 451000 | AD6: 451000 | AE6: 451000 | AF6: 451000 | AG6: 451000 | AH6: 451000 | AI6: 451000 | AJ6: 451000 | AK6: 0
B7: Ayrshire | D7: 0 | E7: 0 | F7: 0 | G7: 0 | H7: 0 | I7: 0 | J7: 0 | K7: 0 | L7: 0 | M7: =9225000/25 -> 369000 | N7: =9225000/25 -> 369000 | O7: 369000 | P7: 369000 | Q7: 369000 | R7: 369000 | S7: 369000 | T7: 369000 | U7: 369000 | V7: 369000 | W7: 369000 | X7: 369000 | Y7: 369000 | Z7: 369000 | AA7: 369000 | AB7: 369000 | AC7: 369000 | AD7: 369000 | AE7: 369000 | AF7: 369000 | AG7: 369000 | AH7: 369000 | AI7: 369000 | AJ7: 369000 | AK7: 369000
B8: CEC Food | D8: 0 | E8: 0 | F8: 0 | G8: 0 | H8: 0 | I8: 0 | J8: =912000/20 -> 45600 | K8: =912000/20 -> 45600 | L8: 45600 | M8: 45600 | N8: 45600 | O8: 45600 | P8: 45600 | Q8: 45600 | R8: 45600 | S8: 45600 | T8: 45600 | U8: 45600 | V8: 45600 | W8: 45600 | X8: 45600 | Y8: 45600 | Z8: 45600 | AA8: 45600 | AB8: 45600 | AC8: 45600 | AI8: 0 | AJ8: 0 | AK8: 0
B10: total | D10: =SUM(D5:D9) -> 0 | E10: =SUM(E5:E9) -> 0 | F10: 0 | G10: 0 | H10: 0 | I10: 820000 | J10: 865600 | K10: 865600 | L10: 1316600 | M10: 1685600 | N10: 1685600 | O10: 1685600 | P10: 1685600 | Q10: 1685600 | R10: 1685600 | S10: 1685600 | T10: 1685600 | U10: 1685600 | V10: 1685600 | W10: 1685600 | X10: 1685600 | Y10: 1685600 | Z10: 1685600 | AA10: 1685600 | AB10: 1685600 | AC10: 1685600 | AD10: 1640000 | AE10: 1640000 | AF10: 1640000 | AG10: 1640000 | AH10: 820000 | AI10: 820000 | AJ10: 820000 | AK10: 369000

Sheet G4 and G5 Supporting Info
A2: G4
C3: 2011/12 | D3: 2012/13 | E3: 2013/14 | F3: 2014/15 | G3: 2015/16 | H3: 2016/17 | I3: 2017/18 | J3: 2018/19 | K3: 2019/20 | L3: 2020/21 | M3: 2021/22 | N3: 2022/23 | O3: 2023/24 | P3: 2024/25 | Q3: 2025/26 | R3: 2026/27 | S3: 2027/28 | T3: 2028/29 | U3: 2028/30 | V3: 2028/31 | W3: 2028/32 | X3: 2028/33 | Y3: 2028/34 | Z3: 2028/35 | AA3: 2028/36 | AB3: 2028/37 | AC3: 2037/38 | AE3: CHECK
B4: Capital | C4: =79000000/4 -> 19750000 | D4: =79000000/4 -> 19750000 | E4: =79000000/4 -> 19750000 | F4: =79000000/4 -> 19750000 | AE4: =SUM(C4:AD4) -> 79000000
B5: Revenue | C5: 0 | D5: 0 | E5: 3083000 | F5: 3083000 | G5: 3083000 | H5: 3083000 | I5: 3083000 | J5: 3083000 | K5: 3083000 | L5: 3083000 | M5: 3083000 | N5: 3083000 | O5: 3083000 | P5: 3083000 | Q5: 3083000 | R5: 3083000 | S5: 3083000 | T5: 3083000 | U5: 3083000 | V5: 3083000 | W5: 3083000 | X5: 3083000 | Y5: 3083000 | Z5: 3083000 | AA5: 3083000 | AB5: 3083000 | AC5: 3083000 | AE5: =SUM(C5:AD5) -> 77075000
B6: TOTAL | C6: =SUM(C4:C5) -> 19750000 | D6: 19750000 | E6: 22833000 | F6: 22833000 | G6: 3083000 | H6: 3083000 | I6: 3083000 | J6: 3083000 | K6: 3083000 | L6: 3083000 | M6: 3083000 | N6: 3083000 | O6: 3083000 | P6: 3083000 | Q6: 3083000 | R6: 3083000 | S6: 3083000 | T6: 3083000 | U6: 3083000 | V6: 3083000 | W6: 3083000 | X6: 3083000 | Y6: 3083000 | Z6: 3083000 | AA6: 3083000 | AB6: 3083000 | AC6: 3083000
A9: G5
D11: PROFILE
B12: hub | D12: 1 | E12: 2 | F12: 3 | G12: 4 | H12: 5 | I12: 6 | J12: 7 | K12: 8 | L12: 9 | M12: 10 | N12: 11 | O12: 12 | P12: 13 | Q12: 14 | R12: 15 | S12: 16 | T12: 17 | U12: 18 | V12: 19 | W12: 20 | X12: 21 | Y12: 22 | Z12: 23 | AA12: 24 | AB12: 25 | AC12: 26 | AD12: 27 | AE12: 28 | AF12: 29 | AG12: 30 | AH12: 31 | AI12: 32 | AJ12: 33 | AK12: 34 | AL12: 35 | AM12: 36
B13: TERRITORY | D13: 2011/2012 | E13: 2012/2013 | F13: 2013/2014 | G13: 2014/2015 | H13: 2015/2016 | I13: 2016/2017 | J13: 2017/2018 | K13: 2018/2019 | L13: 2019/2020 | M13: 2020/21 | N13: 2021/22 | O13: 2022/23 | P13: 2023/24 | Q13: 2024/25 | R13: 2025/26 | S13: 2026/27 | T13: 2027/28 | U13: 2028/29 | V13: 2029/30 | W13: 2030/31 | X13: 2031/32 | Y13: 2032/33 | Z13: 2033/34 | AA13: 2034/35 | AB13: 2035/36 | AC13: 2036/37 | AD13: 2037/38 | AE13: 2038/39 | AF13: 2039/40 | AG13: 2040/41 | AH13: 2041/42 | AI13: 2042/43 | AJ13: 2043/44 | AK13: 2044/45 | AL13: 2045/46 | AM13: 2046/47
B15: A | C15: capital | D15: 5000000 | E15: 5000000 | F15: 10000000 | G15: 20000000 | H15: 25000000
C16: revenue | D16: 2500000 | E16: 5000000 | F16: 5000000 | G16: 10000000 | H16: 12500000
B18: B | C18: capital | E18: 5000000 | F18: 5000000 | G18: 10000000 | H18: 20000000 | I18: 25000000
C19: revenue | E19: 2500000 | F19: 5000000 | G19: 5000000 | H19: 10000000 | I19: 12500000
B21: C | C21: capital | F21: 5000000 | G21: 5000000 | H21: 10000000 | I21: 20000000 | J21: 25000000
C22: revenue | F22: 2500000 | G22: 5000000 | H22: 5000000 | I22: 10000000 | J22: 12500000
B24: D | C24: capital | G24: 5000000 | H24: 5000000 | I24: 10000000 | J24: 20000000 | K24: 25000000
C25: revenue | G25: 2500000 | H25: 5000000 | I25: 5000000 | J25: 10000000 | K25: 12500000
B27: E | C27: capital | H27: 5000000 | I27: 5000000 | J27: 10000000 | K27: 20000000 | L27: 25000000
C28: revenue | H28: 2500000 | I28: 5000000 | J28: 5000000 | K28: 10000000 | L28: 12500000 | AN28: TOTALS
C30: SUB TOTAL | D30: =SUM(D15:D29) -> 7500000 | E30: 17500000 | F30: 32500000 | G30: 62500000 | H30: 100000000 | I30: 92500000 | J30: 82500000 | K30: 67500000 | L30: 37500000 | M30: 0 | N30: 0 | O30: 0 | P30: 0 | Q30: 0 | R30: 0 | S30: 0 | T30: 0 | U30: 0 | V30: 0 | W30: 0 | X30: 0 | Y30: 0 | Z30: 0 | AA30: 0 | AB30: 0 | AC30: 0 | AD30: 0 | AE30: 0 | AF30: 0 | AG30: 0 | AH30: 0 | AI30: 0 | AJ30: 0 | AK30: 0 | AL30: 0 | AM30: 0 | AN30: =SUM(D30:AM30) -> 500000000
B32: Central Gov | C32: Capital | F32: 1000000 | G32: 2000000 | H32: 2000000 | I32: 0 | J32: 0 | K32: 0 | L32: 0 | M32: 0 | N32: 0 | O32: 0 | P32: 0 | Q32: 0 | R32: 0 | S32: 0 | T32: 0 | U32: 0 | V32: 0 | W32: 0 | X32: 0 | Y32: 0 | Z32: 0 | AA32: 0 | AB32: 0 | AC32: 0 | AD32: 0 | AE32: 0 | AF32: 0 | AG32: 0 | AH32: 0 | AI32: 0 | AJ32: 0 | AK32: 0 | AL32: 0 | AM32: 0
B33: Core | C33: Revenue | F33: 1000000 | G33: 2000000 | H33: 3000000 | I33: 6000000 | J33: 12000000 | K33: 12000000 | L33: 12000000 | M33: 12000000 | N33: 12000000 | O33: 12000000 | P33: 12000000 | Q33: 12000000 | R33: 12000000 | S33: 12000000 | T33: 12000000 | U33: 12000000 | V33: 12000000 | W33: 12000000 | X33: 12000000 | Y33: 12000000 | Z33: 12000000 | AA33: 12000000 | AB33: 12000000 | AC33: 12000000 | AD33: 12000000 | AE33: 12000000 | AF33: 12000000 | AG33: 12000000 | AH33: 12000000 | AI33: 12000000 | AJ33: 12000000 | AK33: 12000000 | AL33: 12000000 | AM33: 12000000
C34: SUB TOTAL | F34: =SUM(F32:F33) -> 2000000 | G34: 4000000 | H34: 5000000 | I34: 6000000 | J34: 12000000 | K34: 12000000 | L34: 12000000 | M34: 12000000 | N34: 12000000 | O34: 12000000 | P34: 12000000 | Q34: 12000000 | R34: 12000000 | S34: 12000000 | T34: 12000000 | U34: 12000000 | V34: 12000000 | W34: 12000000 | X34: 12000000 | Y34: 12000000 | Z34: 12000000 | AA34: 12000000 | AB34: 12000000 | AC34: 12000000 | AD34: 12000000 | AE34: 12000000 | AF34: 12000000 | AG34: 12000000 | AH34: 12000000 | AI34: 12000000 | AJ34: 12000000 | AK34: 12000000 | AL34: 12000000 | AM34: 12000000 | AN34: =SUM(F34:AM34) -> 377000000
B37: Central Gov | C37: Capital | F37: 1000000 | G37: 2000000 | H37: 3000000 | I37: 8000000 | J37: 0 | K37: 0 | L37: 0 | M37: 0 | N37: 0 | O37: 0 | P37: 0 | Q37: 0 | R37: 0 | S37: 0 | T37: 0 | U37: 0 | V37: 0 | W37: 0 | X37: 0 | Y37: 0 | Z37: 0 | AA37: 0 | AB37: 0 | AC37: 0 | AD37: 0 | AE37: 0 | AF37: 0 | AG37: 0 | AH37: 0 | AI37: 0 | AJ37: 0 | AK37: 0 | AL37: 0 | AM37: 0
B38: Wider | C38: Revenue | F38: 2000000 | G38: 3000000 | H38: 5000000 | I38: 6000000 | J38: 16000000 | K38: 16000000 | L38: 16000000 | M38: 16000000 | N38: 16000000 | O38: 16000000 | P38: 16000000 | Q38: 16000000 | R38: 16000000 | S38: 16000000 | T38: 16000000 | U38: 16000000 | V38: 16000000 | W38: 16000000 | X38: 16000000 | Y38: 16000000 | Z38: 16000000 | AA38: 16000000 | AB38: 16000000 | AC38: 16000000 | AD38: 16000000 | AE38: 16000000 | AF38: 16000000 | AG38: 16000000 | AH38: 16000000 | AI38: 16000000 | AJ38: 16000000 | AK38: 16000000 | AL38: 16000000 | AM38: 16000000
C39: SUB TOTAL | F39: =SUM(F37:F38) -> 3000000 | G39: 5000000 | H39: 8000000 | I39: 14000000 | J39: 16000000 | K39: 16000000 | L39: 16000000 | M39: 16000000 | N39: 16000000 | O39: 16000000 | P39: 16000000 | Q39: 16000000 | R39: 16000000 | S39: 16000000 | T39: 16000000 | U39: 16000000 | V39: 16000000 | W39: 16000000 | X39: 16000000 | Y39: 16000000 | Z39: 16000000 | AA39: 16000000 | AB39: 16000000 | AC39: 16000000 | AD39: 16000000 | AE39: 16000000 | AF39: 16000000 | AG39: 16000000 | AH39: 16000000 | AI39: 16000000 | AJ39: 16000000 | AK39: 16000000 | AL39: 16000000 | AM39: 16000000 | AN39: =SUM(F39:AM39) -> 510000000
C42: GRAND TOTAL | D42: =SUM(D39,D34,D30) -> 7500000 | E42: 17500000 | F42: 37500000 | G42: 71500000 | H42: 113000000 | I42: 112500000 | J42: 110500000 | K42: 95500000 | L42: 65500000 | M42: 28000000 | N42: 28000000 | O42: 28000000 | P42: 28000000 | Q42: 28000000 | R42: 28000000 | S42: 28000000 | T42: 28000000 | U42: 28000000 | V42: 28000000 | W42: 28000000 | X42: 28000000 | Y42: 28000000 | Z42: 28000000 | AA42: 28000000 | AB42: 28000000 | AC42: 28000000 | AD42: 28000000 | AE42: 28000000 | AF42: 28000000 | AG42: 28000000 | AH42: 28000000 | AI42: 28000000 | AJ42: 28000000 | AK42: 28000000 | AL42: 28000000 | AM42: 28000000 | AN42: =SUM(F42:AM42) -> 1362000000

Sheet G6 Supporting Info
A1: Benefit G6 | I1: (From Andrew Bruce)
A2: NPD Needs not Wants
K73: estimated Savings | M73: Est. UC Equiv Saving | N73: Service Start Date | Q73: Approx final capex
I74: Glasgow Colleges | K74: 10%* | M74: 1967254.36 | N74: 2016-07-01 | P74: =J74-L74 -> 0 | Q74: 190m
I75: Inverness Colleges | K75: =K74 -> 10%* | M75: 515233.2848 | N75: 2015-04-01 | P75: =J75-L75 -> 0 | Q75: 50m
I76: Kilmarnock Colleges | K76: =K75 -> 10%* | M76: 515233.2848 | N76: 2015-04-01 | P76: 0 | Q76: 50m
I77: RHSC | K77: =K76 -> 10%* | M77: 1545699.854 | N77: 2016-09-30 | P77: 0 | Q77: 150m
I78: North Ayrshire Community Hospital | K78: =K77 -> 10%* | M78: 463709.9563 | N78: 2016-04-01 | P78: 0 | Q78: 45m
I79: Scottish National Blood Transfusion Service | K79: =K78 -> 10%* | M79: 360663.2994 | N79: 2016-04-01 | P79: 0 | Q79: 35m
P80: =SUM(P74:P79) -> 0 | Q80: =190+50+50+150+45+35 -> 520
J81: *10% saving estimate is an average of assumed savings across the NPD programme. In reality, individual projects will differ from the single 10% assumption, however this is assumed to be a reasonable proxy based on programme savings.
J83: £m | K83: 2009/10 | L83: 2010/11 | M83: 2011/12 | N83: 2012/13 | O83: 2013/14 | P83: 2014/15 | Q83: 2015/16 | R83: 2016/17 | S83: 2017/18 | T83: 2018/19 | U83: 2019/20 | V83: 2020/21 | W83: 2021/22 | X83: 2022/23 | Y83: 2023/24 | Z83: 2024/25 | AA83: 2025/26 | AB83: 2026/27 | AC83: 2027/28 | AD83: 2028/29 | AE83: 2029/30 | AF83: 2030/31 | AG83: 2031/32 | AH83: 2032/33 | AI83: 2033/34 | AJ83: 2034/35 | AK83: 2035/36 | AL83: 2036/37 | AM83: 2037/38 | AN83: 2038/39 | AO83: 2039/40 | AP83: 2040/41 | AQ83: 2041/42
J84: Year | M84: 1 | N84: 2 | O84: 3 | P84: 4 | Q84: 5 | R84: 6 | S84: 7 | T84: 8 | U84: 9 | V84: 10 | W84: 11 | X84: 12 | Y84: 13 | Z84: 14 | AA84: 15 | AB84: 16 | AC84: 17 | AD84: 18 | AE84: 19 | AF84: 20 | AG84: 21 | AH84: 22 | AI84: 23 | AJ84: 24 | AK84: 25 | AL84: 26 | AM84: 27 | AN84: 28 | AO84: 29 | AP84: 30 | AQ84: 31
I85: Glasgow Colleges | R85: =M74*0.75 -> 1475440.77 | S85: =M74 -> 1967254.36 | T85: =S85 -> 1967254.36 | U85: 1967254.36 | V85: 1967254.36 | W85: 1967254.36 | X85: 1967254.36 | Y85: 1967254.36 | Z85: 1967254.36 | AA85: 1967254.36 | AB85: 1967254.36 | AC85: 1967254.36 | AD85: 1967254.36 | AE85: 1967254.36 | AF85: 1967254.36 | AG85: 1967254.36 | AH85: 1967254.36 | AI85: 1967254.36 | AJ85: 1967254.36 | AK85: 1967254.36 | AL85: 1967254.36 | AM85: 1967254.36 | AN85: 1967254.36 | AO85: 1967254.36 | AP85: 1967254.36 | AQ85: =0.25*AP85 -> 491813.59
I86: Inverness Colleges | Q86: =M75 -> 515233.2848 | R86: =Q86 -> 515233.2848 | S86: 515233.2848 | T86: 515233.2848 | U86: 515233.2848 | V86: 515233.2848 | W86: 515233.2848 | X86: 515233.2848 | Y86: 515233.2848 | Z86: 515233.2848 | AA86: 515233.2848 | AB86: 515233.2848 | AC86: 515233.2848 | AD86: 515233.2848 | AE86: 515233.2848 | AF86: 515233.2848 | AG86: 515233.2848 | AH86: 515233.2848 | AI86: 515233.2848 | AJ86: 515233.2848 | AK86: 515233.2848 | AL86: 515233.2848 | AM86: 515233.2848 | AN86: 515233.2848 | AO86: 515233.2848
I87: Kilmarnock Colleges | Q87: =M76 -> 515233.2848 | R87: 515233.2848 | S87: 515233.2848 | T87: 515233.2848 | U87: 515233.2848 | V87: 515233.2848 | W87: 515233.2848 | X87: 515233.2848 | Y87: 515233.2848 | Z87: 515233.2848 | AA87: 515233.2848 | AB87: 515233.2848 | AC87: 515233.2848 | AD87: 515233.2848 | AE87: 515233.2848 | AF87: 515233.2848 | AG87: 515233.2848 | AH87: 515233.2848 | AI87: 515233.2848 | AJ87: 515233.2848 | AK87: 515233.2848 | AL87: 515233.2848 | AM87: 515233.2848 | AN87: 515233.2848 | AO87: 515233.2848
I88: RHSC | R88: =M77*0.5 -> 772849.9272 | S88: 772849.9272 | T88: 772849.9272 | U88: 772849.9272 | V88: 772849.9272 | W88: 772849.9272 | X88: 772849.9272 | Y88: 772849.9272 | Z88: 772849.9272 | AA88: 772849.9272 | AB88: 772849.9272 | AC88: 772849.9272 | AD88: 772849.9272 | AE88: 772849.9272 | AF88: 772849.9272 | AG88: 772849.9272 | AH88: 772849.9272 | AI88: 772849.9272 | AJ88: 772849.9272 | AK88: 772849.9272 | AL88: 772849.9272 | AM88: 772849.9272 | AN88: 772849.9272 | AO88: 772849.9272 | AP88: 772849.9272 | AQ88: =0.5*AP88 -> 386424.9636
I89: North Ayrshire Community Hospital | R89: =M78 -> 463709.9563 | S89: =R89 -> 463709.9563 | T89: 463709.9563 | U89: 463709.9563 | V89: 463709.9563 | W89: 463709.9563 | X89: 463709.9563 | Y89: 463709.9563 | Z89: 463709.9563 | AA89: 463709.9563 | AB89: 463709.9563 | AC89: 463709.9563 | AD89: 463709.9563 | AE89: 463709.9563 | AF89: 463709.9563 | AG89: 463709.9563 | AH89: 463709.9563 | AI89: 463709.9563 | AJ89: 463709.9563 | AK89: 463709.9563 | AL89: 463709.9563 | AM89: 463709.9563 | AN89: 463709.9563 | AO89: 463709.9563 | AP89: 463709.9563
I90: Scottish National Blood Transfusion Service | R90: =M79 -> 360663.2994 | S90: =R90 -> 360663.2994 | T90: 360663.2994 | U90: 360663.2994 | V90: 360663.2994 | W90: 360663.2994 | X90: 360663.2994 | Y90: 360663.2994 | Z90: 360663.2994 | AA90: 360663.2994 | AB90: 360663.2994 | AC90: 360663.2994 | AD90: 360663.2994 | AE90: 360663.2994 | AF90: 360663.2994 | AG90: 360663.2994 | AH90: 360663.2994 | AI90: 360663.2994 | AJ90: 360663.2994 | AK90: 360663.2994 | AL90: 360663.2994 | AM90: 360663.2994 | AN90: 360663.2994 | AO90: 360663.2994 | AP90: 360663.2994
I91: SUM | J91: =SUM(K87:AQ87) -> 12880832.12 | K91: =SUM(K85:K88) -> 0 | L91: 0 | M91: 0 | N91: 0 | O91: 0 | P91: 0 | Q91: =SUM(Q85:Q88) -> 1030466.57 | R91: 3278757.267 | S91: =SUM(S85:S90) -> 4594944.112 | T91: 4594944.112 | U91: 4594944.112 | V91: 4594944.112 | W91: 4594944.112 | X91: 4594944.112 | Y91: 4594944.112 | Z91: 4594944.112 | AA91: 4594944.112 | AB91: 4594944.112 | AC91: 4594944.112 | AD91: 4594944.112 | AE91: 4594944.112 | AF91: 4594944.112 | AG91: 4594944.112 | AH91: 4594944.112 | AI91: 4594944.112 | AJ91: 4594944.112 | AK91: 4594944.112 | AL91: 4594944.112 | AM91: 4594944.112 | AN91: 4594944.112 | AO91: 4594944.112 | AP91: =SUM(AP85:AP88) -> 2740104.287 | AQ91: =SUM(AQ85:AQ90) -> 878238.5536

Sheet G7 Supporting Info
A1: Benefit G7
A2: Local Authority 1
E3: 2012 | F3: =E3+1 -> 2013 | G3: =F3+1 -> 2014 | H3: 2015 | I3: 2016 | J3: 2017 | K3: 2018 | L3: 2019 | M3: 2020 | N3: 2021 | O3: 2022 | P3: 2023 | Q3: 2024 | R3: 2025 | S3: 2026 | T3: 2027 | U3: 2028 | V3: 2029 | W3: 2030 | X3: 2031 | Y3: 2032 | Z3: 2033 | AA3: 2034 | AB3: 2035 | AC3: 2036 | AD3: 2037 | AE3: 2038 | AF3: 2039
B5: Maintenance Budget | C5: Input Profile row 27 | E5: 273634.1092 | F5: 273634.1092 | G5: 271070.4803 | H5: 268506.8514 | I5: 265943.2225 | J5: 263379.5936 | K5: 260815.9647 | L5: 259452.9926 | M5: 258202.9926 | N5: 256952.9926 | O5: 255702.9926 | P5: 254765.4926 | Q5: 253347.6355 | R5: 229017.1593 | S5: 251591.6831 | T5: 214157.1545 | U5: 216032.1545 | V5: 217282.1545 | W5: 217907.1545 | X5: 218219.6545 | Y5: 218219.6545 | Z5: 218219.6545 | AA5: 218219.6545 | AB5: 218219.6545 | AC5: 218219.6545
B6: Energy Budget | C6: Input Profile row 28 | E6: 528745.5213 | F6: 554120.8082 | G6: 566671.3074 | H6: 567176.0277 | I6: 581045.7778 | J6: 586098.7864 | K6: 572323.5082 | L6: 594771.8147 | M6: 623393.9007 | N6: 649204.4054 | O6: 664409.1997 | P6: 670925.3178 | Q6: 687985.7096 | R6: 700943.7525 | S6: 704535.2969 | T6: 716383.2464 | U6: 721304.9222 | V6: 717233.2622 | W6: 726416.7996 | X6: 726416.7996 | Y6: 726416.7996 | Z6: 726416.7996 | AA6: 726416.7996 | AB6: 726416.7996 | AC6: 726416.7996
B8: LED Maintenance Cost | C8: Input Profile row 42 | E8: 189681.9486 | F8: 189681.9486 | G8: 189681.9486 | H8: 94840.97431 | I8: 7440.5 | J8: 7440.5 | K8: 7440.5 | L8: 7440.5 | M8: 7440.5 | N8: 7440.5 | O8: 7440.5 | P8: 7440.5 | Q8: 7440.5 | R8: 7440.5 | S8: 7440.5 | T8: 7440.5 | U8: 7440.5 | V8: 7440.5 | W8: 7440.5 | X8: 7440.5 | Y8: 7440.5 | Z8: 7440.5 | AA8: 7440.5 | AB8: 7440.5 | AC8: 7440.5
B9: LED Energy Cost | C9: Input Profile row 43 | E9: 528745.5213 | F9: 554540.6814 | G9: 571924.4658 | H9: 410323.4722 | I9: 251408.7269 | J9: 255808.6521 | K9: 251995.9094 | L9: 259779.1239 | M9: 269691.6814 | N9: 278212.638 | O9: 282071.9825 | P9: 282205.3352 | Q9: 289497.4387 | R9: 296430.3499 | S9: 299154.0448 | T9: 305139.8645 | U9: 307236.2277 | V9: 305501.9245 | W9: 309413.6064 | X9: 309413.6064 | Y9: 309413.6064 | Z9: 309413.6064 | AA9: 309413.6064 | AB9: 309413.6064 | AC9: 309413.6064
B12: REAL SAVINGS | E12: =SUM(E5:E6)-SUM(E8:E9) -> 83952.16057 | F12: =SUM(F5:F6)-SUM(F8:F9) -> 83532.28735 | G12: 76135.3733 | H12: 330518.4326 | I12: 588139.7734 | J12: 586229.2279 | K12: 573703.0636 | L12: 587005.1834 | M12: 604464.712 | N12: 620504.2601 | O12: 630599.7099 | P12: 636044.9752 | Q12: 644395.4064 | R12: 626090.0619 | S12: 649532.4351 | T12: 617960.0364 | U12: 622660.349 | V12: 621572.9922 | W12: 627469.8478 | X12: 627782.3478 | Y12: 627782.3478 | Z12: 627782.3478 | AA12: 627782.3478 | AB12: 627782.3478 | AC12: 627782.3478
E14: =E12/SUM(E5:E6) -> 0.1046289778 | F14: =F12/SUM(F5:F6) -> 0.100914275 | G14: 0.09088167072 | H14: 0.3955070049 | I14: 0.6943889155 | J14: 0.6901049417 | K14: 0.6886038679 | L14: 0.6871788063 | M14: 0.6856475068 | N14: 0.6847643262 | O14: 0.68535089 | P14: 0.6871030457 | Q14: 0.6845560181 | R14: 0.6732434169 | S14: 0.679337001 | T14: 0.6640872721 | U14: 0.6642864818 | V14: 0.6651286657 | W14: 0.6644646099 | X14: 0.66457561 | Y14: 0.66457561 | Z14: 0.66457561 | AA14: 0.66457561 | AB14: 0.66457561 | AC14: 0.66457561
B16: Financing Costs | C16: Cashflow rows 36 to 46 | E16: 0 | F16: 0 | G16: 0 | H16: -40162.225 | I16: -120486.675 | J16: -734221.7848 | K16: -734221.7848 | L16: -734221.7848 | M16: -734221.7848 | N16: -734221.7848 | O16: -734221.7848 | P16: -734221.7848 | Q16: -734221.7848 | R16: -734221.7848 | S16: -734221.7848 | T16: 6.111804396e-11 | U16: 6.111804396e-11 | V16: 6.111804396e-11 | W16: 6.111804396e-11 | X16: 6.111804396e-11
E18: =E12+E16 -> 83952.16057 | F18: =F12+F16 -> 83532.28735 | G18: 76135.3733 | H18: 290356.2076 | I18: 467653.0984 | J18: -147992.5569 | K18: -160518.7212 | L18: -147216.6014 | M18: -129757.0728 | N18: -113717.5247 | O18: -103622.0749 | P18: -98176.80963 | Q18: -89826.37843 | R18: -108131.7229 | S18: -84689.34969 | T18: 617960.0364 | U18: 622660.349 | V18: 621572.9922 | W18: 627469.8478 | X18: 627782.3478 | Y18: 627782.3478 | Z18: 627782.3478 | AA18: 627782.3478 | AB18: 627782.3478 | AC18: 627782.3478
E20: =E18/SUM(E5:E6) -> 0.1046289778 | F20: =F18/SUM(F5:F6) -> 0.100914275 | G20: 0.09088167072 | H20: 0.3474478356 | I20: 0.5521359761 | J20: -0.1742158015 | K20: -0.1926672861 | L20: -0.1723394124 | M20: -0.1471841312 | N20: -0.1254942298 | O20: -0.1126189565 | P20: -0.1060578851 | Q20: -0.09542462179 | R20: -0.1162755569 | S20: -0.08857542091 | T20: 0.6640872721 | U20: 0.6642864818 | V20: 0.6651286657 | W20: 0.6644646099 | X20: 0.66457561 | Y20: 0.66457561 | Z20: 0.66457561 | AA20: 0.66457561 | AB20: 0.66457561 | AC20: 0.66457561
B22: Source: Draft SFT Street Lighting Project 120502 - WDC - Option 4 Base
B24: Scaled up for total country | C24: =16820/891880 -> 0.01885903933 | E24: =E18/$C$24 -> 4451560.819 | F24: =F18/$C$24 -> 4429297.053 | G24: 4037075.906 | H24: 15396129.28 | I24: 24797291.64 | J24: -7847300.928 | K24: -8511500.421 | L24: -7806155.912 | M24: -6880364.93 | N24: -6029868.367 | O24: -5494557.443 | P24: -5205822.412 | Q24: -4763041.046 | R24: -5733681.393 | S24: -4490650.25 | T24: 32767312.56 | U24: 33016546.5 | V24: 32958889.44 | W24: 33271570.03 | X24: 33288140.33 | Y24: 33288140.33 | Z24: 33288140.33 | AA24: 33288140.33 | AB24: 33288140.33 | AC24: 33288140.33
B26: %age of LA take up | C26: 0.2 | E26: =$C$26*E24 -> 890312.1638 | F26: =$C$26*F24 -> 885859.4107 | G26: 807415.1812 | H26: 3079225.855 | I26: 4959458.328 | J26: -1569460.186 | K26: -1702300.084 | L26: -1561231.182 | M26: -1376072.986 | N26: -1205973.673 | O26: -1098911.489 | P26: -1041164.482 | Q26: -952608.2092 | R26: -1146736.279 | S26: -898130.05 | T26: 6553462.512 | U26: 6603309.299 | V26: 6591777.887 | W26: 6654314.005 | X26: 6657628.066 | Y26: 6657628.066 | Z26: 6657628.066 | AA26: 6657628.066 | AB26: 6657628.066 | AC26: 6657628.066
B27: Confidence Level | C27: 0.5 | E27: =$C$27*E26 -> 445156.0819 | F27: =$C$27*F26 -> 442929.7053 | G27: 403707.5906 | H27: 1539612.928 | I27: 2479729.164 | J27: -784730.0928 | K27: -851150.0421 | L27: -780615.5912 | M27: -688036.493 | N27: -602986.8367 | O27: -549455.7443 | P27: -520582.2412 | Q27: -476304.1046 | R27: -573368.1393 | S27: -449065.025 | T27: 3276731.256 | U27: 3301654.65 | V27: 3295888.944 | W27: 3327157.003 | X27: 3328814.033 | Y27: 3328814.033 | Z27: 3328814.033 | AA27: 3328814.033 | AB27: 3328814.033 | AC27: 3328814.033
B28: Share of Benefit | C28: 0.5 | E28: =$C$28*E27 -> 222578.0409 | F28: =$C$28*F27 -> 221464.8527 | G28: 201853.7953 | H28: 769806.4638 | I28: 1239864.582 | J28: -392365.0464 | K28: -425575.0211 | L28: -390307.7956 | M28: -344018.2465 | N28: -301493.4184 | O28: -274727.8721 | P28: -260291.1206 | Q28: -238152.0523 | R28: -286684.0696 | S28: -224532.5125 | T28: 1638365.628 | U28: 1650827.325 | V28: 1647944.472 | W28: 1663578.501 | X28: 1664407.016 | Y28: 1664407.016 | Z28: 1664407.016 | AA28: 1664407.016 | AB28: 1664407.016 | AC28: 1664407.016
B30: NPV - 10yr | C30: =NPV(6.09%,H28:Q28) -> -24322.09915
B31: NPV - 24 yr | C31: =NPV(6.09%,H28:AC28) -> 5691154.113
A34: Local Authority 2
B37: =B5 -> Maintenance Budget | C37: Input Profile row 27 | E37: 237677.7682 | F37: 236478.2757 | G37: 233879.5288 | H37: 231698.4449 | I37: 230500.4499 | J37: 229302.4549 | K37: 228104.4599 | L37: 226906.4649 | M37: 225708.4699 | N37: 224510.4749 | O37: 223312.4799 | P37: 221819.12 | Q37: 220819.745 | R37: 220820.37 | S37: 221820.995 | T37: 223820.995 | U37: 223254.9236 | V37: 222951.3521 | W37: 222950.1021 | X37: 223451.9771 | Y37: 223705.1021 | Z37: 223704.4771 | AA37: 223705.1021 | AB37: 223705.1021 | AC37: 223705.1021 | AD37: 223705.1021 | AE37: 223705.1021 | AF37: 223705.1021
B38: =B6 -> Energy Budget | C38: Input Profile row 28 | E38: 520540.5751 | F38: 546672.4711 | G38: 564742.9051 | H38: 569253.5303 | I38: 586747.043 | J38: 595516.5808 | K38: 585163.7779 | L38: 601714.8659 | M38: 623094.3502 | N38: 641150.6566 | O38: 648391.5615 | P38: 647044.2265 | Q38: 662067.0552 | R38: 676185.0623 | S38: 680644.8647 | T38: 692475.7155 | U38: 693052.6839 | V38: 683042.8499 | W38: 691788.6094 | X38: 691788.6094 | Y38: 691788.6094 | Z38: 691788.6094 | AA38: 691788.6094 | AB38: 691788.6094 | AC38: 691788.6094 | AD38: 691788.6094 | AE38: 691788.6094 | AF38: 691788.6094
B40: =B8 -> LED Maintenance Cost | C40: Input Profile row 42 | E40: 190519.7682 | F40: 189643.4524 | G40: 189643.4524 | H40: 95239.22619 | I40: 835 | J40: 835 | K40: 8535.5 | L40: 8535.5 | M40: 8535.5 | N40: 8535.5 | O40: 8535.5 | P40: 8535.5 | Q40: 8535.5 | R40: 8535.5 | S40: 8535.5 | T40: 8535.5 | U40: 8535.5 | V40: 8535.5 | W40: 8535.5 | X40: 8535.5 | Y40: 8535.5 | Z40: 8535.5 | AA40: 8535.5 | AB40: 8535.5 | AC40: 8535.5 | AD40: 8535.5 | AE40: 8535.5 | AF40: 8535.5
B41: =B9 -> LED Energy Cost | C41: Input Profile row 43 | E41: 520540.5751 | F41: 544124.5475 | G41: 561181.8061 | H41: 387288.4106 | I41: 215009.3951 | J41: 218772.2925 | K41: 215511.5644 | L41: 222167.9134 | M41: 230645.316 | N41: 237932.5958 | O41: 241233.1786 | P41: 241347.2243 | Q41: 247583.5661 | R41: 253512.7201 | S41: 255842.0744 | T41: 260961.2581 | U41: 262754.1067 | V41: 261270.8985 | W41: 264616.2413 | X41: 264616.2413 | Y41: 264616.2413 | Z41: 264616.2413 | AA41: 264616.2413 | AB41: 264616.2413 | AC41: 264616.2413 | AD41: 264616.2413 | AE41: 264616.2413 | AF41: 264616.2413
B44: =B12 -> REAL SAVINGS | E44: =SUM(E37:E38)-SUM(E40:E41) -> 47158 | F44: =SUM(F37:F38)-SUM(F40:F41) -> 49382.74688 | G44: 47797.17544 | H44: 318424.3384 | I44: 601403.0978 | J44: 605211.7432 | K44: 589221.1734 | L44: 597917.9174 | M44: 609622.0041 | N44: 619193.0357 | O44: 621935.3629 | P44: 618980.6221 | Q44: 626767.7341 | R44: 634957.2122 | S44: 638088.2853 | T44: 646799.9523 | U44: 645018.0007 | V44: 636187.8035 | W44: 641586.9702 | X44: 642088.8452 | Y44: 642341.9702 | Z44: 642341.3452 | AA44: 642341.9702 | AB44: 642341.9702 | AC44: 642341.9702 | AD44: =SUM(AD37:AD38)-SUM(AD40:AD41) -> 642341.9702 | AE44: =SUM(AE37:AE38)-SUM(AE40:AE41) -> 642341.9702 | AF44: =SUM(AF37:AF38)-SUM(AF40:AF41) -> 642341.9702
E46: =E44/SUM(E37:E38) -> 0.0621958047 | F46: =F44/SUM(F37:F38) -> 0.06305650232 | G46: 0.05984952765 | H46: 0.3975573421 | I46: 0.7358885809 | J46: 0.7337509405 | K46: 0.7245102489 | L46: 0.7215816141 | M46: 0.7182139239 | N46: 0.7152833981 | O46: 0.7134707806 | P46: 0.7124027324 | Q46: 0.7099072428 | R46: 0.7078632852 | S46: 0.7070497775 | T46: 0.7058848351 | U46: 0.7039317315 | V46: 0.7021985373 | W46: 0.7013882349 | X46: 0.7015519796 | Y46: 0.7016344975 | Z46: 0.7016342938 | AA46: 0.7016344975 | AB46: 0.7016344975 | AC46: 0.7016344975 | AD46: =AD44/SUM(AD37:AD38) -> 0.7016344975 | AE46: =AE44/SUM(AE37:AE38) -> 0.7016344975 | AF46: =AF44/SUM(AF37:AF38) -> 0.7016344975
B48: =B16 -> Financing Costs | C48: Cashflow rows 36 to 46 | E48: 0 | F48: 0 | G48: 0 | H48: -105560.064 | I48: -316680.1919 | J48: -441099.9988 | K48: -441099.9988 | L48: -441099.9988 | M48: -441099.9988 | N48: -441099.9988 | O48: -441099.9988 | P48: -441099.9988 | Q48: -441099.9988 | R48: -441099.9988 | S48: -441099.9988 | T48: -441099.9988 | U48: -441099.9988 | V48: -441099.9988 | W48: -441099.9988 | X48: -441099.9988 | Y48: -441099.9988 | Z48: -441099.9988 | AA48: -441099.9988 | AB48: -441099.9988 | AC48: -441099.9988 | AD48: -441098.9988 | AE48: -441097.9988 | AF48: -441096.9988 | AG48: 0 | AH48: 0 | AI48: 0 | AJ48: 0 | AK48: 0
B50: Post investment savings | E50: =E44+E48 -> 47158 | F50: =F44+F48 -> 49382.74688 | G50: 47797.17544 | H50: 212864.2745 | I50: 284722.9059 | J50: 164111.7444 | K50: 148121.1747 | L50: 156817.9186 | M50: 168522.0053 | N50: 178093.037 | O50: 180835.3641 | P50: 177880.6234 | Q50: 185667.7353 | R50: 193857.2134 | S50: 196988.2865 | T50: 205699.9536 | U50: 203918.002 | V50: 195087.8048 | W50: 200486.9715 | X50: 200988.8465 | Y50: 201241.9715 | Z50: 201241.3465 | AA50: 201241.9715 | AB50: 201241.9715 | AC50: 201241.9715 | AD50: =AD44+AD48 -> 201242.9715 | AE50: =AE44+AE48 -> 201243.9715 | AF50: =AF44+AF48 -> 201244.9715
B52: Source: Draft SFT Street Lighting Project 120502 - EDC - Option 4 Base
B54: Scaled up for total country | C54: =18119/891880 -> 0.0203155133 | E54: =E50/$C$54 -> 2321280.261 | F54: =F50/$C$54 -> 2430790.015 | G54: 2352742.692 | H54: 10477917.61 | I54: 14015048.58 | J54: 8078149.048 | K54: 7291037.765 | L54: 7719121.654 | M54: 8295237.381 | N54: 8766356.743 | O54: 8901343.592 | P54: 8755901.009 | Q54: 9139209.658 | R54: 9542324.164 | S54: 9696446.436 | T54: 10125264.89 | U54: 10037551.06 | V54: 9602898.135 | W54: 9868663.84 | X54: 9893367.867 | Y54: 9905827.558 | Z54: 9905796.793 | AA54: 9905827.558 | AB54: 9905827.558 | AC54: 9905827.558 | AD54: =AD50/$C$54 -> 9905876.781 | AE54: =AE50/$C$54 -> 9905926.004 | AF54: =AF50/$C$54 -> 9905975.228
B56: %age of LA take up | C56: 0.2 | E56: =$C$56*E54 -> 464256.0521 | F56: =$C$56*F54 -> 486158.0031 | G56: 470548.5384 | H56: 2095583.521 | I56: 2803009.717 | J56: 1615629.81 | K56: 1458207.553 | L56: 1543824.331 | M56: 1659047.476 | N56: 1753271.349 | O56: 1780268.718 | P56: 1751180.202 | Q56: 1827841.932 | R56: 1908464.833 | S56: 1939289.287 | T56: 2025052.978 | U56: 2007510.211 | V56: 1920579.627 | W56: 1973732.768 | X56: 1978673.573 | Y56: 1981165.512 | Z56: 1981159.359 | AA56: 1981165.512 | AB56: 1981165.512 | AC56: 1981165.512 | AD56: =$C$56*AD54 -> 1981175.356 | AE56: =$C$56*AE54 -> 1981185.201 | AF56: =$C$56*AF54 -> 1981195.046
B57: Confidence Level | C57: 0.55 | E57: =$C$57*E56 -> 255340.8287 | F57: =$C$57*F56 -> 267386.9017 | G57: 258801.6961 | H57: 1152570.937 | I57: 1541655.344 | J57: 888596.3953 | K57: 802014.1541 | L57: 849103.3819 | M57: 912476.1119 | N57: 964299.2417 | O57: 979147.7951 | P57: 963149.111 | Q57: 1005313.062 | R57: 1049655.658 | S57: 1066609.108 | T57: 1113779.138 | U57: 1104130.616 | V57: 1056318.795 | W57: 1085553.022 | X57: 1088270.465 | Y57: 1089641.031 | Z57: 1089637.647 | AA57: 1089641.031 | AB57: 1089641.031 | AC57: 1089641.031 | AD57: =$C$57*AD56 -> 1089646.446 | AE57: =$C$57*AE56 -> 1089651.86 | AF57: =$C$57*AF56 -> 1089657.275
B58: Share of Benefit | C58: 0.5 | E58: =$C$58*E57 -> 127670.4143 | F58: =$C$58*F57 -> 133693.4508 | G58: 129400.8481 | H58: 576285.4683 | I58: 770827.6721 | J58: 444298.1976 | K58: 401007.0771 | L58: 424551.691 | M58: 456238.056 | N58: 482149.6209 | O58: 489573.8975 | P58: 481574.5555 | Q58: 502656.5312 | R58: 524827.829 | S58: 533304.554 | T58: 556889.5691 | U58: 552065.3081 | V58: 528159.3974 | W58: 542776.5112 | X58: 544135.2327 | Y58: 544820.5157 | Z58: 544818.8236 | AA58: 544820.5157 | AB58: 544820.5157 | AC58: 544820.5157 | AD58: =$C$58*AD57 -> 544823.223 | AE58: =$C$58*AE57 -> 544825.9302 | AF58: =$C$58*AF57 -> 544828.6375
B60: NPV 10yr saving @20% rollout, post c£30m inv) | C60: =NPV(6.09%,H56:Q56) -> 13591475.21
B61: NPV 10yr (post confidence/share adj) | C61: =NPV(6.09%,H58:Q58) -> 3737655.684
B62: NPV - 25 yr (post confidence/share adj) | C62: =NPV(6.09%,H58:AF58) -> 6635000.081
A65: Local Authority 2 - assume capital investment
B68: =B37 -> Maintenance Budget | C68: Input Profile row 27 | E68: 237677.7682 | F68: 236478.2757 | G68: 233879.5288 | H68: 231698.4449 | I68: 230500.4499 | J68: 229302.4549 | K68: 228104.4599 | L68: 226906.4649 | M68: 225708.4699 | N68: 224510.4749 | O68: 223312.4799 | P68: 221819.12 | Q68: 220819.745 | R68: 220820.37 | S68: 221820.995 | T68: 223820.995 | U68: 223254.9236 | V68: 222951.3521 | W68: 222950.1021 | X68: 223451.9771 | Y68: 223705.1021 | Z68: 223704.4771 | AA68: 223705.1021 | AB68: 223705.1021 | AC68: 223705.1021 | AD68: 223705.1021 | AE68: 223705.1021 | AF68: 223705.1021
B69: =B38 -> Energy Budget | C69: Input Profile row 28 | E69: 520540.5751 | F69: 546672.4711 | G69: 564742.9051 | H69: 569253.5303 | I69: 586747.043 | J69: 595516.5808 | K69: 585163.7779 | L69: 601714.8659 | M69: 623094.3502 | N69: 641150.6566 | O69: 648391.5615 | P69: 647044.2265 | Q69: 662067.0552 | R69: 676185.0623 | S69: 680644.8647 | T69: 692475.7155 | U69: 693052.6839 | V69: 683042.8499 | W69: 691788.6094 | X69: 691788.6094 | Y69: 691788.6094 | Z69: 691788.6094 | AA69: 691788.6094 | AB69: 691788.6094 | AC69: 691788.6094 | AD69: 691788.6094 | AE69: 691788.6094 | AF69: 691788.6094
B71: =B40 -> LED Maintenance Cost | C71: Input Profile row 42 | E71: 190519.7682 | F71: 189643.4524 | G71: 189643.4524 | H71: 95239.22619 | I71: 835 | J71: 835 | K71: 8535.5 | L71: 8535.5 | M71: 8535.5 | N71: 8535.5 | O71: 8535.5 | P71: 8535.5 | Q71: 8535.5 | R71: 8535.5 | S71: 8535.5 | T71: 8535.5 | U71: 8535.5 | V71: 8535.5 | W71: 8535.5 | X71: 8535.5 | Y71: 8535.5 | Z71: 8535.5 | AA71: 8535.5 | AB71: 8535.5 | AC71: 8535.5 | AD71: 8535.5 | AE71: 8535.5 | AF71: 8535.5
B72: =B41 -> LED Energy Cost | C72: Input Profile row 43 | E72: 520540.5751 | F72: 544124.5475 | G72: 561181.8061 | H72: 387288.4106 | I72: 215009.3951 | J72: 218772.2925 | K72: 215511.5644 | L72: 222167.9134 | M72: 230645.316 | N72: 237932.5958 | O72: 241233.1786 | P72: 241347.2243 | Q72: 247583.5661 | R72: 253512.7201 | S72: 255842.0744 | T72: 260961.2581 | U72: 262754.1067 | V72: 261270.8985 | W72: 264616.2413 | X72: 264616.2413 | Y72: 264616.2413 | Z72: 264616.2413 | AA72: 264616.2413 | AB72: 264616.2413 | AC72: 264616.2413 | AD72: 264616.2413 | AE72: 264616.2413 | AF72: 264616.2413
B75: =B44 -> REAL SAVINGS | E75: =SUM(E68:E69)-SUM(E71:E72) -> 47158 | F75: =SUM(F68:F69)-SUM(F71:F72) -> 49382.74688 | G75: 47797.17544 | H75: 318424.3384 | I75: 601403.0978 | J75: 605211.7432 | K75: 589221.1734 | L75: 597917.9174 | M75: 609622.0041 | N75: 619193.0357 | O75: 621935.3629 | P75: 618980.6221 | Q75: 626767.7341 | R75: 634957.2122 | S75: 638088.2853 | T75: 646799.9523 | U75: 645018.0007 | V75: 636187.8035 | W75: 641586.9702 | X75: 642088.8452 | Y75: 642341.9702 | Z75: 642341.3452 | AA75: 642341.9702 | AB75: 642341.9702 | AC75: 642341.9702 | AD75: =SUM(AD68:AD69)-SUM(AD71:AD72) -> 642341.9702 | AE75: =SUM(AE68:AE69)-SUM(AE71:AE72) -> 642341.9702 | AF75: =SUM(AF68:AF69)-SUM(AF71:AF72) -> 642341.9702
E77: =E75/SUM(E68:E69) -> 0.0621958047 | F77: =F75/SUM(F68:F69) -> 0.06305650232 | G77: 0.05984952765 | H77: 0.3975573421 | I77: 0.7358885809 | J77: 0.7337509405 | K77: 0.7245102489 | L77: 0.7215816141 | M77: 0.7182139239 | N77: 0.7152833981 | O77: 0.7134707806 | P77: 0.7124027324 | Q77: 0.7099072428 | R77: 0.7078632852 | S77: 0.7070497775 | T77: 0.7058848351 | U77: 0.7039317315 | V77: 0.7021985373 | W77: 0.7013882349 | X77: 0.7015519796 | Y77: 0.7016344975 | Z77: 0.7016342938 | AA77: 0.7016344975 | AB77: 0.7016344975 | AC77: 0.7016344975 | AD77: =AD75/SUM(AD68:AD69) -> 0.7016344975 | AE77: =AE75/SUM(AE68:AE69) -> 0.7016344975 | AF77: =AF75/SUM(AF68:AF69) -> 0.7016344975
B79: =B48 -> Financing Costs | C79: Cashflow rows 42 | H79: 0 | I79: 0 | J79: -229979.8708 | K79: -237592.2045 | L79: -245456.5065 | M79: -253581.1169 | N79: -261974.6518 | O79: -270646.0128 | P79: -279604.3958 | Q79: -288859.3013 | R79: -298420.5442 | S79: -308298.2642 | T79: -318502.9368 | U79: -329045.384 | V79: -339936.7862 | W79: -351188.6938 | X79: -362813.0396 | Y79: -374822.1512 | Z79: -387228.7644 | AA79: -400046.0365 | AB79: -413287.5603 | AC79: -426967.3785 | AD79: -426967.3785 | AE79: -426967.3785 | AF79: -426967.3785
B81: Post investment savings | E81: =E75+E79 -> 47158 | F81: =F75+F79 -> 49382.74688 | G81: 47797.17544 | H81: 318424.3384 | I81: 601403.0978 | J81: 375231.8724 | K81: 351628.9689 | L81: 352461.4109 | M81: 356040.8872 | N81: 357218.3839 | O81: 351289.3501 | P81: 339376.2263 | Q81: 337908.4328 | R81: 336536.668 | S81: 329790.0211 | T81: 328297.0156 | U81: 315972.6168 | V81: 296251.0173 | W81: 290398.2764 | X81: 279275.8057 | Y81: 267519.8191 | Z81: 255112.5809 | AA81: 242295.9338 | AB81: 229054.4099 | AC81: 215374.5917 | AD81: =AD75+AD79 -> 215374.5917 | AE81: =AE75+AE79 -> 215374.5917 | AF81: =AF75+AF79 -> 215374.5917
B83: Source: Draft SFT Street Lighting Project 120502 - EDC - Option 4 Base
B85: Scaled up for total country | C85: =18119/891880 -> 0.0203155133 | E85: =E81/$C$54 -> 2321280.261 | F85: =F81/$C$54 -> 2430790.015 | G85: 2352742.692 | H85: 15673949.94 | I85: 29603145.59 | J85: 18470213.72 | K85: 17308396.97 | L85: 17349372.65 | M85: 17525566.89 | N85: 17583527.36 | O85: 17291679.76 | P85: 16705274.5 | Q85: 16633024.62 | R85: 16565501.6 | S85: 16233408.24 | T85: 16159917.34 | U85: 15553267.7 | V85: 14582502.2 | W85: 14294410 | X85: 13746923.43 | Y85: 13168253.01 | Z85: 12557525.73 | AA85: 11926645.92 | AB85: 11274852.21 | AC85: 10601484.12 | AD85: =AD81/$C$54 -> 10601484.12 | AE85: =AE81/$C$54 -> 10601484.12 | AF85: =AF81/$C$54 -> 10601484.12
B87: %age of LA take up | C87: =C56 -> 0.2 | E87: =$C$56*E85 -> 464256.0521 | F87: =$C$56*F85 -> 486158.0031 | G87: 470548.5384 | H87: 3134789.988 | I87: 5920629.117 | J87: 3694042.743 | K87: 3461679.395 | L87: 3469874.531 | M87: 3505113.378 | N87: 3516705.472 | O87: 3458335.952 | P87: 3341054.901 | Q87: 3326604.923 | R87: 3313100.32 | S87: 3246681.649 | T87: 3231983.467 | U87: 3110653.54 | V87: 2916500.44 | W87: 2858882 | X87: 2749384.685 | Y87: 2633650.601 | Z87: 2511505.145 | AA87: 2385329.184 | AB87: 2254970.441 | AC87: 2120296.825 | AD87: =$C$56*AD85 -> 2120296.825 | AE87: =$C$56*AE85 -> 2120296.825 | AF87: =$C$56*AF85 -> 2120296.825
B88: Confidence Level | C88: =C57 -> 0.55 | E88: =$C$57*E87 -> 255340.8287 | F88: =$C$57*F87 -> 267386.9017 | G88: 258801.6961 | H88: 1724134.493 | I88: 3256346.015 | J88: 2031723.509 | K88: 1903923.667 | L88: 1908430.992 | M88: 1927812.358 | N88: 1934188.01 | O88: 1902084.773 | P88: 1837580.195 | Q88: 1829632.708 | R88: 1822205.176 | S88: 1785674.907 | T88: 1777590.907 | U88: 1710859.447 | V88: 1604075.242 | W88: 1572385.1 | X88: 1512161.577 | Y88: 1448507.831 | Z88: 1381327.83 | AA88: 1311931.051 | AB88: 1240233.743 | AC88: 1166163.254 | AD88: =$C$57*AD87 -> 1166163.254 | AE88: =$C$57*AE87 -> 1166163.254 | AF88: =$C$57*AF87 -> 1166163.254
B89: Share of Benefit | C89: =C58 -> 0.5 | E89: =$C$58*E88 -> 127670.4143 | F89: =$C$58*F88 -> 133693.4508 | G89: 129400.8481 | H89: 862067.2467 | I89: 1628173.007 | J89: 1015861.754 | K89: 951961.8336 | L89: 954215.496 | M89: 963906.179 | N89: 967094.0048 | O89: 951042.3867 | P89: 918790.0977 | Q89: 914816.3539 | R89: 911102.5879 | S89: 892837.4534 | T89: 888795.4536 | U89: 855429.7235 | V89: 802037.621 | W89: 786192.55 | X89: 756080.7884 | Y89: 724253.9153 | Z89: 690663.9149 | AA89: 655965.5255 | AB89: 620116.8714 | AC89: 583081.6268 | AD89: =$C$58*AD88 -> 583081.6268 | AE89: =$C$58*AE88 -> 583081.6268 | AF89: =$C$58*AF88 -> 583081.6268
B92: NPV 10yr saving @20% rollout, post c£30m inv | C92: =NPV(6.09%,H87:Q87) -> 27366410.71
B93: NPV 10yr (post confidence/share adj) | C93: =NPV(6.09%,H89:Q89) -> 7525762.945
B94: NPV - 25 yr (post confidence/share adj) | C94: =NPV(6.09%,H89:AF89) -> 11576407.41
B97: Blended funding sources
B99: % capital investment | C99: 0.333
B100: % financing required | C100: =1-C99 -> 0.667
B102: Scaled up for total country | C102: =18119/891880 -> 0.0203155133 | E102: =(E85*$C$99)+(E54*$C$100) -> 2321280.261 | F102: 2430790.015 | G102: 2352742.692 | H102: 12208196.37 | I102: 19205884.89 | J102: 11538706.58 | K102: 10626818.38 | L102: 10925995.24 | M102: 11368937.11 | N102: 11702474.56 | O102: 11695325.53 | P102: 11403042.38 | Q102: 11634650.04 | R102: 11881042.25 | S102: 11873254.72 | T102: 12134804.16 | U102: 11874284.7 | V102: 11261106.29 | W102: 11342437.31 | X102: 11176601.87 | Y102: 10992215.23 | Z102: 10788822.53 | AA102: 10578760.07 | AB102: 10361712.77 | AC102: 10137481.19 | AD102: 10137514.03 | AE102: 10137546.86 | AF102: 10137579.69
B104: %age of LA take up | C104: =C56 -> 0.2 | E104: =$C$56*E102 -> 464256.0521 | F104: =$C$56*F102 -> 486158.0031 | G104: 470548.5384 | H104: 2441639.275 | I104: 3841176.977 | J104: 2307741.316 | K104: 2125363.676 | L104: 2185199.047 | M104: 2273787.422 | N104: 2340494.912 | O104: 2339065.107 | P104: 2280608.477 | Q104: 2326930.008 | R104: 2376208.45 | S104: 2374650.944 | T104: 2426960.831 | U104: 2374856.94 | V104: 2252221.258 | W104: 2268487.462 | X104: 2235320.374 | Y104: 2198443.046 | Z104: 2157764.505 | AA104: 2115752.014 | AB104: 2072342.553 | AC104: 2027496.239 | AD104: =$C$56*AD102 -> 2027502.805 | AE104: =$C$56*AE102 -> 2027509.372 | AF104: =$C$56*AF102 -> 2027515.938
B105: Confidence Level | C105: =C57 -> 0.55 | E105: =$C$57*E104 -> 255340.8287 | F105: =$C$57*F104 -> 267386.9017 | G105: 258801.6961 | H105: 1342901.601 | I105: 2112647.337 | J105: 1269257.724 | K105: 1168950.022 | L105: 1201859.476 | M105: 1250583.082 | N105: 1287272.201 | O105: 1286485.809 | P105: 1254334.662 | Q105: 1279811.504 | R105: 1306914.647 | S105: 1306058.019 | T105: 1334828.457 | U105: 1306171.317 | V105: 1238721.692 | W105: 1247668.104 | X105: 1229426.206 | Y105: 1209143.676 | Z105: 1186770.478 | AA105: 1163663.608 | AB105: 1139788.404 | AC105: 1115122.931 | AD105: =$C$57*AD104 -> 1115126.543 | AE105: =$C$57*AE104 -> 1115130.154 | AF105: =$C$57*AF104 -> 1115133.766
B106: Share of Benefit | C106: =C58 -> 0.5 | E106: =$C$58*E105 -> 127670.4143 | F106: =$C$58*F105 -> 133693.4508 | G106: 129400.8481 | H106: 671450.8005 | I106: 1056323.669 | J106: 634628.862 | K106: 584475.011 | L106: 600929.738 | M106: 625291.5409 | N106: 643636.1007 | O106: 643242.9044 | P106: 627167.331 | Q106: 639905.7521 | R106: 653457.3237 | S106: 653029.0095 | T106: 667414.2286 | U106: 653085.6584 | V106: 619360.8459 | W106: 623834.0521 | X106: 614713.1028 | Y106: 604571.8378 | Z106: 593385.239 | AA106: 581831.8039 | AB106: 569894.2021 | AC106: 557561.4657 | AD106: =$C$58*AD105 -> 557563.2714 | AE106: =$C$58*AE105 -> 557565.0772 | AF106: =$C$58*AF105 -> 557566.883
C108: =SUM(E108:G108) -> 1 | E108: 0.25 | F108: 0.5 | G108: 0.25
B111: NPV 10yr saving @20% rollout, post c£30m inv | C111: =NPV(6.09%,H104:Q104) -> 18178528.73
B112: NPV 10yr (post confidence/share adj) | C112: =NPV(6.09%,H106:Q106) -> 4999095.402 | D112: =SUM(E112:G112) -> 4999095.402 | E112: =$C112*E$108 -> 1249773.85 | F112: 2499547.701 | G112: 1249773.85
B113: NPV - 25 yr (post confidence/share adj) | C113: =NPV(6.09%,H106:AF106) -> 8280488.721 | D113: =SUM(E113:G113) -> 8280488.721 | E113: 2070122.18 | F113: 4140244.36 | G113: 2070122.18

Sheet Calcs Refs
A1: Scottish Futures Trust
A2: Benefits Statement - Confidence Factors and Benefit Sharing
A4: Confidence Factors
A5: Level | B5: Description | C5: % Recognised
A6: A - High | B6: Benefit has already been delivered | C6: 1
A7: B - Very Good | B7: Firm, deliverable plans are in place and being progressed for delivery of benefit, but stages remain to be completed | C7: 0.9
A8: C - Good | B8: Plans are in place to deliver the benefit but some third party commitment remains outstanding and/or significant stages remain outstanding to deliver the anticipated benefit | C8: 0.75
A9: D - Moderate | B9: Deliverable benefit identified with discussions ongoing with third party(ies) to put firm plans in place for delivery | C9: 0.55
A12: Benefit Sharing
A13: Level | B13: Description | C13: % Recognised
A14: SFT | B14: Standalone SFT initiative | C14: 1
A15: SFT/SG | B15: SFT working in Partnership with Scottish Government or one of its Departments of Agencies | C15: 0.5
A16: SFT/Local Authority | B16: SFT working in partnership with one or more local authorities | C16: 0.5
A17: SFT/SG/LA | B17: SFT working with boththe Scottish Government and one or more local authorities | C17: =1/3 -> 0.3333333333
A19: Benefit referencing
A20: Ref
A21: A | B21: Avoided Cost
A22: B | B22: Additional Investment
A23: C | B23: Efficiency Gain: Funding & Finance
A24: D | B24: Efficiency Gain: Delivery
A25: E | B25: Efficiency Gain: Validation
A26: F | B26: Efficiency Gain: Centre of Expertise (Ops PPP)
A27: G | B27: Efficiency Gain: Centre of Expertise

Sheet Cumulative Net Scen1
E1: (Cumulative) | F1: (Cumulative)
E2: 2 Yr Consolidated | F2: 3 Yr Consolidated | G2: Net
B3: A1 | C3: SFT Consolidated Avoided Cost Benefit | E3: =4037888-996242 -> 3041646 | F3: ='201112 CALCS'!D43+'201112 CALCS'!E43+'201112 CALCS'!F43 -> 6652800 | G3: =F3-E3 -> 3611154
B4: A17 (2) | C4: Waste - Avoided Future Contract Variations | E4: 996242 | F4: ='201112 CALCS'!D651+'201112 CALCS'!E651+'201112 CALCS'!F651 -> 866297.1317 | G4: -129944.8683
B5: B1 | C5: TIF - Development of Model | E5: 42279306.86 | F5: ='201112 CALCS'!D879+'201112 CALCS'!E879+'201112 CALCS'!F879 -> 73984385.59 | G5: 31705078.73
B6: B2 | C6: NHT - Development of Model | E6: 22654870.83 | F6: ='201112 CALCS'!D917+'201112 CALCS'!E917+'201112 CALCS'!F917 -> 29605797.1 | G6: 6950926.276
B7: B3 | C7: NHT2 - Continued Delivery of the Initiative | E7: 0 | F7: ='201112 CALCS'!D968+'201112 CALCS'!E968+'201112 CALCS'!F968 -> 10324425.41 | G7: 10324425.41
B8: C1 | C8: Western Isles and Orkney Schools Projects - Finance Structure | E8: 38205698.2 | F8: ='201112 CALCS'!D1006+'201112 CALCS'!E1006+'201112 CALCS'!F1006 -> 39542897.63 | G8: 1337199.437
B9: C2 | C9: Borders Rail - Lower Financing Costs (Nil Benefit) | E9: 0 | F9: ='201112 CALCS'!D1044+'201112 CALCS'!E1044+'201112 CALCS'!F1044 -> 0 | G9: 0
B10: C3 | C10: Borders Rail - Competition | E10: 8086928.461 | F10: ='201112 CALCS'!D1082+'201112 CALCS'!E1082+'201112 CALCS'!F1082 -> 0 | G10: -8086928.461
B11: C4 | C11: Orkney Schools Projects - Business Case Diligence | E11: 1022525.77 | F11: ='201112 CALCS'!D1120+'201112 CALCS'!E1120+'201112 CALCS'!F1120 -> 1058314.172 | G11: 35788.40197
B12: C5 | C12: RHSC/DCN Procurement Strategy and Increased Competition | E12: 1246475.608 | F12: ='201112 CALCS'!D1158+'201112 CALCS'!E1158+'201112 CALCS'!F1158 -> 3628865.293 | G12: 2382389.685
B13: C6 | C13: NPD Contract - Saved Procurement Time | E13: 1923580.628 | F13: ='201112 CALCS'!D1196+'201112 CALCS'!E1196+'201112 CALCS'!F1196 -> 3476131.751 | G13: 1552551.123
B14: C7 | C14: NPD Contract - Optimal Risk Transfer | E14: 2794140.388 | F14: ='201112 CALCS'!D1234+'201112 CALCS'!E1234+'201112 CALCS'!F1234 -> 12679224.72 | G14: 9885084.336
B15: C8 | C15: NPD Programme - Reduced Cost of Capital | E15: 2433227.67 | F15: ='201112 CALCS'!D1272+'201112 CALCS'!E1272+'201112 CALCS'!F1272 -> 10816476.14 | G15: 8383248.47
B16: C9 | C16: hub - Return on Working capital investment | E16: 15717.89927 | F16: ='201112 CALCS'!D1310+'201112 CALCS'!E1310+'201112 CALCS'!F1310 -> 146645.1258 | G16: 130927.2266
B17: D1 | C17: Hub Programme - Reduced Procurement Time | E17: 8927982.493 | F17: ='201112 CALCS'!D1348+'201112 CALCS'!E1348+'201112 CALCS'!F1348 -> 19355391.13 | G17: 10427408.63
B18: D2 | C18: Hub Programme - Capital Costs Continuous Improvement | E18: 11947071.25 | F18: ='201112 CALCS'!D1386+'201112 CALCS'!E1386+'201112 CALCS'!F1386 -> 9163342.323 | G18: -2783728.926
B19: D3 | C19: Hub Programme - Bid Costs Savings | E19: 10224105.35 | F19: ='201112 CALCS'!D1424+'201112 CALCS'!E1424+'201112 CALCS'!F1424 -> 26624153.91 | G19: 16400048.56
B20: D4 | C20: Hub Programme - Public Sector Investment Returns | E20: 4625923.781 | F20: ='201112 CALCS'!D1462+'201112 CALCS'!E1462+'201112 CALCS'!F1462 -> 10255328.15 | G20: 5629404.366
B21: D5 | C21: Hub Programme - Reduced Rates of Return | E21: 10647906.4 | F21: ='201112 CALCS'!D1500+'201112 CALCS'!E1500+'201112 CALCS'!F1500 -> 23605614.66 | G21: 12957708.26
B22: D6 | C22: Hub Programme - Dialogue Stage Public Sector Savings | E22: 781299.0865 | F22: ='201112 CALCS'!D1538+'201112 CALCS'!E1538+'201112 CALCS'!F1538 -> 803686.2212 | G22: 22387.1347
B23: D7 | C23: Schools Programme - Pilot Project Savings | E23: 1496894.561 | F23: ='201112 CALCS'!D1576+'201112 CALCS'!E1576+'201112 CALCS'!F1576 -> 1759688.296 | G23: 262793.7343
B24: D8 | C24: Schools Programme - Needs Identification | E24: 71127001.34 | F24: ='201112 CALCS'!D1614+'201112 CALCS'!E1614+'201112 CALCS'!F1614 -> 73580172.24 | G24: 2453170.893
B25: D8a | C25: Schools Programme - Needs Identification - Further Savings Secondary Schools | E25: 0 | F25: ='201112 CALCS'!D1652+'201112 CALCS'!E1652+'201112 CALCS'!F1652 -> 26050115.12 | G25: 26050115.12
B26: D9 | C26: Schools Programme - Continuous Improvement Savings | E26: 6607104.237 | F26: ='201112 CALCS'!D1690+'201112 CALCS'!E1690+'201112 CALCS'!F1690 -> 8644723.299 | G26: 2037619.062
B27: E1 | C27: Validation - Non-Standard Civils Projects (FRC) | E27: 11778397.5 | F27: ='201112 CALCS'!D1728+'201112 CALCS'!E1728+'201112 CALCS'!F1728 -> 13545157.13 | G27: 1766759.625
B28: E2 | C28: Validation - Standard Accommodation Projects | E28: 1451014.068 | F28: ='201112 CALCS'!D1766+'201112 CALCS'!E1766+'201112 CALCS'!F1766 -> 921993.4998 | G28: -529020.5685
B29: E3 | C29: Validation - CMAL | E29: 24290126.58 | F29: ='201112 CALCS'!D1804+'201112 CALCS'!E1804+'201112 CALCS'!F1804 -> 25394223.24 | G29: 1104096.663
B30: E4 | C30: Validation - Non-Standard Civils Projects (Borders Railway) | E30: 1293896.533 | F30: ='201112 CALCS'!D1842+'201112 CALCS'!E1842+'201112 CALCS'!F1842 -> 0 | G30: -1293896.533
B31: F1 | C31: Operational Projects Support | E31: 5869205.427 | F31: ='201112 CALCS'!D1880+'201112 CALCS'!E1880+'201112 CALCS'!F1880 -> 9212885.768 | G31: 3343680.341
B32: G1 | C32: Waste - Procurement Timetable Benefits - Avoided Disposal Costs - Projects other than Clyde Valley | E32: 187018.2276 | F32: ='201112 CALCS'!D1918+'201112 CALCS'!E1918+'201112 CALCS'!F1918 -> 122939.9319 | G32: -64078.29561
B33: G2 | C33: Waste - Service Cost Benefits (Reduced Gate Fees) - Projects other than Clyde Valley | E33: 4276706.974 | F33: ='201112 CALCS'!D1956+'201112 CALCS'!E1956+'201112 CALCS'!F1956 -> 5033894.087 | G33: 757187.1127
B34: G3 | C34: Waste - Reduced Gate Fees - Clyde Valley | E34: 4366654.62 | F34: ='201112 CALCS'!D1994+'201112 CALCS'!E1994+'201112 CALCS'!F1994 -> 2036297.891 | G34: -2330356.728
B35: G4 | C35: Budget Recast - Initial Benefit Identification | E35: 40492350.8 | F35: ='201112 CALCS'!D2032+'201112 CALCS'!E2032+'201112 CALCS'!F2032 -> 46566203.41 | G35: 6073852.619
B36: G5 | C36: Asset Management | E36: 11947778.74 | F36: ='201112 CALCS'!D2070+'201112 CALCS'!E2070+'201112 CALCS'!F2070 -> 49463803.99 | G36: 37516025.25
B37: G6 | C37: NPD Programme - Needs not Wants - Scrutiny & Challenge | E37: 1764761.029 | F37: ='201112 CALCS'!D2108+'201112 CALCS'!E2108+'201112 CALCS'!F2108 -> 17171299.55 | G37: 15406538.52
B38: G7 | C38: Energy Efficient Streetlighting Model for Local Authorities | E38: 0 | F38: ='201112 CALCS'!D2146+'201112 CALCS'!E2146+'201112 CALCS'!F2146 -> 2654760.632 | G38: 2654760.632
E39: =SUM(E3:E38) -> 358803559.3 | F39: =SUM(F3:F38) -> 564747934.5 | G39: =SUM(G3:G38) -> 205944375.2
E41: SFT Ops Costs | F41: ='201112 CALCS'!C2178 -> 4785230 | G41: =G39-F41 -> 201159145.2

Sheet Cumulative Net Scen2
E1: (Cumulative) | F1: (Cumulative)
E2: 2 Yr Consolidated | F2: 3 Yr Consolidated | G2: Net
B3: A1 | C3: SFT Consolidated Avoided Cost Benefit | D3: ='Summary New'!F3 -> Avoided Cost | E3: =SUM([2]Summary!$N$15:$N$30,[2]Summary!$N$32:$N$36) -> 3041645.929 | F3: =SUM('201112 CALCS'!$D$44:$F$44) -> 6652800 | G3: =F3-E3 -> 3611154.071 | I3: 3611154.071
B4: A17 (2) | C4: Waste - Avoided Future Contract Variations | D4: ='Summary New'!F4 -> Avoided Cost | E4: 196385.3356 | F4: =SUM('201112 CALCS'!$D$652:$F$652) -> 115793.2031 | G4: -80592.13257 | I4: -80592.13257
B5: B1 | C5: TIF - Development of Model | D5: ='Summary New'!F5 -> Additional Investment | E5: 42279306.86 | F5: =SUM('201112 CALCS'!D880:F880) -> 73247110.03 | G5: 30967803.16
B6: B2 | C6: NHT - Development of Model | D6: ='Summary New'!F6 -> Additional Investment | E6: 22654870.83 | F6: =SUM('201112 CALCS'!D918:F918) -> 29605797.1 | G6: 6950926.276
B7: B3 | C7: NHT2 - Continued Delivery of the Initiative | D7: ='Summary New'!F7 -> Additional Investment | E7: 0 | F7: =SUM('201112 CALCS'!$D$969:$F$969) -> 10324425.41 | G7: 10324425.41
B8: C1 | C8: Western Isles and Orkney Schools Projects - Finance Structure | D8: ='Summary New'!F8 -> Efficiency Gain: Funding and Finance | E8: 14279231.31 | F8: =SUM('201112 CALCS'!$D$1007:$F$1007) -> 16356525.99 | G8: 2077294.686
B9: C2 | C9: Borders Rail - Lower Financing Costs (Nil Benefit) | D9: ='Summary New'!F9 -> n/a | E9: 0 | F9: =SUM('201112 CALCS'!$D$1045:$F$1045) -> 0 | G9: 0
B10: C3 | C10: Borders Rail - Competition | D10: ='Summary New'!F10 -> n/a | E10: 2342949.145 | F10: =SUM('201112 CALCS'!$D$1083:$F$1083) -> 0 | G10: -2342949.145
B11: C4 | C11: Orkney Schools Projects - Business Case Diligence | D11: ='Summary New'!F11 -> Efficiency Gain: Funding and Finance | E11: 353895.5185 | F11: =SUM('201112 CALCS'!$D$1121:$F$1121) -> 411773.1819 | G11: 57877.66342
B12: C5 | C12: RHSC/DCN Procurement Strategy and Increased Competition | D12: ='Summary New'!F12 -> Efficiency Gain: Funding and Finance | E12: 361129.5653 | F12: =SUM('201112 CALCS'!$D$1159:$F$1159) -> 1206437.671 | G12: 845308.1057
B13: C6 | C13: NPD Contract - Saved Procurement Time | D13: ='Summary New'!F13 -> Efficiency Gain: Funding and Finance | E13: 780215.3107 | F13: =SUM('201112 CALCS'!$D$1197:$F$1197) -> 1651938.069 | G13: 871722.7581
B14: C7 | C14: NPD Contract - Optimal Risk Transfer | D14: ='Summary New'!F14 -> Efficiency Gain: Funding and Finance | E14: 849219.1179 | F14: =SUM('201112 CALCS'!$D$1235:$F$1235) -> 4558648.36 | G14: 3709429.242
B15: C8 | C15: NPD Programme - Reduced Cost of Capital | D15: ='Summary New'!F15 -> Efficiency Gain: Funding and Finance | E15: 554194.573 | F15: =SUM('201112 CALCS'!$D$1273:$F$1273) -> 1765707.778 | G15: 1211513.205
B16: C9 | C16: hub - Return on Working capital investment | D16: ='Summary New'!F16 -> Efficiency Gain: Funding and Finance | E16: 15717.89927 | F16: =SUM('201112 CALCS'!$D$1311:$F$1311) -> 146645.1258 | G16: 130927.2266
B17: D1 | C17: Hub Programme - Reduced Procurement Time | D17: ='Summary New'!F17 -> Efficiency Gain: Delivery | E17: 3900860.033 | F17: =SUM('201112 CALCS'!$D$1349:$F$1349) -> 8697841.549 | G17: 4796981.516
B18: D2 | C18: Hub Programme - Capital Costs Continuous Improvement | D18: ='Summary New'!F18 -> Efficiency Gain: Delivery | E18: 4161479.394 | F18: =SUM('201112 CALCS'!$D$1387:$F$1387) -> 3116580.754 | G18: -1044898.64
B19: D3 | C19: Hub Programme - Bid Costs Savings | D19: ='Summary New'!F19 -> Efficiency Gain: Delivery | E19: 1782956.494 | F19: =SUM('201112 CALCS'!$D$1425:$F$1425) -> 5481194.304 | G19: 3698237.81
B20: D4 | C20: Hub Programme - Public Sector Investment Returns | D20: ='Summary New'!F20 -> Efficiency Gain: Delivery | E20: 876720.0202 | F20: =SUM('201112 CALCS'!$D$1463:$F$1463) -> 2168154.352 | G20: 1291434.332
B21: D5 | C21: Hub Programme - Reduced Rates of Return | D21: ='Summary New'!F21 -> Efficiency Gain: Delivery | E21: 2018025.622 | F21: =SUM('201112 CALCS'!$D$1501:$F$1501) -> 4990636.616 | G21: 2972610.994
B22: D6 | C22: Hub Programme - Dialogue Stage Public Sector Savings | D22: ='Summary New'!F22 -> Efficiency Gain: Delivery | E22: 781299.0865 | F22: =SUM('201112 CALCS'!$D$1539:$F$1539) -> 803686.2212 | G22: 22387.1347
B23: D7 | C23: Schools Programme - Pilot Project Savings | D23: ='Summary New'!F23 -> Efficiency Gain: Delivery | E23: 1496894.561 | F23: =SUM('201112 CALCS'!$D$1577:$F$1577) -> 1759688.296 | G23: 262793.7343
B24: D8 | C24: Schools Programme - Needs Identification | D24: ='Summary New'!F24 -> Efficiency Gain: Delivery | E24: 71127001.34 | F24: =SUM('201112 CALCS'!$D$1615:$F$1615) -> 73580172.24 | G24: 2453170.893
B25: D8a | C25: Schools Programme - Needs Identification - Further Savings Secondary Schools | D25: ='Summary New'!F25 -> Efficiency Gain: Delivery | E25: 0 | F25: =SUM('201112 CALCS'!$D$1653:$F$1653) -> 26050115.12 | G25: 26050115.12
B26: D9 | C26: Schools Programme - Continuous Improvement Savings | D26: ='Summary New'!F26 -> Efficiency Gain: Delivery | E26: 4909548.184 | F26: =SUM('201112 CALCS'!$D$1691:$F$1691) -> 6195061.056 | G26: 1285512.872
B27: E1 | C27: Validation - Non-Standard Civils Projects (FRC) | D27: ='Summary New'!F27 -> Efficiency Gain: Validation | E27: 11778397.5 | F27: =SUM('201112 CALCS'!$D$1729:$F$1729) -> 13545157.13 | G27: 1766759.625
B28: E2 | C28: Validation - Standard Accommodation Projects | D28: ='Summary New'!F28 -> Efficiency Gain: Validation | E28: 1256263.756 | F28: =SUM('201112 CALCS'!$D$1767:$F$1767) -> 550957.1974 | G28: -705306.559
B29: E3 | C29: Validation - CMAL | D29: ='Summary New'!F29 -> Efficiency Gain: Validation | E29: 11212056.22 | F29: =SUM('201112 CALCS'!$D$1805:$F$1805) -> 12813975.98 | G29: 1601919.76
B30: E4 | C30: Validation - Non-Standard Civils Projects (Borders Railway) | D30: ='Summary New'!F30 -> Efficiency Gain: Validation | E30: 317637.8964 | F30: =SUM('201112 CALCS'!$D$1843:$F$1843) -> 0 | G30: -317637.8964
B31: F1 | C31: Operational Projects Support | D31: ='Summary New'!F31 -> Efficiency Gain: Centre of Expertise | E31: 2513789.183 | F31: =SUM('201112 CALCS'!$D$1881:$F$1881) -> 4100223.706 | G31: 1586434.523
B32: G1 | C32: Waste - Procurement Timetable Benefits - Avoided Disposal Costs - Projects other than Clyde Valley | D32: ='Summary New'!F32 -> Efficiency Gain: Centre of Expertise | E32: 187018.2276 | F32: =SUM('201112 CALCS'!$D$1919:$F$1919) -> 122939.9319 | G32: -64078.29561
B33: G2 | C33: Waste - Service Cost Benefits (Reduced Gate Fees) - Projects other than Clyde Valley | D33: ='Summary New'!F33 -> Efficiency Gain: Centre of Expertise | E33: 1015789.438 | F33: =SUM('201112 CALCS'!$D$1957:$F$1957) -> 1471694.347 | G33: 455904.9083
B34: G3 | C34: Waste - Reduced Gate Fees - Clyde Valley | D34: ='Summary New'!F34 -> Efficiency Gain: Centre of Expertise | E34: 2579913.734 | F34: =SUM('201112 CALCS'!$D$1995:$F$1995) -> 346143.3987 | G34: -2233770.335
B35: G4 | C35: Budget Recast - Initial Benefit Identification | D35: ='Summary New'!F35 -> Efficiency Gain: Centre of Expertise | E35: 30422605.87 | F35: =SUM('201112 CALCS'!$D$2033:$F$2033) -> 35834281.47 | G35: 5411675.601
B36: G5 | C36: Asset Management | D36: ='Summary New'!F36 -> Efficiency Gain: Centre of Expertise | E36: 7064897.931 | F36: =SUM('201112 CALCS'!$D$2071:$F$2071) -> 30378623.13 | G36: 23313725.2
B37: G6 | C37: NPD Programme - Needs not Wants - Scrutiny & Challenge | D37: ='Summary New'!F37 -> Efficiency Gain: Centre of Expertise | E37: 448626.5285 | F37: =SUM('201112 CALCS'!$D$2109:$F$2109) -> 4690638.415 | G37: 4242011.887
B38: G7 | C38: Energy Efficient Streetlighting Model for Local Authorities | D38: ='Summary New'!F38 -> Efficiency Gain: Centre of Expertise | E38: 0 | F38: =SUM('201112 CALCS'!$D$2147:$F$2147) -> 1059275.801 | G38: 1059275.801
E39: =SUM(E3:E38) -> 247560542.4 | F39: =SUM(F3:F38) -> 383800642.9 | G39: =SUM(G3:G38) -> 136240100.5
E40: SFt Ops Costs | F40: ='201112 CALCS'!C2169 -> 4785230 | G40: =G39-F40 -> 131454870.5

Sheet Cumulative Net Scen3
E1: (Cumulative) | F1: (Cumulative)
E2: 2 Yr Consolidated | F2: 3 Yr Consolidated | G2: Net
B3: A1 | C3: SFT Consolidated Avoided Cost Benefit | E3: =2544182-124972 -> 2419210 | F3: ='201112 CALCS'!D45+'201112 CALCS'!E45+'201112 CALCS'!F45 -> 5322240 | G3: =F3-E3 -> 2903030
B4: A17 (2) | C4: Waste - Avoided Future Contract Variations | E4: 124972 | F4: ='201112 CALCS'!D653+'201112 CALCS'!E653+'201112 CALCS'!F653 -> 73686.58378 | G4: -51285.41622
B5: B1 | C5: TIF - Development of Model | E5: 31004825.03 | F5: ='201112 CALCS'!D881+'201112 CALCS'!E881+'201112 CALCS'!F881 -> 53714547.35 | G5: 22709722.32
B6: B2 | C6: NHT - Development of Model | E6: 17620455.09 | F6: ='201112 CALCS'!D919+'201112 CALCS'!E919+'201112 CALCS'!F919 -> 23684637.68 | G6: 6064182.595
B7: B3 | C7: NHT2 - Continued Delivery of the Initiative | E7: 0 | F7: ='201112 CALCS'!D970+'201112 CALCS'!E970+'201112 CALCS'!F970 -> 7571245.3 | G7: 7571245.3
B8: C1 | C8: Western Isles and Orkney Schools Projects - Finance Structure | E8: 11423385.05 | F8: ='201112 CALCS'!D1008+'201112 CALCS'!E1008+'201112 CALCS'!F1008 -> 13085220.8 | G8: 1661835.749
B9: C2 | C9: Borders Rail - Lower Financing Costs (Nil Benefit) | E9: 0 | F9: ='201112 CALCS'!D1046+'201112 CALCS'!E1046+'201112 CALCS'!F1046 -> 0 | G9: 0
B10: C3 | C10: Borders Rail - Competition | E10: 1718162.706 | F10: ='201112 CALCS'!D1084+'201112 CALCS'!E1084+'201112 CALCS'!F1084 -> 0 | G10: -1718162.706
B11: C4 | C11: Orkney Schools Projects - Business Case Diligence | E11: 283116.4148 | F11: ='201112 CALCS'!D1122+'201112 CALCS'!E1122+'201112 CALCS'!F1122 -> 329418.5455 | G11: 46302.13074
B12: C5 | C12: RHSC/DCN Procurement Strategy and Increased Competition | E12: 264828.3479 | F12: ='201112 CALCS'!D1160+'201112 CALCS'!E1160+'201112 CALCS'!F1160 -> 884720.9587 | G12: 619892.6108
B13: C6 | C13: NPD Contract - Saved Procurement Time | E13: 496500.6523 | F13: ='201112 CALCS'!D1198+'201112 CALCS'!E1198+'201112 CALCS'!F1198 -> 1051233.317 | G13: 554732.6643
B14: C7 | C14: NPD Contract - Optimal Risk Transfer | E14: 622760.6864 | F14: ='201112 CALCS'!D1236+'201112 CALCS'!E1236+'201112 CALCS'!F1236 -> 3343008.798 | G14: 2720248.111
B15: C8 | C15: NPD Programme - Reduced Cost of Capital | E15: 352669.2737 | F15: ='201112 CALCS'!D1274+'201112 CALCS'!E1274+'201112 CALCS'!F1274 -> 1123632.222 | G15: 770962.9484
B16: C9 | C16: hub - Return on Working capital investment | E16: 12225.03277 | F16: ='201112 CALCS'!D1312+'201112 CALCS'!E1312+'201112 CALCS'!F1312 -> 114057.3201 | G16: 101832.2873
B17: D1 | C17: Hub Programme - Reduced Procurement Time | E17: 3034002.248 | F17: ='201112 CALCS'!D1350+'201112 CALCS'!E1350+'201112 CALCS'!F1350 -> 6764987.872 | G17: 3730985.623
B18: D2 | C18: Hub Programme - Capital Costs Continuous Improvement | E18: 3051751.555 | F18: ='201112 CALCS'!D1388+'201112 CALCS'!E1388+'201112 CALCS'!F1388 -> 2285492.553 | G18: -766259.0024
B19: D3 | C19: Hub Programme - Bid Costs Savings | E19: 1386743.939 | F19: ='201112 CALCS'!D1426+'201112 CALCS'!E1426+'201112 CALCS'!F1426 -> 4263151.125 | G19: 2876407.186
B20: D4 | C20: Hub Programme - Public Sector Investment Returns | E20: 642928.0148 | F20: ='201112 CALCS'!D1464+'201112 CALCS'!E1464+'201112 CALCS'!F1464 -> 1589979.858 | G20: 947051.8433
B21: D5 | C21: Hub Programme - Reduced Rates of Return | E21: 1569575.484 | F21: ='201112 CALCS'!D1502+'201112 CALCS'!E1502+'201112 CALCS'!F1502 -> 3881606.257 | G21: 2312030.773
B22: D6 | C22: Hub Programme - Dialogue Stage Public Sector Savings | E22: 625039.2692 | F22: ='201112 CALCS'!D1540+'201112 CALCS'!E1540+'201112 CALCS'!F1540 -> 642948.977 | G22: 17909.70776
B23: D7 | C23: Schools Programme - Pilot Project Savings | E23: 1164251.325 | F23: ='201112 CALCS'!D1578+'201112 CALCS'!E1578+'201112 CALCS'!F1578 -> 1368646.452 | G23: 204395.1267
B24: D8 | C24: Schools Programme - Needs Identification | E24: 52159800.99 | F24: ='201112 CALCS'!D1616+'201112 CALCS'!E1616+'201112 CALCS'!F1616 -> 53958792.97 | G24: 1798991.988
B25: D8a | C25: Schools Programme - Needs Identification - Further Savings Secondary Schools | E25: 0 | F25: ='201112 CALCS'!D1654+'201112 CALCS'!E1654+'201112 CALCS'!F1654 -> 19103417.75 | G25: 19103417.75
B26: D9 | C26: Schools Programme - Continuous Improvement Savings | E26: 3600335.335 | F26: ='201112 CALCS'!D1692+'201112 CALCS'!E1692+'201112 CALCS'!F1692 -> 4543044.774 | G26: 942709.4394
B27: E1 | C27: Validation - Non-Standard Civils Projects (FRC) | E27: 9160975.834 | F27: ='201112 CALCS'!D1730+'201112 CALCS'!E1730+'201112 CALCS'!F1730 -> 10836125.7 | G27: 1675149.867
B28: E2 | C28: Validation - Standard Accommodation Projects | E28: 921260.088 | F28: ='201112 CALCS'!D1768+'201112 CALCS'!E1768+'201112 CALCS'!F1768 -> 428522.2647 | G28: -492737.8234
B29: E3 | C29: Validation - CMAL | E29: 7134944.869 | F29: ='201112 CALCS'!D1806+'201112 CALCS'!E1806+'201112 CALCS'!F1806 -> 8154348.353 | G29: 1019403.484
B30: E4 | C30: Validation - Non-Standard Civils Projects (Borders Railway) | E30: 232934.4574 | F30: ='201112 CALCS'!D1844+'201112 CALCS'!E1844+'201112 CALCS'!F1844 -> 0 | G30: -232934.4574
B31: F1 | C31: Operational Projects Support | E31: 1599684.026 | F31: ='201112 CALCS'!D1882+'201112 CALCS'!E1882+'201112 CALCS'!F1882 -> 2609233.268 | G31: 1009549.242
B32: G1 | C32: Waste - Procurement Timetable Benefits - Avoided Disposal Costs - Projects other than Clyde Valley | E32: 137146.7002 | F32: ='201112 CALCS'!D1920+'201112 CALCS'!E1920+'201112 CALCS'!F1920 -> 90155.95009 | G32: -46990.75011
B33: G2 | C33: Waste - Service Cost Benefits (Reduced Gate Fees) - Projects other than Clyde Valley | E33: 744912.2548 | F33: ='201112 CALCS'!D1958+'201112 CALCS'!E1958+'201112 CALCS'!F1958 -> 1079242.521 | G33: 334330.2661
B34: G3 | C34: Waste - Reduced Gate Fees - Clyde Valley | E34: 1641763.285 | F34: ='201112 CALCS'!D1996+'201112 CALCS'!E1996+'201112 CALCS'!F1996 -> 253838.4923 | G34: -1387924.793
B35: G4 | C35: Budget Recast - Initial Benefit Identification | E35: 22309910.97 | F35: ='201112 CALCS'!D2034+'201112 CALCS'!E2034+'201112 CALCS'!F2034 -> 26278473.08 | G35: 3968562.107
B36: G5 | C36: Asset Management | E36: 4495844.138 | F36: ='201112 CALCS'!D2072+'201112 CALCS'!E2072+'201112 CALCS'!F2072 -> 19331851.08 | G36: 14836006.95
B37: G6 | C37: NPD Programme - Needs not Wants - Scrutiny & Challenge | E37: 285489.609 | F37: ='201112 CALCS'!D2110+'201112 CALCS'!E2110+'201112 CALCS'!F2110 -> 3439801.505 | G37: 3154311.896
B38: G7 | C38: Energy Efficient Streetlighting Model for Local Authorities | E38: 0 | F38: ='201112 CALCS'!D2148+'201112 CALCS'!E2148+'201112 CALCS'!F2148 -> 674084.6007 | G38: 674084.6007
E39: =SUM(E3:E38) -> 182242404.7 | F39: =SUM(F3:F38) -> 281875394.3 | G39: =SUM(G3:G38) -> 99632989.61
E40: SFt Ops Costs | F40: ='201112 CALCS'!C2169 -> 4785230 | G40: =G39-F40 -> 94847759.61

Sheet Sheet1
